{"text_format":"1","workbook":"xlsx","n_sheets":10,"sheets":["TELA INICIAL","BASE DE DADOS","DADOS","AUXILIAR","relatório","ANALISE","CALENDARIO","FERIADOS","GASTOS_MENSAIS","CONFIG"],"not_rendered":{"charts":0,"images":1,"macros":1,"external_links":0,"defined_names":8,"comments":0,"pivot_tables":0},"unopened":[],"bounds":{"document_bytes":16777216,"sheet_cells":100000,"rows_first":2000,"rows_last":500,"rows_between":2000,"halvings":0,"cell_chars":16384,"cell_head_chars":4096},"cells_cut":0,"cells_raw":0,"read":"whole","date_system":"1900"}

{"sheet":"TELA INICIAL","index":0,"n_rows":19,"n_cols":12,"rows_kept":19,"cut":false,"hidden":false,"merged":[]}
[]
[]
[null,null,null,null,null,null,null,null,null,null,null,"JUNIOR"]
[null,null,"APP","DINHEIRO","CREDITO A VISTA ","CREDITO PARCELADO",null,null,"CARTÃO"]
[null,null,"RECARGAPAY",0,2.9899999999999999E-2,0,null,null,"MELIUZ",null,null,"CARD"]
[null,null,"PICPAY",0,3.09E-2,0,null,null,"PAN",null,null,"MELIUZ_JUNIOR"]
[null,null,"PAGSEGURO",0,2.8899999999999999E-2,0,null,null,"C6",null,null,"PAN_JUNIOR"]
[null,null,"CONTA",0,0,0,null,null,"BMG",null,null,"C6_JUNIOR"]
[null,null,"GERAL",0,0,0,null,null,"FREE",null,null,"BMG_JUNIOR"]
[null,null,null,null,null,null,null,null,"NUBANK",null,null,"FREE_JUNIOR"]
[null,null,null,null,null,null,null,null,"PAG",null,null,"NUBANK_JUNIOR"]
[null,null,null,null,null,null,null,null,"AZUL",null,null,"PAG_JUNIOR"]
[null,null,null,null,null,null,null,null,"GOLD",null,null,"AZUL_JUNIOR"]
[null,null,null,null,null,null,null,null,"LATAM",null,null,"GOLD_JUNIOR"]
[null,null,null,null,null,null,null,null,"ZERO",null,null,"LATAM_JUNIOR"]
[null,null,null,null,null,null,null,null,"CLICK",null,null,"ZERO_JUNIOR"]
[null,null,null,null,null,null,null,null,"INTER",null,null,"CLICK_JUNIOR"]
[null,null,null,null,null,null,null,null,"NCARD",null,null,"INTER_JUNIOR"]
[null,null,null,null,null,null,null,null,"CONTA",null,null,"NCARD_JUNIOR"]

{"sheet":"BASE DE DADOS","index":1,"n_rows":228,"n_cols":14,"rows_kept":228,"cut":false,"hidden":false,"merged":[]}
["ID","TIPO","PARCELA","DESCRIÇÃO","REFERENTE","APP","CARTÃO","FORMA","TAXA","DATA DA\nVENDA","DATA","VALOR PAGO","TOTAL BRUTO","JUROS"]
[1,"PGTO","1 de 1","INTER","AGOSTO","RECARGAPAY","INTER","Crédito à Vista",2.9899999999999999E-2,44423,44454,903.87,930.9,{"$f":"tbldados[[#This Row],[TOTAL BRUTO]]-tbldados[[#This Row],[VALOR PAGO]]","v":27.029999999999973}]
[2,"PGTO","1 de 1","INTER","AGOSTO","RECARGAPAY","NUBANK","Crédito à Vista",2.9899999999999999E-2,44420,44452,2051.2399999999998,2112.5700000000002,{"$f":"tbldados[[#This Row],[TOTAL BRUTO]]-tbldados[[#This Row],[VALOR PAGO]]","v":61.330000000000382}]
[3,"PGTO","1 de 1","CLICK","AGOSTO","RECARGAPAY","INTER","Crédito à Vista",2.9899999999999999E-2,44424,44454,1562.7,1609.42,{"$f":"tbldados[[#This Row],[TOTAL BRUTO]]-tbldados[[#This Row],[VALOR PAGO]]","v":46.720000000000027}]
[4,"PGTO","1 de 1","CLICK","AGOSTO","RECARGAPAY","CLICK","Crédito à Vista",2.9899999999999999E-2,44424,44456,469.1,483.13,{"$f":"tbldados[[#This Row],[TOTAL BRUTO]]-tbldados[[#This Row],[VALOR PAGO]]","v":14.029999999999973}]
[5,"PGTO","1 de 1","PAG","AGOSTO","RECARGAPAY","CLICK","Crédito à Vista",2.9899999999999999E-2,44425,44456,1503.75,1548.71,{"$f":"tbldados[[#This Row],[TOTAL BRUTO]]-tbldados[[#This Row],[VALOR PAGO]]","v":44.960000000000036}]
[6,"PGTO","1 de 1","PAG","AGOSTO","RECARGAPAY","PAG","Crédito à Vista",2.9899999999999999E-2,44425,44459,556.1,572.73,{"$f":"tbldados[[#This Row],[TOTAL BRUTO]]-tbldados[[#This Row],[VALOR PAGO]]","v":16.629999999999995}]
[7,"PGTO","1 de 1","LATAM","AGOSTO","CONTA","CONTA","DINHEIRO",0,44425,44425,129.97999999999999,129.97999999999999,{"$f":"tbldados[[#This Row],[TOTAL BRUTO]]-tbldados[[#This Row],[VALOR PAGO]]","v":0}]
[8,"PGTO","1 de 1","PAG","AGOSTO","CONTA","CONTA","DINHEIRO",0,44426,44426,42.94,42.94,{"$f":"tbldados[[#This Row],[TOTAL BRUTO]]-tbldados[[#This Row],[VALOR PAGO]]","v":0}]
[9,"PGTO","1 de 1","GOLD","AGOSTO","RECARGAPAY","GOLD","Crédito à Vista",2.9899999999999999E-2,44426,44462,1355,1395.51,{"$f":"tbldados[[#This Row],[TOTAL BRUTO]]-tbldados[[#This Row],[VALOR PAGO]]","v":40.509999999999991}]
[10,"PGTO","1 de 1","GOLD","AGOSTO","RECARGAPAY","GOLD","Crédito à Vista",2.9899999999999999E-2,44427,44462,1144.6099999999999,1178.83,{"$f":"tbldados[[#This Row],[TOTAL BRUTO]]-tbldados[[#This Row],[VALOR PAGO]]","v":34.220000000000027}]
[11,"PGTO","1 de 1","LATAM","AGOSTO","RECARGAPAY","GOLD","Crédito à Vista",2.9899999999999999E-2,44428,44462,1282.75,1321.1,{"$f":"tbldados[[#This Row],[TOTAL BRUTO]]-tbldados[[#This Row],[VALOR PAGO]]","v":38.349999999999909}]
[12,"PGTO","1 de 1","LATAM","AGOSTO","RECARGAPAY","LATAM","Crédito à Vista",2.9899999999999999E-2,44431,44464,1772,1824.98,{"$f":"tbldados[[#This Row],[TOTAL BRUTO]]-tbldados[[#This Row],[VALOR PAGO]]","v":52.980000000000018}]
[13,"PGTO","1 de 1","LATAM","AGOSTO","CONTA","CONTA","DINHEIRO",0,44428,44431,18.8,18.8,{"$f":"tbldados[[#This Row],[TOTAL BRUTO]]-tbldados[[#This Row],[VALOR PAGO]]","v":0}]
[14,"PGTO","1 de 1","ZERO","AGOSTO","RECARGAPAY","LATAM","Crédito à Vista",2.9899999999999999E-2,44431,44464,1300,1338.87,{"$f":"tbldados[[#This Row],[TOTAL BRUTO]]-tbldados[[#This Row],[VALOR PAGO]]","v":38.869999999999891}]
[15,"PGTO","1 de 1","ZERO","AGOSTO","RECARGAPAY","ZERO","Crédito à Vista",2.9899999999999999E-2,44433,44465,329.03,338.87,{"$f":"tbldados[[#This Row],[TOTAL BRUTO]]-tbldados[[#This Row],[VALOR PAGO]]","v":9.8400000000000318}]
[16,"GASTOS","01 DE 12","PAGAMANTO-MEUPAG","JUNIOR","GERAL","NUBANK","CRÉDITO PARCELADO",0,44153,44178,101.98,101.98,{"$f":"tbldados[[#This Row],[TOTAL BRUTO]]-tbldados[[#This Row],[VALOR PAGO]]","v":0}]
[17,"GASTOS","02 DE 12","PAGAMANTO-MEUPAG","JUNIOR","GERAL","NUBANK","CRÉDITO PARCELADO",0,44153,44209,101.98,101.98,{"$f":"tbldados[[#This Row],[TOTAL BRUTO]]-tbldados[[#This Row],[VALOR PAGO]]","v":0}]
[18,"GASTOS","03 DE 12","PAGAMANTO-MEUPAG","JUNIOR","GERAL","NUBANK","CRÉDITO PARCELADO",0,44153,44240,101.98,101.98,{"$f":"tbldados[[#This Row],[TOTAL BRUTO]]-tbldados[[#This Row],[VALOR PAGO]]","v":0}]
[19,"GASTOS","04 DE 12","PAGAMANTO-MEUPAG","JUNIOR","GERAL","NUBANK","CRÉDITO PARCELADO",0,44153,44268,101.98,101.98,{"$f":"tbldados[[#This Row],[TOTAL BRUTO]]-tbldados[[#This Row],[VALOR PAGO]]","v":0}]
[20,"GASTOS","05 DE 12","PAGAMANTO-MEUPAG","JUNIOR","GERAL","NUBANK","CRÉDITO PARCELADO",0,44153,44299,101.98,101.98,{"$f":"tbldados[[#This Row],[TOTAL BRUTO]]-tbldados[[#This Row],[VALOR PAGO]]","v":0}]
[21,"GASTOS","06 DE 12","PAGAMANTO-MEUPAG","JUNIOR","GERAL","NUBANK","CRÉDITO PARCELADO",0,44153,44329,101.98,101.98,{"$f":"tbldados[[#This Row],[TOTAL BRUTO]]-tbldados[[#This Row],[VALOR PAGO]]","v":0}]
[22,"GASTOS","07 DE 12","PAGAMANTO-MEUPAG","JUNIOR","GERAL","NUBANK","CRÉDITO PARCELADO",0,44153,44360,101.98,101.98,{"$f":"tbldados[[#This Row],[TOTAL BRUTO]]-tbldados[[#This Row],[VALOR PAGO]]","v":0}]
[23,"GASTOS","08 DE 12","PAGAMANTO-MEUPAG","JUNIOR","GERAL","NUBANK","CRÉDITO PARCELADO",0,44153,44390,101.98,101.98,{"$f":"tbldados[[#This Row],[TOTAL BRUTO]]-tbldados[[#This Row],[VALOR PAGO]]","v":0}]
[24,"GASTOS","09 DE 12","PAGAMANTO-MEUPAG","JUNIOR","GERAL","NUBANK","CRÉDITO PARCELADO",0,44153,44421,101.98,101.98,{"$f":"tbldados[[#This Row],[TOTAL BRUTO]]-tbldados[[#This Row],[VALOR PAGO]]","v":0}]
[25,"GASTOS","10 DE 12","PAGAMANTO-MEUPAG","JUNIOR","GERAL","NUBANK","CRÉDITO PARCELADO",0,44153,44452,101.98,101.98,{"$f":"tbldados[[#This Row],[TOTAL BRUTO]]-tbldados[[#This Row],[VALOR PAGO]]","v":0}]
[26,"GASTOS","11 DE 12","PAGAMANTO-MEUPAG","JUNIOR","GERAL","NUBANK","CRÉDITO PARCELADO",0,44153,44482,101.98,101.98,{"$f":"tbldados[[#This Row],[TOTAL BRUTO]]-tbldados[[#This Row],[VALOR PAGO]]","v":0}]
[27,"GASTOS","12 DE 12","PAGAMANTO-MEUPAG","JUNIOR","GERAL","NUBANK","CRÉDITO PARCELADO",0,44153,44513,101.98,101.98,{"$f":"tbldados[[#This Row],[TOTAL BRUTO]]-tbldados[[#This Row],[VALOR PAGO]]","v":0}]
[28,"GASTOS","01 DE 12","ANUIDADE","JUNIOR","GERAL","NCARD","CRÉDITO PARCELADO",0,44197,44236,15.49,15.49,{"$f":"tbldados[[#This Row],[TOTAL BRUTO]]-tbldados[[#This Row],[VALOR PAGO]]","v":0}]
[29,"GASTOS","02 DE 12","ANUIDADE","JUNIOR","GERAL","NCARD","CRÉDITO PARCELADO",0,44197,44264,15.49,15.49,{"$f":"tbldados[[#This Row],[TOTAL BRUTO]]-tbldados[[#This Row],[VALOR PAGO]]","v":0}]
[30,"GASTOS","03 DE 12","ANUIDADE","JUNIOR","GERAL","NCARD","CRÉDITO PARCELADO",0,44197,44295,15.49,15.49,{"$f":"tbldados[[#This Row],[TOTAL BRUTO]]-tbldados[[#This Row],[VALOR PAGO]]","v":0}]
[31,"GASTOS","04 DE 12","ANUIDADE","JUNIOR","GERAL","NCARD","CRÉDITO PARCELADO",0,44197,44325,15.49,15.49,{"$f":"tbldados[[#This Row],[TOTAL BRUTO]]-tbldados[[#This Row],[VALOR PAGO]]","v":0}]
[32,"GASTOS","05 DE 12","ANUIDADE","JUNIOR","GERAL","NCARD","CRÉDITO PARCELADO",0,44197,44356,15.49,15.49,{"$f":"tbldados[[#This Row],[TOTAL BRUTO]]-tbldados[[#This Row],[VALOR PAGO]]","v":0}]
[33,"GASTOS","06 DE 12","ANUIDADE","JUNIOR","GERAL","NCARD","CRÉDITO PARCELADO",0,44197,44386,15.49,15.49,{"$f":"tbldados[[#This Row],[TOTAL BRUTO]]-tbldados[[#This Row],[VALOR PAGO]]","v":0}]
[34,"GASTOS","07 DE 12","ANUIDADE","JUNIOR","GERAL","NCARD","CRÉDITO PARCELADO",0,44197,44417,15.49,15.49,{"$f":"tbldados[[#This Row],[TOTAL BRUTO]]-tbldados[[#This Row],[VALOR PAGO]]","v":0}]
[35,"GASTOS","08 DE 12","ANUIDADE","JUNIOR","GERAL","NCARD","CRÉDITO PARCELADO",0,44197,44448,15.49,15.49,{"$f":"tbldados[[#This Row],[TOTAL BRUTO]]-tbldados[[#This Row],[VALOR PAGO]]","v":0}]
[36,"GASTOS","09 DE 12","ANUIDADE","JUNIOR","GERAL","NCARD","CRÉDITO PARCELADO",0,44197,44478,15.49,15.49,{"$f":"tbldados[[#This Row],[TOTAL BRUTO]]-tbldados[[#This Row],[VALOR PAGO]]","v":0}]
[37,"GASTOS","10 DE 12","ANUIDADE","JUNIOR","GERAL","NCARD","CRÉDITO PARCELADO",0,44197,44509,15.49,15.49,{"$f":"tbldados[[#This Row],[TOTAL BRUTO]]-tbldados[[#This Row],[VALOR PAGO]]","v":0}]
[38,"GASTOS","11 DE 12","ANUIDADE","JUNIOR","GERAL","NCARD","CRÉDITO PARCELADO",0,44197,44539,15.49,15.49,{"$f":"tbldados[[#This Row],[TOTAL BRUTO]]-tbldados[[#This Row],[VALOR PAGO]]","v":0}]
[39,"GASTOS","12 DE 12","ANUIDADE","JUNIOR","GERAL","NCARD","CRÉDITO PARCELADO",0,44197,44570,15.49,15.49,{"$f":"tbldados[[#This Row],[TOTAL BRUTO]]-tbldados[[#This Row],[VALOR PAGO]]","v":0}]
[40,"GASTOS","01 DE 12","AMAZON","JUNIOR","GERAL","INTER","CRÉDITO PARCELADO",0,44197,44211,9.9,9.9,{"$f":"tbldados[[#This Row],[TOTAL BRUTO]]-tbldados[[#This Row],[VALOR PAGO]]","v":0}]
[41,"GASTOS","02 DE 12","AMAZON","JUNIOR","GERAL","INTER","CRÉDITO PARCELADO",0,44197,44242,9.9,9.9,{"$f":"tbldados[[#This Row],[TOTAL BRUTO]]-tbldados[[#This Row],[VALOR PAGO]]","v":0}]
[42,"GASTOS","03 DE 12","AMAZON","JUNIOR","GERAL","INTER","CRÉDITO PARCELADO",0,44197,44270,9.9,9.9,{"$f":"tbldados[[#This Row],[TOTAL BRUTO]]-tbldados[[#This Row],[VALOR PAGO]]","v":0}]
[43,"GASTOS","04 DE 12","AMAZON","JUNIOR","GERAL","INTER","CRÉDITO PARCELADO",0,44197,44301,9.9,9.9,{"$f":"tbldados[[#This Row],[TOTAL BRUTO]]-tbldados[[#This Row],[VALOR PAGO]]","v":0}]
[44,"GASTOS","05 DE 12","AMAZON","JUNIOR","GERAL","INTER","CRÉDITO PARCELADO",0,44197,44331,9.9,9.9,{"$f":"tbldados[[#This Row],[TOTAL BRUTO]]-tbldados[[#This Row],[VALOR PAGO]]","v":0}]
[45,"GASTOS","06 DE 12","AMAZON","JUNIOR","GERAL","INTER","CRÉDITO PARCELADO",0,44197,44362,9.9,9.9,{"$f":"tbldados[[#This Row],[TOTAL BRUTO]]-tbldados[[#This Row],[VALOR PAGO]]","v":0}]
[46,"GASTOS","07 DE 12","AMAZON","JUNIOR","GERAL","INTER","CRÉDITO PARCELADO",0,44197,44392,9.9,9.9,{"$f":"tbldados[[#This Row],[TOTAL BRUTO]]-tbldados[[#This Row],[VALOR PAGO]]","v":0}]
[47,"GASTOS","08 DE 12","AMAZON","JUNIOR","GERAL","INTER","CRÉDITO PARCELADO",0,44197,44423,9.9,9.9,{"$f":"tbldados[[#This Row],[TOTAL BRUTO]]-tbldados[[#This Row],[VALOR PAGO]]","v":0}]
[48,"GASTOS","09 DE 12","AMAZON","JUNIOR","GERAL","INTER","CRÉDITO PARCELADO",0,44197,44454,9.9,9.9,{"$f":"tbldados[[#This Row],[TOTAL BRUTO]]-tbldados[[#This Row],[VALOR PAGO]]","v":0}]
[49,"GASTOS","10 DE 12","AMAZON","JUNIOR","GERAL","INTER","CRÉDITO PARCELADO",0,44197,44484,9.9,9.9,{"$f":"tbldados[[#This Row],[TOTAL BRUTO]]-tbldados[[#This Row],[VALOR PAGO]]","v":0}]
[50,"GASTOS","11 DE 12","AMAZON","JUNIOR","GERAL","INTER","CRÉDITO PARCELADO",0,44197,44515,9.9,9.9,{"$f":"tbldados[[#This Row],[TOTAL BRUTO]]-tbldados[[#This Row],[VALOR PAGO]]","v":0}]
[51,"GASTOS","12 DE 12","AMAZON","JUNIOR","GERAL","INTER","CRÉDITO PARCELADO",0,44197,44545,9.9,9.9,{"$f":"tbldados[[#This Row],[TOTAL BRUTO]]-tbldados[[#This Row],[VALOR PAGO]]","v":0}]
[52,"GASTOS","01 DE 10","FOGÃO","JUNIOR","GERAL","CLICK","CRÉDITO PARCELADO",0,44204,44244,77,77,{"$f":"tbldados[[#This Row],[TOTAL BRUTO]]-tbldados[[#This Row],[VALOR PAGO]]","v":0}]
[53,"GASTOS","02 DE 10","FOGÃO","JUNIOR","GERAL","CLICK","CRÉDITO PARCELADO",0,44204,44272,77,77,{"$f":"tbldados[[#This Row],[TOTAL BRUTO]]-tbldados[[#This Row],[VALOR PAGO]]","v":0}]
[54,"GASTOS","03 DE 10","FOGÃO","JUNIOR","GERAL","CLICK","CRÉDITO PARCELADO",0,44204,44303,77,77,{"$f":"tbldados[[#This Row],[TOTAL BRUTO]]-tbldados[[#This Row],[VALOR PAGO]]","v":0}]
[55,"GASTOS","04 DE 10","FOGÃO","JUNIOR","GERAL","CLICK","CRÉDITO PARCELADO",0,44204,44333,77,77,{"$f":"tbldados[[#This Row],[TOTAL BRUTO]]-tbldados[[#This Row],[VALOR PAGO]]","v":0}]
[56,"GASTOS","05 DE 10","FOGÃO","JUNIOR","GERAL","CLICK","CRÉDITO PARCELADO",0,44204,44364,77,77,{"$f":"tbldados[[#This Row],[TOTAL BRUTO]]-tbldados[[#This Row],[VALOR PAGO]]","v":0}]
[57,"GASTOS","06 DE 10","FOGÃO","JUNIOR","GERAL","CLICK","CRÉDITO PARCELADO",0,44204,44394,77,77,{"$f":"tbldados[[#This Row],[TOTAL BRUTO]]-tbldados[[#This Row],[VALOR PAGO]]","v":0}]
[58,"GASTOS","07 DE 10","FOGÃO","JUNIOR","GERAL","CLICK","CRÉDITO PARCELADO",0,44204,44425,77,77,{"$f":"tbldados[[#This Row],[TOTAL BRUTO]]-tbldados[[#This Row],[VALOR PAGO]]","v":0}]
[59,"GASTOS","08 DE 10","FOGÃO","JUNIOR","GERAL","CLICK","CRÉDITO PARCELADO",0,44204,44456,77,77,{"$f":"tbldados[[#This Row],[TOTAL BRUTO]]-tbldados[[#This Row],[VALOR PAGO]]","v":0}]
[60,"GASTOS","09 DE 10","FOGÃO","JUNIOR","GERAL","CLICK","CRÉDITO PARCELADO",0,44204,44486,77,77,{"$f":"tbldados[[#This Row],[TOTAL BRUTO]]-tbldados[[#This Row],[VALOR PAGO]]","v":0}]
[61,"GASTOS","10 DE 10","FOGÃO","JUNIOR","GERAL","CLICK","CRÉDITO PARCELADO",0,44204,44517,77,77,{"$f":"tbldados[[#This Row],[TOTAL BRUTO]]-tbldados[[#This Row],[VALOR PAGO]]","v":0}]
[62,"GASTOS","01 DE 10","TINTA","JUNIOR","GERAL","CLICK","CRÉDITO À VISTA",0,44205,44244,12.39,12.39,{"$f":"tbldados[[#This Row],[TOTAL BRUTO]]-tbldados[[#This Row],[VALOR PAGO]]","v":0}]
[63,"GASTOS","02 DE 10","TINTA","JUNIOR","GERAL","CLICK","CRÉDITO À VISTA",0,44205,44272,12.39,12.39,{"$f":"tbldados[[#This Row],[TOTAL BRUTO]]-tbldados[[#This Row],[VALOR PAGO]]","v":0}]
[64,"GASTOS","03 DE 10","TINTA","JUNIOR","GERAL","CLICK","CRÉDITO À VISTA",0,44205,44303,12.39,12.39,{"$f":"tbldados[[#This Row],[TOTAL BRUTO]]-tbldados[[#This Row],[VALOR PAGO]]","v":0}]
[65,"GASTOS","04 DE 10","TINTA","JUNIOR","GERAL","CLICK","CRÉDITO À VISTA",0,44205,44333,12.39,12.39,{"$f":"tbldados[[#This Row],[TOTAL BRUTO]]-tbldados[[#This Row],[VALOR PAGO]]","v":0}]
[66,"GASTOS","05 DE 10","TINTA","JUNIOR","GERAL","CLICK","CRÉDITO À VISTA",0,44205,44364,12.39,12.39,{"$f":"tbldados[[#This Row],[TOTAL BRUTO]]-tbldados[[#This Row],[VALOR PAGO]]","v":0}]
[67,"GASTOS","06 DE 10","TINTA","JUNIOR","GERAL","CLICK","CRÉDITO À VISTA",0,44205,44394,12.39,12.39,{"$f":"tbldados[[#This Row],[TOTAL BRUTO]]-tbldados[[#This Row],[VALOR PAGO]]","v":0}]
[68,"GASTOS","07 DE 10","TINTA","JUNIOR","GERAL","CLICK","CRÉDITO À VISTA",0,44205,44425,12.39,12.39,{"$f":"tbldados[[#This Row],[TOTAL BRUTO]]-tbldados[[#This Row],[VALOR PAGO]]","v":0}]
[69,"GASTOS","08 DE 10","TINTA","JUNIOR","GERAL","CLICK","CRÉDITO À VISTA",0,44205,44456,12.39,12.39,{"$f":"tbldados[[#This Row],[TOTAL BRUTO]]-tbldados[[#This Row],[VALOR PAGO]]","v":0}]
[70,"GASTOS","09 DE 10","TINTA","JUNIOR","GERAL","CLICK","CRÉDITO À VISTA",0,44205,44486,12.39,12.39,{"$f":"tbldados[[#This Row],[TOTAL BRUTO]]-tbldados[[#This Row],[VALOR PAGO]]","v":0}]
[71,"GASTOS","10 DE 10","TINTA","JUNIOR","GERAL","CLICK","CRÉDITO À VISTA",0,44205,44517,12.39,12.39,{"$f":"tbldados[[#This Row],[TOTAL BRUTO]]-tbldados[[#This Row],[VALOR PAGO]]","v":0}]
[72,"GASTOS","01 DE 10","FONE DE OUVIDO","JUNIOR","GERAL","MELIUZ","CRÉDITO PARCELADO",0,44213,44228,25.09,25.09,{"$f":"tbldados[[#This Row],[TOTAL BRUTO]]-tbldados[[#This Row],[VALOR PAGO]]","v":0}]
[73,"GASTOS","02 DE 10","FONE DE OUVIDO","JUNIOR","GERAL","MELIUZ","CRÉDITO PARCELADO",0,44213,44256,25.09,25.09,{"$f":"tbldados[[#This Row],[TOTAL BRUTO]]-tbldados[[#This Row],[VALOR PAGO]]","v":0}]
[74,"GASTOS","03 DE 10","FONE DE OUVIDO","JUNIOR","GERAL","MELIUZ","CRÉDITO PARCELADO",0,44213,44287,25.09,25.09,{"$f":"tbldados[[#This Row],[TOTAL BRUTO]]-tbldados[[#This Row],[VALOR PAGO]]","v":0}]
[75,"GASTOS","04 DE 10","FONE DE OUVIDO","JUNIOR","GERAL","MELIUZ","CRÉDITO PARCELADO",0,44213,44317,25.09,25.09,{"$f":"tbldados[[#This Row],[TOTAL BRUTO]]-tbldados[[#This Row],[VALOR PAGO]]","v":0}]
[76,"GASTOS","05 DE 10","FONE DE OUVIDO","JUNIOR","GERAL","MELIUZ","CRÉDITO PARCELADO",0,44213,44348,25.09,25.09,{"$f":"tbldados[[#This Row],[TOTAL BRUTO]]-tbldados[[#This Row],[VALOR PAGO]]","v":0}]
[77,"GASTOS","06 DE 10","FONE DE OUVIDO","JUNIOR","GERAL","MELIUZ","CRÉDITO PARCELADO",0,44213,44378,25.09,25.09,{"$f":"tbldados[[#This Row],[TOTAL BRUTO]]-tbldados[[#This Row],[VALOR PAGO]]","v":0}]
[78,"GASTOS","07 DE 10","FONE DE OUVIDO","JUNIOR","GERAL","MELIUZ","CRÉDITO PARCELADO",0,44213,44409,25.09,25.09,{"$f":"tbldados[[#This Row],[TOTAL BRUTO]]-tbldados[[#This Row],[VALOR PAGO]]","v":0}]
[79,"GASTOS","08 DE 10","FONE DE OUVIDO","JUNIOR","GERAL","MELIUZ","CRÉDITO PARCELADO",0,44213,44440,25.09,25.09,{"$f":"tbldados[[#This Row],[TOTAL BRUTO]]-tbldados[[#This Row],[VALOR PAGO]]","v":0}]
[80,"GASTOS","09 DE 10","FONE DE OUVIDO","JUNIOR","GERAL","MELIUZ","CRÉDITO PARCELADO",0,44213,44470,25.09,25.09,{"$f":"tbldados[[#This Row],[TOTAL BRUTO]]-tbldados[[#This Row],[VALOR PAGO]]","v":0}]
[81,"GASTOS","10 DE 10","FONE DE OUVIDO","JUNIOR","GERAL","MELIUZ","CRÉDITO PARCELADO",0,44213,44501,25.09,25.09,{"$f":"tbldados[[#This Row],[TOTAL BRUTO]]-tbldados[[#This Row],[VALOR PAGO]]","v":0}]
[82,"GASTOS","01 DE 07","CELULAR","JUNIOR","GERAL","LATAM","CRÉDITO PARCELADO",0,44250,44280,105.44,105.44,{"$f":"tbldados[[#This Row],[TOTAL BRUTO]]-tbldados[[#This Row],[VALOR PAGO]]","v":0}]
[83,"GASTOS","02 DE 07","CELULAR","JUNIOR","GERAL","LATAM","CRÉDITO PARCELADO",0,44250,44311,105.44,105.44,{"$f":"tbldados[[#This Row],[TOTAL BRUTO]]-tbldados[[#This Row],[VALOR PAGO]]","v":0}]
[84,"GASTOS","03 DE 07","CELULAR","JUNIOR","GERAL","LATAM","CRÉDITO PARCELADO",0,44250,44341,105.44,105.44,{"$f":"tbldados[[#This Row],[TOTAL BRUTO]]-tbldados[[#This Row],[VALOR PAGO]]","v":0}]
[85,"GASTOS","04 DE 07","CELULAR","JUNIOR","GERAL","LATAM","CRÉDITO PARCELADO",0,44250,44372,105.44,105.44,{"$f":"tbldados[[#This Row],[TOTAL BRUTO]]-tbldados[[#This Row],[VALOR PAGO]]","v":0}]
[86,"GASTOS","05 DE 07","CELULAR","JUNIOR","GERAL","LATAM","CRÉDITO PARCELADO",0,44250,44402,105.44,105.44,{"$f":"tbldados[[#This Row],[TOTAL BRUTO]]-tbldados[[#This Row],[VALOR PAGO]]","v":0}]
[87,"GASTOS","06 DE 07","CELULAR","JUNIOR","GERAL","LATAM","CRÉDITO PARCELADO",0,44250,44433,105.44,105.44,{"$f":"tbldados[[#This Row],[TOTAL BRUTO]]-tbldados[[#This Row],[VALOR PAGO]]","v":0}]
[88,"GASTOS","07 DE 07","CELULAR","JUNIOR","GERAL","LATAM","CRÉDITO PARCELADO",0,44250,44464,105.44,105.44,{"$f":"tbldados[[#This Row],[TOTAL BRUTO]]-tbldados[[#This Row],[VALOR PAGO]]","v":0}]
[89,"GASTOS","01 DE 03","ROUPAS","JUNIOR","GERAL","CLICK","CRÉDITO PARCELADO",0,44301,44333,111.66,111.66,{"$f":"tbldados[[#This Row],[TOTAL BRUTO]]-tbldados[[#This Row],[VALOR PAGO]]","v":0}]
[90,"GASTOS","02 DE 03","ROUPAS","JUNIOR","GERAL","CLICK","CRÉDITO PARCELADO",0,44301,44364,111.66,111.66,{"$f":"tbldados[[#This Row],[TOTAL BRUTO]]-tbldados[[#This Row],[VALOR PAGO]]","v":0}]
[91,"GASTOS","03 DE 03","ROUPAS","JUNIOR","GERAL","CLICK","CRÉDITO PARCELADO",0,44301,44394,111.66,111.66,{"$f":"tbldados[[#This Row],[TOTAL BRUTO]]-tbldados[[#This Row],[VALOR PAGO]]","v":0}]
[92,"GASTOS","01 DE 06","GARRAFAS","JUNIOR","GERAL","INTER","CRÉDITO PARCELADO",0,44328,44331,36.450000000000003,36.450000000000003,{"$f":"tbldados[[#This Row],[TOTAL BRUTO]]-tbldados[[#This Row],[VALOR PAGO]]","v":0}]
[93,"GASTOS","02 DE 06","GARRAFAS","JUNIOR","GERAL","INTER","CRÉDITO PARCELADO",0,44328,44362,36.450000000000003,36.450000000000003,{"$f":"tbldados[[#This Row],[TOTAL BRUTO]]-tbldados[[#This Row],[VALOR PAGO]]","v":0}]
[94,"GASTOS","03 DE 06","GARRAFAS","JUNIOR","GERAL","INTER","CRÉDITO PARCELADO",0,44328,44392,36.450000000000003,36.450000000000003,{"$f":"tbldados[[#This Row],[TOTAL BRUTO]]-tbldados[[#This Row],[VALOR PAGO]]","v":0}]
[95,"GASTOS","04 DE 06","GARRAFAS","JUNIOR","GERAL","INTER","CRÉDITO PARCELADO",0,44328,44423,36.44,36.44,{"$f":"tbldados[[#This Row],[TOTAL BRUTO]]-tbldados[[#This Row],[VALOR PAGO]]","v":0}]
[96,"GASTOS","05 DE 06","GARRAFAS","JUNIOR","GERAL","INTER","CRÉDITO PARCELADO",0,44328,44454,36.44,36.44,{"$f":"tbldados[[#This Row],[TOTAL BRUTO]]-tbldados[[#This Row],[VALOR PAGO]]","v":0}]
[97,"GASTOS","06 DE 06","GARRAFAS","JUNIOR","GERAL","INTER","CRÉDITO PARCELADO",0,44328,44484,36.450000000000003,36.450000000000003,{"$f":"tbldados[[#This Row],[TOTAL BRUTO]]-tbldados[[#This Row],[VALOR PAGO]]","v":0}]
[98,"GASTOS","01 DE 10","NOTEBOOK","JUNIOR","GERAL","INTER","CRÉDITO PARCELADO",0,44330,44362,349.9,349.9,{"$f":"tbldados[[#This Row],[TOTAL BRUTO]]-tbldados[[#This Row],[VALOR PAGO]]","v":0}]
[99,"GASTOS","02 DE 10","NOTEBOOK","JUNIOR","GERAL","INTER","CRÉDITO PARCELADO",0,44330,44392,349.9,349.9,{"$f":"tbldados[[#This Row],[TOTAL BRUTO]]-tbldados[[#This Row],[VALOR PAGO]]","v":0}]
[100,"GASTOS","03 DE 10","NOTEBOOK","JUNIOR","GERAL","INTER","CRÉDITO PARCELADO",0,44330,44423,349.9,349.9,{"$f":"tbldados[[#This Row],[TOTAL BRUTO]]-tbldados[[#This Row],[VALOR PAGO]]","v":0}]
[101,"GASTOS","04 DE 10","NOTEBOOK","JUNIOR","GERAL","INTER","CRÉDITO PARCELADO",0,44330,44454,349.9,349.9,{"$f":"tbldados[[#This Row],[TOTAL BRUTO]]-tbldados[[#This Row],[VALOR PAGO]]","v":0}]
[102,"GASTOS","05 DE 10","NOTEBOOK","JUNIOR","GERAL","INTER","CRÉDITO PARCELADO",0,44330,44484,349.9,349.9,{"$f":"tbldados[[#This Row],[TOTAL BRUTO]]-tbldados[[#This Row],[VALOR PAGO]]","v":0}]
[103,"GASTOS","06 DE 10","NOTEBOOK","JUNIOR","GERAL","INTER","CRÉDITO PARCELADO",0,44330,44515,349.9,349.9,{"$f":"tbldados[[#This Row],[TOTAL BRUTO]]-tbldados[[#This Row],[VALOR PAGO]]","v":0}]
[104,"GASTOS","07 DE 10","NOTEBOOK","JUNIOR","GERAL","INTER","CRÉDITO PARCELADO",0,44330,44545,349.9,349.9,{"$f":"tbldados[[#This Row],[TOTAL BRUTO]]-tbldados[[#This Row],[VALOR PAGO]]","v":0}]
[105,"GASTOS","08 DE 10","NOTEBOOK","JUNIOR","GERAL","INTER","CRÉDITO PARCELADO",0,44330,44576,349.9,349.9,{"$f":"tbldados[[#This Row],[TOTAL BRUTO]]-tbldados[[#This Row],[VALOR PAGO]]","v":0}]
[106,"GASTOS","09 DE 10","NOTEBOOK","JUNIOR","GERAL","INTER","CRÉDITO PARCELADO",0,44330,44607,349.9,349.9,{"$f":"tbldados[[#This Row],[TOTAL BRUTO]]-tbldados[[#This Row],[VALOR PAGO]]","v":0}]
[107,"GASTOS","10 DE 10","NOTEBOOK","JUNIOR","GERAL","INTER","CRÉDITO PARCELADO",0,44330,44635,349.9,349.9,{"$f":"tbldados[[#This Row],[TOTAL BRUTO]]-tbldados[[#This Row],[VALOR PAGO]]","v":0}]
[108,"GASTOS","01 DE 02","FARMACIA","JUNIOR","GERAL","INTER","CRÉDITO PARCELADO",0,44341,44362,47.48,47.48,{"$f":"tbldados[[#This Row],[TOTAL BRUTO]]-tbldados[[#This Row],[VALOR PAGO]]","v":0}]
[109,"GASTOS","02 DE 02","FARMACIA","JUNIOR","GERAL","INTER","CRÉDITO PARCELADO",0,44341,44392,47.48,47.48,{"$f":"tbldados[[#This Row],[TOTAL BRUTO]]-tbldados[[#This Row],[VALOR PAGO]]","v":0}]
[110,"GASTOS","01 DE 03","SUPERMERCADO","JUNIOR","GERAL","INTER","CRÉDITO À VISTA",0,44343,44362,64.8,64.8,{"$f":"tbldados[[#This Row],[TOTAL BRUTO]]-tbldados[[#This Row],[VALOR PAGO]]","v":0}]
[111,"GASTOS","02 DE 03","SUPERMERCADO","JUNIOR","GERAL","INTER","CRÉDITO À VISTA",0,44343,44392,64.8,64.8,{"$f":"tbldados[[#This Row],[TOTAL BRUTO]]-tbldados[[#This Row],[VALOR PAGO]]","v":0}]
[112,"GASTOS","03 DE 03","SUPERMERCADO","JUNIOR","GERAL","INTER","CRÉDITO À VISTA",0,44343,44423,64.8,64.8,{"$f":"tbldados[[#This Row],[TOTAL BRUTO]]-tbldados[[#This Row],[VALOR PAGO]]","v":0}]
[113,"GASTOS","01 DE 02","FARMACIA","JUNIOR","GERAL","NUBANK","CRÉDITO PARCELADO",0,44345,44360,35.96,35.96,{"$f":"tbldados[[#This Row],[TOTAL BRUTO]]-tbldados[[#This Row],[VALOR PAGO]]","v":0}]
[114,"GASTOS","02 DE 02","FARMACIA","JUNIOR","GERAL","NUBANK","CRÉDITO PARCELADO",0,44345,44390,35.96,35.96,{"$f":"tbldados[[#This Row],[TOTAL BRUTO]]-tbldados[[#This Row],[VALOR PAGO]]","v":0}]
[115,"GASTOS","01 DE 01","PAGAMENTO-INTER","JUNIOR","GERAL","MELIUZ","CRÉDITO À VISTA",0,44347,44378,264.8,264.8,{"$f":"tbldados[[#This Row],[TOTAL BRUTO]]-tbldados[[#This Row],[VALOR PAGO]]","v":0}]
[116,"GASTOS","01 DE 01","PAGAMENTO-INTER","JUNIOR","GERAL","AZUL","CRÉDITO À VISTA",0,44351,44383,648,648,{"$f":"tbldados[[#This Row],[TOTAL BRUTO]]-tbldados[[#This Row],[VALOR PAGO]]","v":0}]
[117,"GASTOS","01 DE 01","VOKERE","JUNIOR","GERAL","INTER","CRÉDITO À VISTA",0,44352,44362,32,32,{"$f":"tbldados[[#This Row],[TOTAL BRUTO]]-tbldados[[#This Row],[VALOR PAGO]]","v":0}]
[118,"GASTOS","01 DE 01","PAGAMENTO-PAGMAE","JUNIOR","GERAL","INTER","CRÉDITO À VISTA",0,44354,44362,2664.88,2664.88,{"$f":"tbldados[[#This Row],[TOTAL BRUTO]]-tbldados[[#This Row],[VALOR PAGO]]","v":0}]
[119,"GASTOS","01 DE 01","COMBUSTIVEL","JUNIOR","GERAL","NUBANK","CRÉDITO À VISTA",0,44355,44390,20.65,20.65,{"$f":"tbldados[[#This Row],[TOTAL BRUTO]]-tbldados[[#This Row],[VALOR PAGO]]","v":0}]
[120,"GASTOS","01 DE 01","PAGAMENTO-NCARD","JUNIOR","GERAL","AZUL","CRÉDITO À VISTA",0,44356,44383,835,835,{"$f":"tbldados[[#This Row],[TOTAL BRUTO]]-tbldados[[#This Row],[VALOR PAGO]]","v":0}]
[121,"GASTOS","01 DE 01","CERVEJA","JUNIOR","GERAL","MELIUZ","CRÉDITO À VISTA",0,44357,44378,8,8,{"$f":"tbldados[[#This Row],[TOTAL BRUTO]]-tbldados[[#This Row],[VALOR PAGO]]","v":0}]
[122,"GASTOS","01 DE 01","PAGAMENTO-NCARD","JUNIOR","GERAL","AZUL","CRÉDITO À VISTA",0,44357,44383,664.5,664.5,{"$f":"tbldados[[#This Row],[TOTAL BRUTO]]-tbldados[[#This Row],[VALOR PAGO]]","v":0}]
[123,"GASTOS","01 DE 01","MATERIAIS P/ CASA","JUNIOR","GERAL","MELIUZ","CRÉDITO À VISTA",0,44358,44378,86,86,{"$f":"tbldados[[#This Row],[TOTAL BRUTO]]-tbldados[[#This Row],[VALOR PAGO]]","v":0}]
[124,"GASTOS","01 DE 03","SUPERMERCADO-CERVEJA","JUNIOR","GERAL","MELIUZ","CRÉDITO PARCELADO",0,44358,44378,35.130000000000003,35.130000000000003,{"$f":"tbldados[[#This Row],[TOTAL BRUTO]]-tbldados[[#This Row],[VALOR PAGO]]","v":0}]
[125,"GASTOS","02 DE 03","SUPERMERCADO-CERVEJA","JUNIOR","GERAL","MELIUZ","CRÉDITO PARCELADO",0,44358,44409,35.130000000000003,35.130000000000003,{"$f":"tbldados[[#This Row],[TOTAL BRUTO]]-tbldados[[#This Row],[VALOR PAGO]]","v":0}]
[126,"GASTOS","03 DE 03","SUPERMERCADO-CERVEJA","JUNIOR","GERAL","MELIUZ","CRÉDITO PARCELADO",0,44358,44440,35.130000000000003,35.130000000000003,{"$f":"tbldados[[#This Row],[TOTAL BRUTO]]-tbldados[[#This Row],[VALOR PAGO]]","v":0}]
[127,"GASTOS","01 DE 01","PAGAMENTO-LUCAS","JUNIOR","GERAL","NCARD","CRÉDITO À VISTA",0,44358,44386,774.53,774.53,{"$f":"tbldados[[#This Row],[TOTAL BRUTO]]-tbldados[[#This Row],[VALOR PAGO]]","v":0}]
[128,"GASTOS","01 DE 01","SUPERMERCADO","JUNIOR","GERAL","MELIUZ","CRÉDITO À VISTA",0,44359,44378,31.93,31.93,{"$f":"tbldados[[#This Row],[TOTAL BRUTO]]-tbldados[[#This Row],[VALOR PAGO]]","v":0}]
[129,"GASTOS","01 DE 01","LANCHE-PIZZA","JUNIOR","GERAL","MELIUZ","CRÉDITO À VISTA",0,44359,44378,20,20,{"$f":"tbldados[[#This Row],[TOTAL BRUTO]]-tbldados[[#This Row],[VALOR PAGO]]","v":0}]
[130,"GASTOS","01 DE 01","PIZZA","JUNIOR","GERAL","NUBANK","CRÉDITO À VISTA",0,44359,44390,39,39,{"$f":"tbldados[[#This Row],[TOTAL BRUTO]]-tbldados[[#This Row],[VALOR PAGO]]","v":0}]
[131,"GASTOS","01 DE 01","PAGAMENTO-CLICK","JUNIOR","GERAL","NUBANK","CRÉDITO À VISTA",0,44364,44390,1713.15,1713.15,{"$f":"tbldados[[#This Row],[TOTAL BRUTO]]-tbldados[[#This Row],[VALOR PAGO]]","v":0}]
[132,"GASTOS","01 DE 01","PAGAMENTO-PAGJR","JUNIOR","GERAL","CLICK","CRÉDITO À VISTA",0,44364,44394,1740.53,1740.53,{"$f":"tbldados[[#This Row],[TOTAL BRUTO]]-tbldados[[#This Row],[VALOR PAGO]]","v":0}]
[133,"GASTOS","01 DE 01","PAGAMENTOPAGJR2","JUNIOR","GERAL","PAG","CRÉDITO À VISTA",0,44365,44397,509.29,509.29,{"$f":"tbldados[[#This Row],[TOTAL BRUTO]]-tbldados[[#This Row],[VALOR PAGO]]","v":0}]
[134,"GASTOS","01 DE 01","PAGAMENTO-GOLDPARTE1","JUNIOR","GERAL","PAG","CRÉDITO À VISTA",0,44368,44397,1545.9,1545.9,{"$f":"tbldados[[#This Row],[TOTAL BRUTO]]-tbldados[[#This Row],[VALOR PAGO]]","v":0}]
[135,"GASTOS","01 DE 01","TELEFONE-FATURA","JUNIOR","GERAL","PAG","CRÉDITO À VISTA",0,44369,44397,43,43,{"$f":"tbldados[[#This Row],[TOTAL BRUTO]]-tbldados[[#This Row],[VALOR PAGO]]","v":0}]
[136,"GASTOS","01 DE 01","PAGAMANTO-GOLDPART2","JUNIOR","GERAL","GOLD","CRÉDITO À VISTA",0,44370,44400,1029.9000000000001,1029.9000000000001,{"$f":"tbldados[[#This Row],[TOTAL BRUTO]]-tbldados[[#This Row],[VALOR PAGO]]","v":0}]
[137,"GASTOS","01 DE 01","PAGAMENTO-PASS","JUNIOR","GERAL","LATAM","CRÉDITO À VISTA",0,44372,44402,1355.35,1355.35,{"$f":"tbldados[[#This Row],[TOTAL BRUTO]]-tbldados[[#This Row],[VALOR PAGO]]","v":0}]
[138,"GASTOS","01 DE 01","PAGAMENTO-INTER-ZERO","JUNIOR","GERAL","NCARD","CRÉDITO À VISTA",0,44375,44386,786.17,786.17,{"$f":"tbldados[[#This Row],[TOTAL BRUTO]]-tbldados[[#This Row],[VALOR PAGO]]","v":0}]
[139,"GASTOS","01 DE 01","PAGAMENTO-INTER-ZERO2","JUNIOR","GERAL","NUBANK","CRÉDITO À VISTA",0,44375,44390,786.17,786.17,{"$f":"tbldados[[#This Row],[TOTAL BRUTO]]-tbldados[[#This Row],[VALOR PAGO]]","v":0}]
[140,"GASTOS","01 DE 06","COPO STANLEY","JUNIOR","GERAL","NUBANK","CRÉDITO PARCELADO",0,44376,44390,46.67,46.67,{"$f":"tbldados[[#This Row],[TOTAL BRUTO]]-tbldados[[#This Row],[VALOR PAGO]]","v":0}]
[141,"GASTOS","02 DE 06","COPO STANLEY","JUNIOR","GERAL","NUBANK","CRÉDITO PARCELADO",0,44376,44421,46.67,46.67,{"$f":"tbldados[[#This Row],[TOTAL BRUTO]]-tbldados[[#This Row],[VALOR PAGO]]","v":0}]
[142,"GASTOS","03 DE 06","COPO STANLEY","JUNIOR","GERAL","NUBANK","CRÉDITO PARCELADO",0,44376,44452,46.67,46.67,{"$f":"tbldados[[#This Row],[TOTAL BRUTO]]-tbldados[[#This Row],[VALOR PAGO]]","v":0}]
[143,"GASTOS","04 DE 06","COPO STANLEY","JUNIOR","GERAL","NUBANK","CRÉDITO PARCELADO",0,44376,44482,46.67,46.67,{"$f":"tbldados[[#This Row],[TOTAL BRUTO]]-tbldados[[#This Row],[VALOR PAGO]]","v":0}]
[144,"GASTOS","05 DE 06","COPO STANLEY","JUNIOR","GERAL","NUBANK","CRÉDITO PARCELADO",0,44376,44513,46.67,46.67,{"$f":"tbldados[[#This Row],[TOTAL BRUTO]]-tbldados[[#This Row],[VALOR PAGO]]","v":0}]
[145,"GASTOS","06 DE 06","COPO STANLEY","JUNIOR","GERAL","NUBANK","CRÉDITO PARCELADO",0,44376,44543,46.67,46.67,{"$f":"tbldados[[#This Row],[TOTAL BRUTO]]-tbldados[[#This Row],[VALOR PAGO]]","v":0}]
[146,"GASTOS","01 DE 03","SUPERMERCADO","JUNIOR","GERAL","NUBANK","CRÉDITO PARCELADO",0,44376,44390,75,75,{"$f":"tbldados[[#This Row],[TOTAL BRUTO]]-tbldados[[#This Row],[VALOR PAGO]]","v":0}]
[147,"GASTOS","02 DE 03","SUPERMERCADO","JUNIOR","GERAL","NUBANK","CRÉDITO PARCELADO",0,44376,44421,75,75,{"$f":"tbldados[[#This Row],[TOTAL BRUTO]]-tbldados[[#This Row],[VALOR PAGO]]","v":0}]
[148,"GASTOS","03 DE 03","SUPERMERCADO","JUNIOR","GERAL","NUBANK","CRÉDITO PARCELADO",0,44376,44452,75,75,{"$f":"tbldados[[#This Row],[TOTAL BRUTO]]-tbldados[[#This Row],[VALOR PAGO]]","v":0}]
[149,"GASTOS","01 DE 01","CERVEJA","JUNIOR","GERAL","INTER","CRÉDITO À VISTA",0,44376,44392,31.08,31.08,{"$f":"tbldados[[#This Row],[TOTAL BRUTO]]-tbldados[[#This Row],[VALOR PAGO]]","v":0}]
[150,"GASTOS","01 DE 01","PAGAMENTOPICPAY-SANTANDER","JUNIOR","GERAL","ZERO","CRÉDITO À VISTA",0,44378,44403,1535.22,1535.22,{"$f":"tbldados[[#This Row],[TOTAL BRUTO]]-tbldados[[#This Row],[VALOR PAGO]]","v":0}]
[151,"GASTOS","01 DE 01","LANCHE","JUNIOR","GERAL","PAG","CRÉDITO À VISTA",0,44379,44397,58,58,{"$f":"tbldados[[#This Row],[TOTAL BRUTO]]-tbldados[[#This Row],[VALOR PAGO]]","v":0}]
[152,"GASTOS","01 DE 01","PAGAMENTO-RPAY-AZUL8403","JUNIOR","GERAL","LATAM","CRÉDITO À VISTA",0,44381,44402,711.66,711.66,{"$f":"tbldados[[#This Row],[TOTAL BRUTO]]-tbldados[[#This Row],[VALOR PAGO]]","v":0}]
[153,"GASTOS","01 DE 01","PAGAMENTOPAGMAE-RPAY","JUNIOR","GERAL","AZUL","CRÉDITO À VISTA",0,44382,44414,695.66,695.66,{"$f":"tbldados[[#This Row],[TOTAL BRUTO]]-tbldados[[#This Row],[VALOR PAGO]]","v":0}]
[154,"GASTOS","01 DE 01","PAGAMENTOS-PAGMAE2","JUNIOR","GERAL","AZUL","CRÉDITO À VISTA",0,44384,44414,1440,1440,{"$f":"tbldados[[#This Row],[TOTAL BRUTO]]-tbldados[[#This Row],[VALOR PAGO]]","v":0}]
[155,"GASTOS","01 DE 01","PAGAMENTO-NUJRPARTE1","JUNIOR","GERAL","NCARD","CRÉDITO À VISTA",0,44389,44417,1580.9,1580.9,{"$f":"tbldados[[#This Row],[TOTAL BRUTO]]-tbldados[[#This Row],[VALOR PAGO]]","v":0}]
[156,"GASTOS","01 DE 01","PAGAMENTO-NUJRPARTE2","JUNIOR","GERAL","LATAM","CRÉDITO À VISTA",0,44389,44402,1207.04,1207.04,{"$f":"tbldados[[#This Row],[TOTAL BRUTO]]-tbldados[[#This Row],[VALOR PAGO]]","v":0}]
[157,"GASTOS","01 DE 01","PAGAMENTO-INTERPARTE1","JUNIOR","GERAL","NUBANK","CRÉDITO À VISTA",0,44389,44421,2159.63,2159.63,{"$f":"tbldados[[#This Row],[TOTAL BRUTO]]-tbldados[[#This Row],[VALOR PAGO]]","v":0}]
[158,"GASTOS","01 DE 01","PAGAMENTO-INTER","JUNIOR","GERAL","INTER","CRÉDITO À VISTA",0,44392,44423,205.98,205.98,{"$f":"tbldados[[#This Row],[TOTAL BRUTO]]-tbldados[[#This Row],[VALOR PAGO]]","v":0}]
[159,"GASTOS","01 DE 01","PAGAMENTO-INTER","JUNIOR","GERAL","MELIUZ","CRÉDITO À VISTA",0,44392,44409,321.33,321.33,{"$f":"tbldados[[#This Row],[TOTAL BRUTO]]-tbldados[[#This Row],[VALOR PAGO]]","v":0}]
[160,"GASTOS","01 DE 01","PAGAMENTO-CLICK","JUNIOR","GERAL","INTER","CRÉDITO À VISTA",0,44392,44423,1999.65,1999.65,{"$f":"tbldados[[#This Row],[TOTAL BRUTO]]-tbldados[[#This Row],[VALOR PAGO]]","v":0}]
[161,"GASTOS","01 DE 01","PAGAMENTO-PAGPART1","JUNIOR","GERAL","CLICK","CRÉDITO À VISTA",0,44393,44425,1942.39,1942.39,{"$f":"tbldados[[#This Row],[TOTAL BRUTO]]-tbldados[[#This Row],[VALOR PAGO]]","v":0}]
[162,"GASTOS","01 DE 01","PAGAMENTO-PAGPART2","JUNIOR","GERAL","INTER","CRÉDITO À VISTA",0,44393,44423,139.44999999999999,139.44999999999999,{"$f":"tbldados[[#This Row],[TOTAL BRUTO]]-tbldados[[#This Row],[VALOR PAGO]]","v":0}]
[163,"GASTOS","01 DE 01","PAGAMENTO-PAGPART3","JUNIOR","GERAL","NUBANK","CRÉDITO À VISTA",0,44393,44421,139.44999999999999,139.44999999999999,{"$f":"tbldados[[#This Row],[TOTAL BRUTO]]-tbldados[[#This Row],[VALOR PAGO]]","v":0}]
[164,"GASTOS","01 DE 01","PAGAMENTOGOLG-PAG","JUNIOR","GERAL","PAG","CRÉDITO À VISTA",0,44396,44428,2059.8000000000002,2059.8000000000002,{"$f":"tbldados[[#This Row],[TOTAL BRUTO]]-tbldados[[#This Row],[VALOR PAGO]]","v":0}]
[165,"GASTOS","01 DE 01","PAGAMENTOGOLG-GOLD","JUNIOR","GERAL","GOLD","CRÉDITO À VISTA",0,44397,44431,489.25,489.25,{"$f":"tbldados[[#This Row],[TOTAL BRUTO]]-tbldados[[#This Row],[VALOR PAGO]]","v":0}]
[166,"GASTOS","01 DE 01","PAGAMENTOITAU-LATAM","JUNIOR","GERAL","LATAM","CRÉDITO À VISTA",0,44399,44433,1643.82,1643.82,{"$f":"tbldados[[#This Row],[TOTAL BRUTO]]-tbldados[[#This Row],[VALOR PAGO]]","v":0}]
[167,"GASTOS","01 DE 01","PAGAMENTOITAU-LATAM","JUNIOR","GERAL","GOLD","CRÉDITO À VISTA",0,44398,44431,2010.36,2010.36,{"$f":"tbldados[[#This Row],[TOTAL BRUTO]]-tbldados[[#This Row],[VALOR PAGO]]","v":0}]
[168,"GASTOS","01 DE 01","PGTOZERO-LATAM","JUNIOR","GERAL","LATAM","CRÉDITO À VISTA",0,44402,44433,1374.81,1374.81,{"$f":"tbldados[[#This Row],[TOTAL BRUTO]]-tbldados[[#This Row],[VALOR PAGO]]","v":0}]
[169,"GASTOS","01 DE 02","SUPERMERCADO","JUNIOR","GERAL","LATAM","CRÉDITO PARCELADO",0,44402,44433,46,46,{"$f":"tbldados[[#This Row],[TOTAL BRUTO]]-tbldados[[#This Row],[VALOR PAGO]]","v":0}]
[170,"GASTOS","02 DE 02","SUPERMERCADO","JUNIOR","GERAL","LATAM","CRÉDITO PARCELADO",0,44402,44464,46,46,{"$f":"tbldados[[#This Row],[TOTAL BRUTO]]-tbldados[[#This Row],[VALOR PAGO]]","v":0}]
[171,"GASTOS","01 DE 01","JUNIOR","PGTO","GERAL","ZERO","CRÉDITO À VISTA",0,44404,44434,1544.85,1544.85,{"$f":"tbldados[[#This Row],[TOTAL BRUTO]]-tbldados[[#This Row],[VALOR PAGO]]","v":0}]
[172,"GASTOS","01 DE 01","NETFLIX","JUNIOR","GERAL","ZERO","CRÉDITO À VISTA",0,44402,44434,45.9,45.9,{"$f":"tbldados[[#This Row],[TOTAL BRUTO]]-tbldados[[#This Row],[VALOR PAGO]]","v":0}]
[173,"GASTOS","01 DE 01","JUROS","JUNIOR","GERAL","ZERO","CRÉDITO À VISTA",0,44409,44434,0.1,0.1,{"$f":"tbldados[[#This Row],[TOTAL BRUTO]]-tbldados[[#This Row],[VALOR PAGO]]","v":0}]
[174,"GASTOS","01 DE 12","PGTOPAGMAE","JUNIOR","GERAL","NUBANK","CRÉDITO PARCELADO",0,44184,44209,114.96,114.96,{"$f":"tbldados[[#This Row],[TOTAL BRUTO]]-tbldados[[#This Row],[VALOR PAGO]]","v":0}]
[175,"GASTOS","02 DE 12","PGTOPAGMAE","JUNIOR","GERAL","NUBANK","CRÉDITO PARCELADO",0,44184,44240,114.96,114.96,{"$f":"tbldados[[#This Row],[TOTAL BRUTO]]-tbldados[[#This Row],[VALOR PAGO]]","v":0}]
[176,"GASTOS","03 DE 12","PGTOPAGMAE","JUNIOR","GERAL","NUBANK","CRÉDITO PARCELADO",0,44184,44268,114.96,114.96,{"$f":"tbldados[[#This Row],[TOTAL BRUTO]]-tbldados[[#This Row],[VALOR PAGO]]","v":0}]
[177,"GASTOS","04 DE 12","PGTOPAGMAE","JUNIOR","GERAL","NUBANK","CRÉDITO PARCELADO",0,44184,44299,114.96,114.96,{"$f":"tbldados[[#This Row],[TOTAL BRUTO]]-tbldados[[#This Row],[VALOR PAGO]]","v":0}]
[178,"GASTOS","05 DE 12","PGTOPAGMAE","JUNIOR","GERAL","NUBANK","CRÉDITO PARCELADO",0,44184,44329,114.96,114.96,{"$f":"tbldados[[#This Row],[TOTAL BRUTO]]-tbldados[[#This Row],[VALOR PAGO]]","v":0}]
[179,"GASTOS","06 DE 12","PGTOPAGMAE","JUNIOR","GERAL","NUBANK","CRÉDITO PARCELADO",0,44184,44360,114.96,114.96,{"$f":"tbldados[[#This Row],[TOTAL BRUTO]]-tbldados[[#This Row],[VALOR PAGO]]","v":0}]
[180,"GASTOS","07 DE 12","PGTOPAGMAE","JUNIOR","GERAL","NUBANK","CRÉDITO PARCELADO",0,44184,44390,114.96,114.96,{"$f":"tbldados[[#This Row],[TOTAL BRUTO]]-tbldados[[#This Row],[VALOR PAGO]]","v":0}]
[181,"GASTOS","08 DE 12","PGTOPAGMAE","JUNIOR","GERAL","NUBANK","CRÉDITO PARCELADO",0,44184,44421,114.96,114.96,{"$f":"tbldados[[#This Row],[TOTAL BRUTO]]-tbldados[[#This Row],[VALOR PAGO]]","v":0}]
[182,"GASTOS","09 DE 12","PGTOPAGMAE","JUNIOR","GERAL","NUBANK","CRÉDITO PARCELADO",0,44184,44452,114.96,114.96,{"$f":"tbldados[[#This Row],[TOTAL BRUTO]]-tbldados[[#This Row],[VALOR PAGO]]","v":0}]
[183,"GASTOS","10 DE 12","PGTOPAGMAE","JUNIOR","GERAL","NUBANK","CRÉDITO PARCELADO",0,44184,44482,114.96,114.96,{"$f":"tbldados[[#This Row],[TOTAL BRUTO]]-tbldados[[#This Row],[VALOR PAGO]]","v":0}]
[184,"GASTOS","11 DE 12","PGTOPAGMAE","JUNIOR","GERAL","NUBANK","CRÉDITO PARCELADO",0,44184,44513,114.96,114.96,{"$f":"tbldados[[#This Row],[TOTAL BRUTO]]-tbldados[[#This Row],[VALOR PAGO]]","v":0}]
[185,"GASTOS","12 DE 12","PGTOPAGMAE","JUNIOR","GERAL","NUBANK","CRÉDITO PARCELADO",0,44184,44543,114.96,114.96,{"$f":"tbldados[[#This Row],[TOTAL BRUTO]]-tbldados[[#This Row],[VALOR PAGO]]","v":0}]
[186,"GASTOS","01 DE 01","RECARGA","JUNIOR","GERAL","NUBANK","CRÉDITO À VISTA",0,44389,44421,30,30,{"$f":"tbldados[[#This Row],[TOTAL BRUTO]]-tbldados[[#This Row],[VALOR PAGO]]","v":0}]
[187,"GASTOS","01 DE 01","CERVEJA","JUNIOR","GERAL","INTER","CRÉDITO À VISTA",0,44408,44423,35,35,{"$f":"tbldados[[#This Row],[TOTAL BRUTO]]-tbldados[[#This Row],[VALOR PAGO]]","v":0}]
[188,"GASTOS","01 DE 02","MOTO","JUNIOR","GERAL","INTER","CRÉDITO PARCELADO",0,44377,44392,94,94,{"$f":"tbldados[[#This Row],[TOTAL BRUTO]]-tbldados[[#This Row],[VALOR PAGO]]","v":0}]
[189,"GASTOS","02 DE 02","MOTO","JUNIOR","GERAL","INTER","CRÉDITO PARCELADO",0,44377,44423,94,94,{"$f":"tbldados[[#This Row],[TOTAL BRUTO]]-tbldados[[#This Row],[VALOR PAGO]]","v":0}]
[190,"GASTOS","01 DE 02","MOUSE","JUNIOR","GERAL","MELIUZ","CRÉDITO PARCELADO",0,44405,44440,30.16,30.16,{"$f":"tbldados[[#This Row],[TOTAL BRUTO]]-tbldados[[#This Row],[VALOR PAGO]]","v":0}]
[191,"GASTOS","02 DE 02","MOUSE","JUNIOR","GERAL","MELIUZ","CRÉDITO PARCELADO",0,44405,44470,30.16,30.16,{"$f":"tbldados[[#This Row],[TOTAL BRUTO]]-tbldados[[#This Row],[VALOR PAGO]]","v":0}]
[192,"GASTOS","01 DE 01","JANTA","JUNIOR","GERAL","MELIUZ","CRÉDITO À VISTA",0,44398,44440,37,37,{"$f":"tbldados[[#This Row],[TOTAL BRUTO]]-tbldados[[#This Row],[VALOR PAGO]]","v":0}]
[193,"GASTOS","01 DE 01","JANTA","JUNIOR","GERAL","MELIUZ","CRÉDITO À VISTA",0,44396,44409,32,32,{"$f":"tbldados[[#This Row],[TOTAL BRUTO]]-tbldados[[#This Row],[VALOR PAGO]]","v":0}]
[194,"GASTOS","01 DE 01","PLANO PRIME JUROS","JUNIOR","GERAL","INTER","CRÉDITO À VISTA",0,44412,44423,19.899999999999999,19.899999999999999,{"$f":"tbldados[[#This Row],[TOTAL BRUTO]]-tbldados[[#This Row],[VALOR PAGO]]","v":0}]
[195,"GASTOS","01 DE 01","PGTO-AZULCARD","JUNIOR","GERAL","FREE","CRÉDITO À VISTA",0,44412,44438,1490,1490,{"$f":"tbldados[[#This Row],[TOTAL BRUTO]]-tbldados[[#This Row],[VALOR PAGO]]","v":0}]
[196,"GASTOS","01 DE 01","PGTO-NCARD-PARTE1","JUNIOR","GERAL","AZUL","CRÉDITO À VISTA",0,44413,44445,659.34,659.34,{"$f":"tbldados[[#This Row],[TOTAL BRUTO]]-tbldados[[#This Row],[VALOR PAGO]]","v":0}]
[197,"GASTOS","01 DE 01","PGTO-NCARDPARTE2","JUNIOR","GERAL","AZUL","CRÉDITO À VISTA",0,44415,44445,972.48,972.48,{"$f":"tbldados[[#This Row],[TOTAL BRUTO]]-tbldados[[#This Row],[VALOR PAGO]]","v":0}]
[198,"GASTOS","01 DE 01","PGTO-PAGMAE","JUNIOR","GERAL","AZUL","CRÉDITO À VISTA",0,44415,44445,517.73,517.73,{"$f":"tbldados[[#This Row],[TOTAL BRUTO]]-tbldados[[#This Row],[VALOR PAGO]]","v":0}]
[199,"GASTOS","01 DE 01","PGTO-PAGMAE","JUNIOR","GERAL","NUBANK","CRÉDITO À VISTA",0,44417,44452,1562.77,1562.77,{"$f":"tbldados[[#This Row],[TOTAL BRUTO]]-tbldados[[#This Row],[VALOR PAGO]]","v":0}]
[200,"GASTOS","01 DE 01","JANTA","JUNIOR","GERAL","INTER","CRÉDITO À VISTA",0,44418,44454,32,32,{"$f":"tbldados[[#This Row],[TOTAL BRUTO]]-tbldados[[#This Row],[VALOR PAGO]]","v":0}]
[201,"GASTOS","01 DE 01","CERVEJA","JUNIOR","GERAL","INTER","CRÉDITO À VISTA",0,44421,44454,30,30,{"$f":"tbldados[[#This Row],[TOTAL BRUTO]]-tbldados[[#This Row],[VALOR PAGO]]","v":0}]
[202,"GASTOS","01 DE 01","PGTO-INTER","JUNIOR","GERAL","INTER","CRÉDITO À VISTA",0,44423,44454,930.9,930.9,{"$f":"tbldados[[#This Row],[TOTAL BRUTO]]-tbldados[[#This Row],[VALOR PAGO]]","v":0}]
[203,"GASTOS","01 DE 01","PGTO-CLICKPARTE1","JUNIOR","GERAL","INTER","CRÉDITO À VISTA",0,44424,44454,1609.42,1609.42,{"$f":"tbldados[[#This Row],[TOTAL BRUTO]]-tbldados[[#This Row],[VALOR PAGO]]","v":0}]
[204,"GASTOS","01 DE 01","PGTO-CLICKPARTE2","JUNIOR","GERAL","CLICK","CRÉDITO À VISTA",0,44424,44456,483.13,483.13,{"$f":"tbldados[[#This Row],[TOTAL BRUTO]]-tbldados[[#This Row],[VALOR PAGO]]","v":0}]
[205,"GASTOS","01 DE 01","PGTO-PAGPARTE1","JUNIOR","GERAL","CLICK","CRÉDITO À VISTA",0,44425,44456,1548.17,1548.17,{"$f":"tbldados[[#This Row],[TOTAL BRUTO]]-tbldados[[#This Row],[VALOR PAGO]]","v":0}]
[206,"GASTOS","01 DE 01","PGTO-PAGPARTE2","JUNIOR","GERAL","PAG","CRÉDITO À VISTA",0,44425,44459,572.73,572.73,{"$f":"tbldados[[#This Row],[TOTAL BRUTO]]-tbldados[[#This Row],[VALOR PAGO]]","v":0}]
[207,"GASTOS","01 DE 03","FONE DE OUVIDO","JUNIOR","GERAL","LATAM","CRÉDITO PARCELADO",0,44378,44402,33.46,33.46,{"$f":"tbldados[[#This Row],[TOTAL BRUTO]]-tbldados[[#This Row],[VALOR PAGO]]","v":0}]
[208,"GASTOS","02 DE 03","FONE DE OUVIDO","JUNIOR","GERAL","LATAM","CRÉDITO PARCELADO",0,44378,44433,33.46,33.46,{"$f":"tbldados[[#This Row],[TOTAL BRUTO]]-tbldados[[#This Row],[VALOR PAGO]]","v":0}]
[209,"GASTOS","03 DE 03","FONE DE OUVIDO","JUNIOR","GERAL","LATAM","CRÉDITO PARCELADO",0,44378,44464,33.46,33.46,{"$f":"tbldados[[#This Row],[TOTAL BRUTO]]-tbldados[[#This Row],[VALOR PAGO]]","v":0}]
[210,"GASTOS","01 DE 01","CLARO","JUNIOR","GERAL","PAG","CRÉDITO À VISTA",0,44399,44428,42.99,42.99,{"$f":"tbldados[[#This Row],[TOTAL BRUTO]]-tbldados[[#This Row],[VALOR PAGO]]","v":0}]
[211,"GASTOS","01 DE 01","PGTO-GOLDPARTE1","JUNIOR","GERAL","PAG","CRÉDITO À VISTA",0,44426,44459,1395.51,1395.51,{"$f":"tbldados[[#This Row],[TOTAL BRUTO]]-tbldados[[#This Row],[VALOR PAGO]]","v":0}]
[212,"GASTOS","01 DE 01","PGTO-GOLDPARTE2","JUNIOR","GERAL","GOLD","CRÉDITO À VISTA",0,44427,44462,1178.83,1178.83,{"$f":"tbldados[[#This Row],[TOTAL BRUTO]]-tbldados[[#This Row],[VALOR PAGO]]","v":0}]
[213,"GASTOS","01 DE 01","PGTO-LATAMPARTE2","JUNIOR","GERAL","GOLD","CRÉDITO À VISTA",0,44428,44462,1321.1,1321.1,{"$f":"tbldados[[#This Row],[TOTAL BRUTO]]-tbldados[[#This Row],[VALOR PAGO]]","v":0}]
[214,"GASTOS","01 DE 01","PGTO-LATAM-PARTE2","JUNIOR","GERAL","LATAM","CRÉDITO À VISTA",0,44431,44464,1824.98,1824.98,{"$f":"tbldados[[#This Row],[TOTAL BRUTO]]-tbldados[[#This Row],[VALOR PAGO]]","v":0}]
[215,"GASTOS","01 DE 01","JUROS","JUNIOR","GERAL","ZERO","CRÉDITO À VISTA",0,44424,44434,38.18,38.18,{"$f":"tbldados[[#This Row],[TOTAL BRUTO]]-tbldados[[#This Row],[VALOR PAGO]]","v":0}]
[216,"GASTOS","01 DE 01","PGTO-ZERO","JUNIOR","GERAL","ZERO","CRÉDITO À VISTA",0,44433,44465,338.87,338.87,{"$f":"tbldados[[#This Row],[TOTAL BRUTO]]-tbldados[[#This Row],[VALOR PAGO]]","v":0}]
[217,"GASTOS","1 de 1","CORDÃO PARA O FONE","JUNIOR","GERAL","INTER","Crédito à Vista",0,44434,44454,39.49,39.49,{"$f":"tbldados[[#This Row],[TOTAL BRUTO]]-tbldados[[#This Row],[VALOR PAGO]]","v":0}]
[218,"GASTOS","1 de 1","NETFLIX","JUNIOR","GERAL","BMG","Crédito à Vista",0,44409,44464,46.9,46.9,{"$f":"tbldados[[#This Row],[TOTAL BRUTO]]-tbldados[[#This Row],[VALOR PAGO]]","v":0}]
[219,"GASTOS","1 de 1","GLOBOPLAY","JUNIOR","GERAL","BMG","Crédito à Vista",0,44429,44464,22.9,22.9,{"$f":"tbldados[[#This Row],[TOTAL BRUTO]]-tbldados[[#This Row],[VALOR PAGO]]","v":0}]
[220,"GASTOS","1 de 1","HBOMAX","JUNIOR","GERAL","BMG","Crédito à Vista",0,44440,44464,13.95,13.95,{"$f":"tbldados[[#This Row],[TOTAL BRUTO]]-tbldados[[#This Row],[VALOR PAGO]]","v":0}]
[221,"GASTOS","1 de 1","GASOLINA","JUNIOR","GERAL","C6","Crédito à Vista",0,44427,44440,20.78,20.78,{"$f":"tbldados[[#This Row],[TOTAL BRUTO]]-tbldados[[#This Row],[VALOR PAGO]]","v":0}]
[222,"GASTOS","1 de 1","GASOLINA","JUNIOR","GERAL","C6","Crédito à Vista",0,44429,44470,22.02,22.02,{"$f":"tbldados[[#This Row],[TOTAL BRUTO]]-tbldados[[#This Row],[VALOR PAGO]]","v":0}]
[223,"GASTOS","1 de 1","GASOLINA","JUNIOR","GERAL","C6","Crédito à Vista",0,44430,44470,15.03,15.03,{"$f":"tbldados[[#This Row],[TOTAL BRUTO]]-tbldados[[#This Row],[VALOR PAGO]]","v":0}]
[224,"GASTOS","1 de 1","GASOLINA","JUNIOR","GERAL","C6","Crédito à Vista",0,44431,44470,20.04,20.04,{"$f":"tbldados[[#This Row],[TOTAL BRUTO]]-tbldados[[#This Row],[VALOR PAGO]]","v":0}]
[225,"GASTOS","1 de 1","GASOLINA","JUNIOR","GERAL","C6","Crédito à Vista",0,44433,44470,19.77,19.77,{"$f":"tbldados[[#This Row],[TOTAL BRUTO]]-tbldados[[#This Row],[VALOR PAGO]]","v":0}]
[226,"PGTO","1 de 1","FREE","AGOSTO","RECARGAPAY","ZERO","Crédito à Vista",2.9899999999999999E-2,44435,44465,1207.8,1243.9100000000001,{"$f":"tbldados[[#This Row],[TOTAL BRUTO]]-tbldados[[#This Row],[VALOR PAGO]]","v":36.110000000000127}]
[227,"GASTOS","1 de 1","PGTO-FREEPARTE1","JUNIOR","RECARGAPAY","ZERO","Crédito à Vista",2.9899999999999999E-2,44435,44465,1207.8,1243.9100000000001,{"$f":"tbldados[[#This Row],[TOTAL BRUTO]]-tbldados[[#This Row],[VALOR PAGO]]","v":36.110000000000127}]

{"sheet":"DADOS","index":2,"n_rows":207,"n_cols":13,"rows_kept":207,"cut":false,"hidden":false,"merged":[]}
["ID","TIPO","Nº DE\n PARCELAS","DESCRIÇÃO","REFERENTE","APP","CARTÃO","FORMA","TAXA","DATA DA COMPRA","VENCIMENTO","VALOR PAGO","VALOR"]
[16,"GASTOS","01 DE 12","PAGAMANTO-MEUPAG","JUNIOR","GERAL","NUBANK_JUNIOR","CRÉDITO PARCELADO",0,44153,44178,null,101.98]
[17,"GASTOS","02 DE 12","PAGAMANTO-MEUPAG","JUNIOR","GERAL","NUBANK_JUNIOR","CRÉDITO PARCELADO",0,44153,44209,null,101.98]
[18,"GASTOS","03 DE 12","PAGAMANTO-MEUPAG","JUNIOR","GERAL","NUBANK_JUNIOR","CRÉDITO PARCELADO",0,44153,44240,null,101.98]
[19,"GASTOS","04 DE 12","PAGAMANTO-MEUPAG","JUNIOR","GERAL","NUBANK_JUNIOR","CRÉDITO PARCELADO",0,44153,44268,null,101.98]
[20,"GASTOS","05 DE 12","PAGAMANTO-MEUPAG","JUNIOR","GERAL","NUBANK_JUNIOR","CRÉDITO PARCELADO",0,44153,44299,null,101.98]
[21,"GASTOS","06 DE 12","PAGAMANTO-MEUPAG","JUNIOR","GERAL","NUBANK_JUNIOR","CRÉDITO PARCELADO",0,44153,44329,null,101.98]
[22,"GASTOS","07 DE 12","PAGAMANTO-MEUPAG","JUNIOR","GERAL","NUBANK_JUNIOR","CRÉDITO PARCELADO",0,44153,44360,null,101.98]
[23,"GASTOS","08 DE 12","PAGAMANTO-MEUPAG","JUNIOR","GERAL","NUBANK_JUNIOR","CRÉDITO PARCELADO",0,44153,44390,null,101.98]
[24,"GASTOS","09 DE 12","PAGAMANTO-MEUPAG","JUNIOR","GERAL","NUBANK_JUNIOR","CRÉDITO PARCELADO",0,44153,44421,null,101.98]
[25,"GASTOS","10 DE 12","PAGAMANTO-MEUPAG","JUNIOR","GERAL","NUBANK_JUNIOR","CRÉDITO PARCELADO",0,44153,44452,null,101.98]
[26,"GASTOS","11 DE 12","PAGAMANTO-MEUPAG","JUNIOR","GERAL","NUBANK_JUNIOR","CRÉDITO PARCELADO",0,44153,44482,null,101.98]
[27,"GASTOS","12 DE 12","PAGAMANTO-MEUPAG","JUNIOR","GERAL","NUBANK_JUNIOR","CRÉDITO PARCELADO",0,44153,44513,null,101.98]
[28,"GASTOS","01 DE 12","ANUIDADE","JUNIOR","GERAL","NCARD_JUNIOR","CRÉDITO PARCELADO",0,44197,44236,null,15.49]
[29,"GASTOS","02 DE 12","ANUIDADE","JUNIOR","GERAL","NCARD_JUNIOR","CRÉDITO PARCELADO",0,44197,44264,null,15.49]
[30,"GASTOS","03 DE 12","ANUIDADE","JUNIOR","GERAL","NCARD_JUNIOR","CRÉDITO PARCELADO",0,44197,44295,null,15.49]
[31,"GASTOS","04 DE 12","ANUIDADE","JUNIOR","GERAL","NCARD_JUNIOR","CRÉDITO PARCELADO",0,44197,44325,null,15.49]
[32,"GASTOS","05 DE 12","ANUIDADE","JUNIOR","GERAL","NCARD_JUNIOR","CRÉDITO PARCELADO",0,44197,44356,null,15.49]
[33,"GASTOS","06 DE 12","ANUIDADE","JUNIOR","GERAL","NCARD_JUNIOR","CRÉDITO PARCELADO",0,44197,44386,null,15.49]
[34,"GASTOS","07 DE 12","ANUIDADE","JUNIOR","GERAL","NCARD_JUNIOR","CRÉDITO PARCELADO",0,44197,44417,null,15.49]
[35,"GASTOS","08 DE 12","ANUIDADE","JUNIOR","GERAL","NCARD_JUNIOR","CRÉDITO PARCELADO",0,44197,44448,null,15.49]
[36,"GASTOS","09 DE 12","ANUIDADE","JUNIOR","GERAL","NCARD_JUNIOR","CRÉDITO PARCELADO",0,44197,44478,null,15.49]
[37,"GASTOS","10 DE 12","ANUIDADE","JUNIOR","GERAL","NCARD_JUNIOR","CRÉDITO PARCELADO",0,44197,44509,null,15.49]
[38,"GASTOS","11 DE 12","ANUIDADE","JUNIOR","GERAL","NCARD_JUNIOR","CRÉDITO PARCELADO",0,44197,44539,null,15.49]
[39,"GASTOS","12 DE 12","ANUIDADE","JUNIOR","GERAL","NCARD_JUNIOR","CRÉDITO PARCELADO",0,44197,44570,null,15.49]
[40,"GASTOS","01 DE 12","AMAZON","JUNIOR","GERAL","INTER_JUNIOR","CRÉDITO PARCELADO",0,44197,44211,null,9.9]
[41,"GASTOS","02 DE 12","AMAZON","JUNIOR","GERAL","INTER_JUNIOR","CRÉDITO PARCELADO",0,44197,44242,null,9.9]
[42,"GASTOS","03 DE 12","AMAZON","JUNIOR","GERAL","INTER_JUNIOR","CRÉDITO PARCELADO",0,44197,44270,null,9.9]
[43,"GASTOS","04 DE 12","AMAZON","JUNIOR","GERAL","INTER_JUNIOR","CRÉDITO PARCELADO",0,44197,44301,null,9.9]
[44,"GASTOS","05 DE 12","AMAZON","JUNIOR","GERAL","INTER_JUNIOR","CRÉDITO PARCELADO",0,44197,44331,null,9.9]
[45,"GASTOS","06 DE 12","AMAZON","JUNIOR","GERAL","INTER_JUNIOR","CRÉDITO PARCELADO",0,44197,44362,null,9.9]
[46,"GASTOS","07 DE 12","AMAZON","JUNIOR","GERAL","INTER_JUNIOR","CRÉDITO PARCELADO",0,44197,44392,null,9.9]
[47,"GASTOS","08 DE 12","AMAZON","JUNIOR","GERAL","INTER_JUNIOR","CRÉDITO PARCELADO",0,44197,44423,null,9.9]
[48,"GASTOS","09 DE 12","AMAZON","JUNIOR","GERAL","INTER_JUNIOR","CRÉDITO PARCELADO",0,44197,44454,null,9.9]
[49,"GASTOS","10 DE 12","AMAZON","JUNIOR","GERAL","INTER_JUNIOR","CRÉDITO PARCELADO",0,44197,44484,null,9.9]
[50,"GASTOS","11 DE 12","AMAZON","JUNIOR","GERAL","INTER_JUNIOR","CRÉDITO PARCELADO",0,44197,44515,null,9.9]
[51,"GASTOS","12 DE 12","AMAZON","JUNIOR","GERAL","INTER_JUNIOR","CRÉDITO PARCELADO",0,44197,44545,null,9.9]
[52,"GASTOS","01 DE 10","FOGÃO","JUNIOR","GERAL","CLICK_JUNIOR","CRÉDITO PARCELADO",0,44204,44244,null,77]
[53,"GASTOS","02 DE 10","FOGÃO","JUNIOR","GERAL","CLICK_JUNIOR","CRÉDITO PARCELADO",0,44204,44272,null,77]
[54,"GASTOS","03 DE 10","FOGÃO","JUNIOR","GERAL","CLICK_JUNIOR","CRÉDITO PARCELADO",0,44204,44303,null,77]
[55,"GASTOS","04 DE 10","FOGÃO","JUNIOR","GERAL","CLICK_JUNIOR","CRÉDITO PARCELADO",0,44204,44333,null,77]
[56,"GASTOS","05 DE 10","FOGÃO","JUNIOR","GERAL","CLICK_JUNIOR","CRÉDITO PARCELADO",0,44204,44364,null,77]
[57,"GASTOS","06 DE 10","FOGÃO","JUNIOR","GERAL","CLICK_JUNIOR","CRÉDITO PARCELADO",0,44204,44394,null,77]
[58,"GASTOS","07 DE 10","FOGÃO","JUNIOR","GERAL","CLICK_JUNIOR","CRÉDITO PARCELADO",0,44204,44425,null,77]
[59,"GASTOS","08 DE 10","FOGÃO","JUNIOR","GERAL","CLICK_JUNIOR","CRÉDITO PARCELADO",0,44204,44456,null,77]
[60,"GASTOS","09 DE 10","FOGÃO","JUNIOR","GERAL","CLICK_JUNIOR","CRÉDITO PARCELADO",0,44204,44486,null,77]
[61,"GASTOS","10 DE 10","FOGÃO","JUNIOR","GERAL","CLICK_JUNIOR","CRÉDITO PARCELADO",0,44204,44517,null,77]
[62,"GASTOS","01 DE 10","TINTA","JUNIOR","GERAL","CLICK_JUNIOR","CRÉDITO À VISTA",0,44205,44244,null,12.39]
[63,"GASTOS","02 DE 10","TINTA","JUNIOR","GERAL","CLICK_JUNIOR","CRÉDITO À VISTA",0,44205,44272,null,12.39]
[64,"GASTOS","03 DE 10","TINTA","JUNIOR","GERAL","CLICK_JUNIOR","CRÉDITO À VISTA",0,44205,44303,null,12.39]
[65,"GASTOS","04 DE 10","TINTA","JUNIOR","GERAL","CLICK_JUNIOR","CRÉDITO À VISTA",0,44205,44333,null,12.39]
[66,"GASTOS","05 DE 10","TINTA","JUNIOR","GERAL","CLICK_JUNIOR","CRÉDITO À VISTA",0,44205,44364,null,12.39]
[67,"GASTOS","06 DE 10","TINTA","JUNIOR","GERAL","CLICK_JUNIOR","CRÉDITO À VISTA",0,44205,44394,null,12.39]
[68,"GASTOS","07 DE 10","TINTA","JUNIOR","GERAL","CLICK_JUNIOR","CRÉDITO À VISTA",0,44205,44425,null,12.39]
[69,"GASTOS","08 DE 10","TINTA","JUNIOR","GERAL","CLICK_JUNIOR","CRÉDITO À VISTA",0,44205,44456,null,12.39]
[70,"GASTOS","09 DE 10","TINTA","JUNIOR","GERAL","CLICK_JUNIOR","CRÉDITO À VISTA",0,44205,44486,null,12.39]
[71,"GASTOS","10 DE 10","TINTA","JUNIOR","GERAL","CLICK_JUNIOR","CRÉDITO À VISTA",0,44205,44517,null,12.39]
[72,"GASTOS","01 DE 10","FONE DE OUVIDO","JUNIOR","GERAL","MELIUZ_JUNIOR","CRÉDITO PARCELADO",0,44213,44228,null,25.09]
[73,"GASTOS","02 DE 10","FONE DE OUVIDO","JUNIOR","GERAL","MELIUZ_JUNIOR","CRÉDITO PARCELADO",0,44213,44256,null,25.09]
[74,"GASTOS","03 DE 10","FONE DE OUVIDO","JUNIOR","GERAL","MELIUZ_JUNIOR","CRÉDITO PARCELADO",0,44213,44287,null,25.09]
[75,"GASTOS","04 DE 10","FONE DE OUVIDO","JUNIOR","GERAL","MELIUZ_JUNIOR","CRÉDITO PARCELADO",0,44213,44317,null,25.09]
[76,"GASTOS","05 DE 10","FONE DE OUVIDO","JUNIOR","GERAL","MELIUZ_JUNIOR","CRÉDITO PARCELADO",0,44213,44348,null,25.09]
[77,"GASTOS","06 DE 10","FONE DE OUVIDO","JUNIOR","GERAL","MELIUZ_JUNIOR","CRÉDITO PARCELADO",0,44213,44378,null,25.09]
[78,"GASTOS","07 DE 10","FONE DE OUVIDO","JUNIOR","GERAL","MELIUZ_JUNIOR","CRÉDITO PARCELADO",0,44213,44409,null,25.09]
[79,"GASTOS","08 DE 10","FONE DE OUVIDO","JUNIOR","GERAL","MELIUZ_JUNIOR","CRÉDITO PARCELADO",0,44213,44440,null,25.09]
[80,"GASTOS","09 DE 10","FONE DE OUVIDO","JUNIOR","GERAL","MELIUZ_JUNIOR","CRÉDITO PARCELADO",0,44213,44470,null,25.09]
[81,"GASTOS","10 DE 10","FONE DE OUVIDO","JUNIOR","GERAL","MELIUZ_JUNIOR","CRÉDITO PARCELADO",0,44213,44501,null,25.09]
[82,"GASTOS","01 DE 07","CELULAR","JUNIOR","GERAL","LATAM_JUNIOR","CRÉDITO PARCELADO",0,44250,44280,null,105.44]
[83,"GASTOS","02 DE 07","CELULAR","JUNIOR","GERAL","LATAM_JUNIOR","CRÉDITO PARCELADO",0,44250,44311,null,105.44]
[84,"GASTOS","03 DE 07","CELULAR","JUNIOR","GERAL","LATAM_JUNIOR","CRÉDITO PARCELADO",0,44250,44341,null,105.44]
[85,"GASTOS","04 DE 07","CELULAR","JUNIOR","GERAL","LATAM_JUNIOR","CRÉDITO PARCELADO",0,44250,44372,null,105.44]
[86,"GASTOS","05 DE 07","CELULAR","JUNIOR","GERAL","LATAM_JUNIOR","CRÉDITO PARCELADO",0,44250,44402,null,105.44]
[87,"GASTOS","06 DE 07","CELULAR","JUNIOR","GERAL","LATAM_JUNIOR","CRÉDITO PARCELADO",0,44250,44433,null,105.44]
[88,"GASTOS","07 DE 07","CELULAR","JUNIOR","GERAL","LATAM_JUNIOR","CRÉDITO PARCELADO",0,44250,44464,null,105.44]
[89,"GASTOS","01 DE 03","ROUPAS","JUNIOR","GERAL","CLICK_JUNIOR","CRÉDITO PARCELADO",0,44301,44333,null,111.66]
[90,"GASTOS","02 DE 03","ROUPAS","JUNIOR","GERAL","CLICK_JUNIOR","CRÉDITO PARCELADO",0,44301,44364,null,111.66]
[91,"GASTOS","03 DE 03","ROUPAS","JUNIOR","GERAL","CLICK_JUNIOR","CRÉDITO PARCELADO",0,44301,44394,null,111.66]
[92,"GASTOS","01 DE 06","GARRAFAS","JUNIOR","GERAL","INTER_JUNIOR","CRÉDITO PARCELADO",0,44328,44331,null,36.450000000000003]
[93,"GASTOS","02 DE 06","GARRAFAS","JUNIOR","GERAL","INTER_JUNIOR","CRÉDITO PARCELADO",0,44328,44362,null,36.450000000000003]
[94,"GASTOS","03 DE 06","GARRAFAS","JUNIOR","GERAL","INTER_JUNIOR","CRÉDITO PARCELADO",0,44328,44392,null,36.450000000000003]
[95,"GASTOS","04 DE 06","GARRAFAS","JUNIOR","GERAL","INTER_JUNIOR","CRÉDITO PARCELADO",0,44328,44423,null,36.44]
[96,"GASTOS","05 DE 06","GARRAFAS","JUNIOR","GERAL","INTER_JUNIOR","CRÉDITO PARCELADO",0,44328,44454,null,36.44]
[97,"GASTOS","06 DE 06","GARRAFAS","JUNIOR","GERAL","INTER_JUNIOR","CRÉDITO PARCELADO",0,44328,44484,null,36.450000000000003]
[98,"GASTOS","01 DE 10","NOTEBOOK","JUNIOR","GERAL","INTER_JUNIOR","CRÉDITO PARCELADO",0,44330,44362,null,349.9]
[99,"GASTOS","02 DE 10","NOTEBOOK","JUNIOR","GERAL","INTER_JUNIOR","CRÉDITO PARCELADO",0,44330,44392,null,349.9]
[100,"GASTOS","03 DE 10","NOTEBOOK","JUNIOR","GERAL","INTER_JUNIOR","CRÉDITO PARCELADO",0,44330,44423,null,349.9]
[101,"GASTOS","04 DE 10","NOTEBOOK","JUNIOR","GERAL","INTER_JUNIOR","CRÉDITO PARCELADO",0,44330,44454,null,349.9]
[102,"GASTOS","05 DE 10","NOTEBOOK","JUNIOR","GERAL","INTER_JUNIOR","CRÉDITO PARCELADO",0,44330,44484,null,349.9]
[103,"GASTOS","06 DE 10","NOTEBOOK","JUNIOR","GERAL","INTER_JUNIOR","CRÉDITO PARCELADO",0,44330,44515,null,349.9]
[104,"GASTOS","07 DE 10","NOTEBOOK","JUNIOR","GERAL","INTER_JUNIOR","CRÉDITO PARCELADO",0,44330,44545,null,349.9]
[105,"GASTOS","08 DE 10","NOTEBOOK","JUNIOR","GERAL","INTER_JUNIOR","CRÉDITO PARCELADO",0,44330,44576,null,349.9]
[106,"GASTOS","09 DE 10","NOTEBOOK","JUNIOR","GERAL","INTER_JUNIOR","CRÉDITO PARCELADO",0,44330,44607,null,349.9]
[107,"GASTOS","10 DE 10","NOTEBOOK","JUNIOR","GERAL","INTER_JUNIOR","CRÉDITO PARCELADO",0,44330,44635,null,349.9]
[108,"GASTOS","01 DE 02","FARMACIA","JUNIOR","GERAL","INTER_JUNIOR","CRÉDITO PARCELADO",0,44341,44362,null,47.48]
[109,"GASTOS","02 DE 02","FARMACIA","JUNIOR","GERAL","INTER_JUNIOR","CRÉDITO PARCELADO",0,44341,44392,null,47.48]
[110,"GASTOS","01 DE 03","SUPERMERCADO","JUNIOR","GERAL","INTER_JUNIOR","CRÉDITO À VISTA",0,44343,44362,null,64.8]
[111,"GASTOS","02 DE 03","SUPERMERCADO","JUNIOR","GERAL","INTER_JUNIOR","CRÉDITO À VISTA",0,44343,44392,null,64.8]
[112,"GASTOS","03 DE 03","SUPERMERCADO","JUNIOR","GERAL","INTER_JUNIOR","CRÉDITO À VISTA",0,44343,44423,null,64.8]
[113,"GASTOS","01 DE 02","FARMACIA","JUNIOR","GERAL","NUBANK_JUNIOR","CRÉDITO PARCELADO",0,44345,44360,null,35.96]
[114,"GASTOS","02 DE 02","FARMACIA","JUNIOR","GERAL","NUBANK_JUNIOR","CRÉDITO PARCELADO",0,44345,44390,null,35.96]
[115,"GASTOS","01 DE 01","PAGAMENTO-INTER","JUNIOR","GERAL","MELIUZ_JUNIOR","CRÉDITO À VISTA",0,44347,44378,null,264.8]
[116,"GASTOS","01 DE 01","PAGAMENTO-INTER","JUNIOR","GERAL","AZUL_JUNIOR","CRÉDITO À VISTA",0,44351,44383,null,648]
[117,"GASTOS","01 DE 01","VOKERE","JUNIOR","GERAL","INTER_JUNIOR","CRÉDITO À VISTA",0,44352,44362,null,32]
[118,"GASTOS","01 DE 01","PAGAMENTO-PAGMAE","JUNIOR","GERAL","INTER_JUNIOR","CRÉDITO À VISTA",0,44354,44362,null,2664.88]
[119,"GASTOS","01 DE 01","COMBUSTIVEL","JUNIOR","GERAL","NUBANK_JUNIOR","CRÉDITO À VISTA",0,44355,44390,null,20.65]
[120,"GASTOS","01 DE 01","PAGAMENTO-NCARD","JUNIOR","GERAL","AZUL_JUNIOR","CRÉDITO À VISTA",0,44356,44383,null,835]
[121,"GASTOS","01 DE 01","CERVEJA","JUNIOR","GERAL","MELIUZ_JUNIOR","CRÉDITO À VISTA",0,44357,44378,null,8]
[122,"GASTOS","01 DE 01","PAGAMENTO-NCARD","JUNIOR","GERAL","AZUL_JUNIOR","CRÉDITO À VISTA",0,44357,44383,null,664.5]
[123,"GASTOS","01 DE 01","MATERIAIS P/ CASA","JUNIOR","GERAL","MELIUZ_JUNIOR","CRÉDITO À VISTA",0,44358,44378,null,86]
[124,"GASTOS","01 DE 03","SUPERMERCADO-CERVEJA","JUNIOR","GERAL","MELIUZ_JUNIOR","CRÉDITO PARCELADO",0,44358,44378,null,35.130000000000003]
[125,"GASTOS","02 DE 03","SUPERMERCADO-CERVEJA","JUNIOR","GERAL","MELIUZ_JUNIOR","CRÉDITO PARCELADO",0,44358,44409,null,35.130000000000003]
[126,"GASTOS","03 DE 03","SUPERMERCADO-CERVEJA","JUNIOR","GERAL","MELIUZ_JUNIOR","CRÉDITO PARCELADO",0,44358,44440,null,35.130000000000003]
[127,"GASTOS","01 DE 01","PAGAMENTO-LUCAS","JUNIOR","GERAL","NCARD_JUNIOR","CRÉDITO À VISTA",0,44358,44386,null,774.53]
[128,"GASTOS","01 DE 01","SUPERMERCADO","JUNIOR","GERAL","MELIUZ_JUNIOR","CRÉDITO À VISTA",0,44359,44378,null,31.93]
[129,"GASTOS","01 DE 01","LANCHE-PIZZA","JUNIOR","GERAL","MELIUZ_JUNIOR","CRÉDITO À VISTA",0,44359,44378,null,20]
[130,"GASTOS","01 DE 01","PIZZA","JUNIOR","GERAL","NUBANK_JUNIOR","CRÉDITO À VISTA",0,44359,44390,null,39]
[131,"GASTOS","01 DE 01","PAGAMENTO-CLICK","JUNIOR","GERAL","NUBANK_JUNIOR","CRÉDITO À VISTA",0,44364,44390,null,1713.15]
[132,"GASTOS","01 DE 01","PAGAMENTO-PAGJR","JUNIOR","GERAL","CLICK_JUNIOR","CRÉDITO À VISTA",0,44364,44394,null,1740.53]
[133,"GASTOS","01 DE 01","PAGAMENTOPAGJR2","JUNIOR","GERAL","PAG_JUNIOR","CRÉDITO À VISTA",0,44365,44397,null,509.29]
[134,"GASTOS","01 DE 01","PAGAMENTO-GOLDPARTE1","JUNIOR","GERAL","PAG_JUNIOR","CRÉDITO À VISTA",0,44368,44397,null,1545.9]
[135,"GASTOS","01 DE 01","TELEFONE-FATURA","JUNIOR","GERAL","PAG_JUNIOR","CRÉDITO À VISTA",0,44369,44397,null,43]
[136,"GASTOS","01 DE 01","PAGAMANTO-GOLDPART2","JUNIOR","GERAL","GOLD_JUNIOR","CRÉDITO À VISTA",0,44370,44400,null,1029.9000000000001]
[137,"GASTOS","01 DE 01","PAGAMENTO-PASS","JUNIOR","GERAL","LATAM_JUNIOR","CRÉDITO À VISTA",0,44372,44402,null,1355.35]
[138,"GASTOS","01 DE 01","PAGAMENTO-INTER-ZERO","JUNIOR","GERAL","NCARD_JUNIOR","CRÉDITO À VISTA",0,44375,44386,null,786.17]
[139,"GASTOS","01 DE 01","PAGAMENTO-INTER-ZERO2","JUNIOR","GERAL","NUBANK_JUNIOR","CRÉDITO À VISTA",0,44375,44390,null,786.17]
[140,"GASTOS","01 DE 06","COPO STANLEY","JUNIOR","GERAL","NUBANK_JUNIOR","CRÉDITO PARCELADO",0,44376,44390,null,46.67]
[141,"GASTOS","02 DE 06","COPO STANLEY","JUNIOR","GERAL","NUBANK_JUNIOR","CRÉDITO PARCELADO",0,44376,44421,null,46.67]
[142,"GASTOS","03 DE 06","COPO STANLEY","JUNIOR","GERAL","NUBANK_JUNIOR","CRÉDITO PARCELADO",0,44376,44452,null,46.67]
[143,"GASTOS","04 DE 06","COPO STANLEY","JUNIOR","GERAL","NUBANK_JUNIOR","CRÉDITO PARCELADO",0,44376,44482,null,46.67]
[144,"GASTOS","05 DE 06","COPO STANLEY","JUNIOR","GERAL","NUBANK_JUNIOR","CRÉDITO PARCELADO",0,44376,44513,null,46.67]
[145,"GASTOS","06 DE 06","COPO STANLEY","JUNIOR","GERAL","NUBANK_JUNIOR","CRÉDITO PARCELADO",0,44376,44543,null,46.67]
[146,"GASTOS","01 DE 03","SUPERMERCADO","JUNIOR","GERAL","NUBANK_JUNIOR","CRÉDITO PARCELADO",0,44376,44390,null,75]
[147,"GASTOS","02 DE 03","SUPERMERCADO","JUNIOR","GERAL","NUBANK_JUNIOR","CRÉDITO PARCELADO",0,44376,44421,null,75]
[148,"GASTOS","03 DE 03","SUPERMERCADO","JUNIOR","GERAL","NUBANK_JUNIOR","CRÉDITO PARCELADO",0,44376,44452,null,75]
[149,"GASTOS","01 DE 01","CERVEJA","JUNIOR","GERAL","INTER_JUNIOR","CRÉDITO À VISTA",0,44376,44392,null,31.08]
[150,"GASTOS","01 DE 01","PAGAMENTOPICPAY-SANTANDER","JUNIOR","GERAL","ZERO_JUNIOR","CRÉDITO À VISTA",0,44378,44403,null,1535.22]
[151,"GASTOS","01 DE 01","LANCHE","JUNIOR","GERAL","PAG_JUNIOR","CRÉDITO À VISTA",0,44379,44397,null,58]
[152,"GASTOS","01 DE 01","PAGAMENTO-RPAY-AZUL8403","JUNIOR","GERAL","LATAM_JUNIOR","CRÉDITO À VISTA",0,44381,44402,null,711.66]
[153,"GASTOS","01 DE 01","PAGAMENTOPAGMAE-RPAY","JUNIOR","GERAL","AZUL_JUNIOR","CRÉDITO À VISTA",0,44382,44414,null,695.66]
[154,"GASTOS","01 DE 01","PAGAMENTOS-PAGMAE2","JUNIOR","GERAL","AZUL_JUNIOR","CRÉDITO À VISTA",0,44384,44414,null,1440]
[155,"GASTOS","01 DE 01","PAGAMENTO-NUJRPARTE1","JUNIOR","GERAL","NCARD_JUNIOR","CRÉDITO À VISTA",0,44389,44417,null,1580.9]
[156,"GASTOS","01 DE 01","PAGAMENTO-NUJRPARTE2","JUNIOR","GERAL","LATAM_JUNIOR","CRÉDITO À VISTA",0,44389,44402,null,1207.04]
[157,"GASTOS","01 DE 01","PAGAMENTO-INTERPARTE1","JUNIOR","GERAL","NUBANK_JUNIOR","CRÉDITO À VISTA",0,44389,44421,null,2159.63]
[158,"GASTOS","01 DE 01","PAGAMENTO-INTER","JUNIOR","GERAL","INTER_JUNIOR","CRÉDITO À VISTA",0,44392,44423,null,205.98]
[159,"GASTOS","01 DE 01","PAGAMENTO-INTER","JUNIOR","GERAL","MELIUZ_JUNIOR","CRÉDITO À VISTA",0,44392,44409,null,321.33]
[160,"GASTOS","01 DE 01","PAGAMENTO-CLICK","JUNIOR","GERAL","INTER_JUNIOR","CRÉDITO À VISTA",0,44392,44423,null,1999.65]
[161,"GASTOS","01 DE 01","PAGAMENTO-PAGPART1","JUNIOR","GERAL","CLICK_JUNIOR","CRÉDITO À VISTA",0,44393,44425,null,1942.39]
[162,"GASTOS","01 DE 01","PAGAMENTO-PAGPART2","JUNIOR","GERAL","INTER_JUNIOR","CRÉDITO À VISTA",0,44393,44423,null,139.44999999999999]
[163,"GASTOS","01 DE 01","PAGAMENTO-PAGPART3","JUNIOR","GERAL","NUBANK_JUNIOR","CRÉDITO À VISTA",0,44393,44421,null,139.44999999999999]
[164,"GASTOS","01 DE 01","PAGAMENTOGOLG-PAG","JUNIOR","GERAL","PAG_JUNIOR","CRÉDITO À VISTA",0,44396,44428,null,2059.8000000000002]
[165,"GASTOS","01 DE 01","PAGAMENTOGOLG-GOLD","JUNIOR","GERAL","GOLD_JUNIOR","CRÉDITO À VISTA",0,44397,44431,null,489.25]
[166,"GASTOS","01 DE 01","PAGAMENTOITAU-LATAM","JUNIOR","GERAL","LATAM_JUNIOR","CRÉDITO À VISTA",0,44399,44433,null,1643.82]
[167,"GASTOS","01 DE 01","PAGAMENTOITAU-LATAM","JUNIOR","GERAL","GOLD_JUNIOR","CRÉDITO À VISTA",0,44398,44431,null,2010.36]
[168,"GASTOS","01 DE 01","PGTOZERO-LATAM","JUNIOR","GERAL","LATAM_JUNIOR","CRÉDITO À VISTA",0,44402,44433,null,1374.81]
[169,"GASTOS","01 DE 02","SUPERMERCADO","JUNIOR","GERAL","LATAM_JUNIOR","CRÉDITO PARCELADO",0,44402,44433,null,46]
[170,"GASTOS","02 DE 02","SUPERMERCADO","JUNIOR","GERAL","LATAM_JUNIOR","CRÉDITO PARCELADO",0,44402,44464,null,46]
[171,"GASTOS","01 DE 01","JUNIOR","PGTO","GERAL","ZERO_JUNIOR","CRÉDITO À VISTA",0,44404,44434,null,1544.85]
[172,"GASTOS","01 DE 01","NETFLIX","JUNIOR","GERAL","ZERO_JUNIOR","CRÉDITO À VISTA",0,44402,44434,null,45.9]
[173,"GASTOS","01 DE 01","JUROS","JUNIOR","GERAL","ZERO_JUNIOR","CRÉDITO À VISTA",0,44409,44434,null,0.1]
[174,"GASTOS","01 DE 12","PGTOPAGMAE","JUNIOR","GERAL","NUBANK_JUNIOR","CRÉDITO PARCELADO",0,44184,44209,null,114.96]
[175,"GASTOS","02 DE 12","PGTOPAGMAE","JUNIOR","GERAL","NUBANK_JUNIOR","CRÉDITO PARCELADO",0,44184,44240,null,114.96]
[176,"GASTOS","03 DE 12","PGTOPAGMAE","JUNIOR","GERAL","NUBANK_JUNIOR","CRÉDITO PARCELADO",0,44184,44268,null,114.96]
[177,"GASTOS","04 DE 12","PGTOPAGMAE","JUNIOR","GERAL","NUBANK_JUNIOR","CRÉDITO PARCELADO",0,44184,44299,null,114.96]
[178,"GASTOS","05 DE 12","PGTOPAGMAE","JUNIOR","GERAL","NUBANK_JUNIOR","CRÉDITO PARCELADO",0,44184,44329,null,114.96]
[179,"GASTOS","06 DE 12","PGTOPAGMAE","JUNIOR","GERAL","NUBANK_JUNIOR","CRÉDITO PARCELADO",0,44184,44360,null,114.96]
[180,"GASTOS","07 DE 12","PGTOPAGMAE","JUNIOR","GERAL","NUBANK_JUNIOR","CRÉDITO PARCELADO",0,44184,44390,null,114.96]
[181,"GASTOS","08 DE 12","PGTOPAGMAE","JUNIOR","GERAL","NUBANK_JUNIOR","CRÉDITO PARCELADO",0,44184,44421,null,114.96]
[182,"GASTOS","09 DE 12","PGTOPAGMAE","JUNIOR","GERAL","NUBANK_JUNIOR","CRÉDITO PARCELADO",0,44184,44452,null,114.96]
[183,"GASTOS","10 DE 12","PGTOPAGMAE","JUNIOR","GERAL","NUBANK_JUNIOR","CRÉDITO PARCELADO",0,44184,44482,null,114.96]
[184,"GASTOS","11 DE 12","PGTOPAGMAE","JUNIOR","GERAL","NUBANK_JUNIOR","CRÉDITO PARCELADO",0,44184,44513,null,114.96]
[185,"GASTOS","12 DE 12","PGTOPAGMAE","JUNIOR","GERAL","NUBANK_JUNIOR","CRÉDITO PARCELADO",0,44184,44543,null,114.96]
[186,"GASTOS","01 DE 01","RECARGA","JUNIOR","GERAL","NUBANK_JUNIOR","CRÉDITO À VISTA",0,44389,44421,null,30]
[187,"GASTOS","01 DE 01","CERVEJA","JUNIOR","GERAL","INTER_JUNIOR","CRÉDITO À VISTA",0,44408,44423,null,35]
[188,"GASTOS","01 DE 02","MOTO","JUNIOR","GERAL","INTER_JUNIOR","CRÉDITO PARCELADO",0,44377,44392,null,94]
[189,"GASTOS","02 DE 02","MOTO","JUNIOR","GERAL","INTER_JUNIOR","CRÉDITO PARCELADO",0,44377,44423,null,94]
[190,"GASTOS","01 DE 02","MOUSE","JUNIOR","GERAL","MELIUZ_JUNIOR","CRÉDITO PARCELADO",0,44405,44440,null,30.16]
[191,"GASTOS","02 DE 02","MOUSE","JUNIOR","GERAL","MELIUZ_JUNIOR","CRÉDITO PARCELADO",0,44405,44470,null,30.16]
[192,"GASTOS","01 DE 01","JANTA","JUNIOR","GERAL","MELIUZ_JUNIOR","CRÉDITO À VISTA",0,44398,44440,null,37]
[193,"GASTOS","01 DE 01","JANTA","JUNIOR","GERAL","MELIUZ_JUNIOR","CRÉDITO À VISTA",0,44396,44409,null,32]
[194,"GASTOS","01 DE 01","PLANO PRIME JUROS","JUNIOR","GERAL","INTER_JUNIOR","CRÉDITO À VISTA",0,44412,44423,null,19.899999999999999]
[195,"GASTOS","01 DE 01","PGTO-AZULCARD","JUNIOR","GERAL","FREE_JUNIOR","CRÉDITO À VISTA",0,44412,44438,null,1490]
[196,"GASTOS","01 DE 01","PGTO-NCARD-PARTE1","JUNIOR","GERAL","AZUL_JUNIOR","CRÉDITO À VISTA",0,44413,44445,null,659.34]
[197,"GASTOS","01 DE 01","PGTO-NCARDPARTE2","JUNIOR","GERAL","AZUL_JUNIOR","CRÉDITO À VISTA",0,44415,44445,null,972.48]
[198,"GASTOS","01 DE 01","PGTO-PAGMAE","JUNIOR","GERAL","AZUL_JUNIOR","CRÉDITO À VISTA",0,44415,44445,null,517.73]
[199,"GASTOS","01 DE 01","PGTO-PAGMAE","JUNIOR","GERAL","NUBANK_JUNIOR","CRÉDITO À VISTA",0,44417,44452,null,1562.77]
[200,"GASTOS","01 DE 01","JANTA","JUNIOR","GERAL","INTER_JUNIOR","CRÉDITO À VISTA",0,44418,44454,null,32]
[201,"GASTOS","01 DE 01","CERVEJA","JUNIOR","GERAL","INTER_JUNIOR","CRÉDITO À VISTA",0,44421,44454,null,30]
[202,"GASTOS","01 DE 01","PGTO-INTER","JUNIOR","GERAL","INTER_JUNIOR","CRÉDITO À VISTA",0,44423,44454,null,930.9]
[203,"GASTOS","01 DE 01","PGTO-CLICKPARTE1","JUNIOR","GERAL","INTER_JUNIOR","CRÉDITO À VISTA",0,44424,44454,null,1609.42]
[204,"GASTOS","01 DE 01","PGTO-CLICKPARTE2","JUNIOR","GERAL","CLICK_JUNIOR","CRÉDITO À VISTA",0,44424,44456,null,483.13]
[205,"GASTOS","01 DE 01","PGTO-PAGPARTE1","JUNIOR","GERAL","CLICK_JUNIOR","CRÉDITO À VISTA",0,44425,44456,null,1548.17]
[206,"GASTOS","01 DE 01","PGTO-PAGPARTE2","JUNIOR","GERAL","PAG_JUNIOR","CRÉDITO À VISTA",0,44425,44459,null,572.73]
[207,"GASTOS","01 DE 03","FONE DE OUVIDO","JUNIOR","GERAL","LATAM_JUNIOR","CRÉDITO PARCELADO",0,44378,44402,null,33.46]
[208,"GASTOS","02 DE 03","FONE DE OUVIDO","JUNIOR","GERAL","LATAM_JUNIOR","CRÉDITO PARCELADO",0,44378,44433,null,33.46]
[209,"GASTOS","03 DE 03","FONE DE OUVIDO","JUNIOR","GERAL","LATAM_JUNIOR","CRÉDITO PARCELADO",0,44378,44464,null,33.46]
[210,"GASTOS","01 DE 01","CLARO","JUNIOR","GERAL","PAG_JUNIOR","CRÉDITO À VISTA",0,44399,44428,null,42.99]
[211,"GASTOS","01 DE 01","PGTO-GOLDPARTE1","JUNIOR","GERAL","PAG_JUNIOR","CRÉDITO À VISTA",0,44426,44459,null,1395.51]
[212,"GASTOS","01 DE 01","PGTO-GOLDPARTE2","JUNIOR","GERAL","GOLD_JUNIOR","CRÉDITO À VISTA",0,44427,44462,null,1178.83]
[213,"GASTOS","01 DE 01","PGTO-LATAMPARTE2","JUNIOR","GERAL","GOLD_JUNIOR","CRÉDITO À VISTA",0,44428,44462,null,1321.1]
[214,"GASTOS","01 DE 01","PGTO-LATAM-PARTE2","JUNIOR","GERAL","LATAM_JUNIOR","CRÉDITO À VISTA",0,44431,44464,null,1824.98]
[215,"GASTOS","01 DE 01","JUROS","JUNIOR","GERAL","ZERO_JUNIOR","CRÉDITO À VISTA",0,44424,44434,null,38.18]
[216,"GASTOS","01 DE 01","PGTO-ZERO","JUNIOR","GERAL","ZERO_JUNIOR","CRÉDITO À VISTA",0,44433,44465,null,338.87]
[44405,"JUNIOR","MOUSE","MELIUZ_JUNIOR","CRÉDITO PARCELADO",44440,"01 DE 02",30.16]
[44405,"JUNIOR","MOUSE","MELIUZ_JUNIOR","CRÉDITO PARCELADO",44470,"02 DE 02",30.16]
[44405,"JUNIOR","MOUSE","MELIUZ_JUNIOR","CRÉDITO PARCELADO",44440,"01 DE 02",30.16]
[44405,"JUNIOR","MOUSE","MELIUZ_JUNIOR","CRÉDITO PARCELADO",44470,"02 DE 02",30.16]
[44405,"JUNIOR","MOUSE","MELIUZ_JUNIOR","CRÉDITO PARCELADO",44440,"01 DE 02",30.16]

{"sheet":"AUXILIAR","index":3,"n_rows":20,"n_cols":10,"rows_kept":20,"cut":false,"hidden":false,"merged":[]}
[]
[]
[null,"CARTÕES","VENCIMENTO","LIMITE","GASTOS"]
[null,"AZUL",6,2150,2150]
[null,"BMG",25,280,"NÃO USAR"]
[null,"CLICK",17,2300,2300]
[null,"C6",1,130,"NÃO USAR"]
[null,"FREE",30,1490,1490]
[null,"GOLD",23,2500,2500]
[null,"INTER",15,6500,3000,null,null,null,null,"PGTO"]
[null,"MELIUZ",1,950,"NÃO USAR",null,null,null,null,"GASTOS"]
[null,"NCARD",9,1600,1600]
[null,"NUBANK",13,4350,2500]
[null,"LATAM",25,3800,3800]
[null,"PAG",20,2000,2000]
[null,"PAN",13,560,"NÃO USAR"]
[null,"ZERO",26,1600,1600]
[]
[]
[null,null,"TOTAL",{"$f":"SUM(D4:D17)","v":30210}]

{"sheet":"relatório","index":4,"n_rows":9,"n_cols":9,"rows_kept":9,"cut":false,"hidden":false,"merged":[[3,1,3,3],[4,1,4,3],[5,1,5,3],[6,1,6,3]]}
["RELATÓRIO DE RECEBIMENTOS"]
[null,null,null,null,null,null,null,null,"RELATÓRIO EMETIDO EM:"]
[null,null,null,null,null,null,null,null,"HORA:"]
[null,"PARÂMETROS DO RELATÓRIO:"]
[null,"BANDEIRAS:",null,null,"Todas",null,null,null,"TOTAL BRUTO:"]
[null,"FORMAS DE PAGEMENTOS:",null,null,"Todas",null,null,null,"TAXAS:"]
[null,"PERÍODO DO RELATÓRIO:",null,null,null,null,null,null,"TOTAL LÍQUIDO:"]
[]
[null,"PARCELA","CARTÃO","FORMA","DESCRIÇÃO","JUROS","DATA DE\nVENDA","VALOR PAGO","TOTAL BRUTO"]

{"sheet":"ANALISE","index":5,"n_rows":21,"n_cols":22,"rows_kept":21,"cut":false,"hidden":false,"merged":[]}
[]
[null,"ANALISE DE PAGAMENTO MENSAL -",null,null,{"$f":"INDEX({\"JANEIRO\";\"FEVEREIRO\";\"MARÇO\";\"ABRIL\";\"MAIO\";\"JUNHO\";\"JULHO\";\"AGOSTO\";\"SETEMBRO\";\"OUTUBRO\";\"NOVEMBRO\";\"DEZEMBRO\"},D5)","v":"AGOSTO"},null,null,null,null,null,"HAVER",{"$f":"SUM(E11:E20)-C6","v":-282.20000000000005}]
[null,null,null,null,null,null,null,null,null,"SIMULADOR"]
[null,"CARTÃO","FREE","TIPO","PGTO","JUNIOR",null,null,null,"LIMTE",{"$f":"VLOOKUP(C4,TBLVENLIM[],4,0)","v":1490},"TAXA",2.9899999999999999E-2,null,"VALOR",1207.8,null,null,null,null,"SIMULADOR"]
[null,"VENCIMENTO",{"$f":"DATE(YEAR(TODAY()),D5,VLOOKUP(C4,TBLVENLIM[],2,0))","v":44438},8,null,null,null,null,null,"DISPONIVEL",{"$f":"K4-C6","v":0},"JUROS",{"$f":"SUMIFS(tbldados[JUROS],tbldados[DESCRIÇÃO],ANALISE!C4,tbldados[REFERENTE],ANALISE!E2)","v":36.110000000000127},null,"TAXA",{"$f":"P4*M4","v":36.113219999999998},null,null,null,null,"VALOR"]
[null,"VALOR",{"$f":"SUM(ANALISE!$L$11:$L$20)","v":1490},null,null,null,null,null,null,"UTILIZAR",{"$f":"K5-(K5*M4)","v":0},null,null,null,"FINAL",{"$f":"P4+(P4*M4)","v":1243.9132199999999},null,null,null,null,"TAXA"]
[null,"RESTANTE",{"$f":"C6-SUM(E11:E53)","v":282.20000000000005},null,null,null,null,null,null,null,null,null,null,null,"ANTERIOR",{"$f":"SUM(ANALISE!$L$11:$L$20)","v":1490},null,null,null,null,"TOTAL",{"$f":"V5*V6","v":0}]
[null,"DINHEIRO",{"$f":"SUMIF(B11:B121,\"DINHEIRO\",E11:E121)","v":0},null,null,null,null,null,null,"TIPO","GASTOS","JUNIOR",{"$f":"C4","v":"FREE"},null,"TOTAL",{"$f":"SUM(P6:P7)","v":2733.9132199999999}]
[null,"JUROS",{"$f":"SUMIF('BASE DE DADOS'!D:D,$C$4,'BASE DE DADOS'!N:N)","v":36.110000000000127}]
["ID","TIPO","FORMA","DESCRIÇÃO","VALOR PAGO","TOTAL BRUTO","CARTÃO",null,"ID","DATA DA\nVENDA","DESCRIÇÃO","VALOR PAGO","PARCELA",null,null,2.9000000000000001E-2]
[{"$f":"IFERROR(INDEX(tbldados[ID],SMALL(IF(FREQUENCY(IF((tbldados[REFERENTE]=$E$2)*(tbldados[DESCRIÇÃO]=$C$4)*(tbldados[TIPO]=$E$4),MATCH(tbldados[ID],tbldados[ID],0)),ROW(tbldados[ID])-ROW('BASE DE DADOS'!$J$2)+1),ROW(tbldados[])-ROW('BASE DE DADOS'!$J$2)+1),ROWS($1:1))),\"\")","v":226},{"$f":"IFERROR(INDEX(tbldados[],MATCH(ANALISE!$A11,tbldados[[ID]:[ID]],0),MATCH(ANALISE!B$10,'BASE DE DADOS'!$A$1:$N$1,0)),\"\")","v":"PGTO"},{"$f":"IFERROR(INDEX(tbldados[],MATCH(ANALISE!$A11,tbldados[[ID]:[ID]],0),MATCH(ANALISE!C$10,'BASE DE DADOS'!$A$1:$N$1,0)),\"\")","v":"Crédito à Vista"},{"$f":"IFERROR(INDEX(tbldados[],MATCH(ANALISE!$A11,tbldados[[ID]:[ID]],0),MATCH(ANALISE!D$10,'BASE DE DADOS'!$A$1:$N$1,0)),\"\")","v":"FREE"},{"$f":"IFERROR(INDEX(tbldados[],MATCH(ANALISE!$A11,tbldados[[ID]:[ID]],0),MATCH(ANALISE!E$10,'BASE DE DADOS'!$A$1:$N$1,0)),\"\")","v":1207.8},{"$f":"IFERROR(INDEX(tbldados[],MATCH(ANALISE!$A11,tbldados[[ID]:[ID]],0),MATCH(ANALISE!F$10,'BASE DE DADOS'!$A$1:$N$1,0)),\"\")","v":1243.9100000000001},{"$f":"IFERROR(INDEX(tbldados[],MATCH(ANALISE!$A11,tbldados[[ID]:[ID]],0),MATCH(ANALISE!G$10,'BASE DE DADOS'!$A$1:$N$1,0)),\"\")","v":"ZERO"},null,{"$f":"IFERROR(INDEX(tbldados[ID],SMALL(IF(FREQUENCY(IF((tbldados[REFERENTE]=$L$8)*(tbldados[DATA]=$C$5)*(tbldados[TIPO]=$K$8)*(tbldados[CARTÃO]=$M$8),MATCH(tbldados[ID],tbldados[ID],0)),ROW(tbldados[ID])-ROW('BASE DE DADOS'!$J$2)+1),ROW(tbldados[])-ROW('BASE DE DADOS'!$J$2)+1),ROWS($1:1))),\"\")","v":195},{"$f":"IFERROR(INDEX(tbldados[],MATCH(ANALISE!$I11,tbldados[[ID]:[ID]],0),MATCH(ANALISE!J$10,'BASE DE DADOS'!$A$1:$N$1,0)),\"\")","v":44412},{"$f":"IFERROR(INDEX(tbldados[],MATCH(ANALISE!$I11,tbldados[[ID]:[ID]],0),MATCH(ANALISE!K$10,'BASE DE DADOS'!$A$1:$N$1,0)),\"\")","v":"PGTO-AZULCARD"},{"$f":"IFERROR(INDEX(tbldados[],MATCH(ANALISE!$I11,tbldados[[ID]:[ID]],0),MATCH(ANALISE!L$10,'BASE DE DADOS'!$A$1:$N$1,0)),\"\")","v":1490},{"$f":"IFERROR(INDEX(tbldados[],MATCH(ANALISE!$I11,tbldados[[ID]:[ID]],0),MATCH(ANALISE!M$10,'BASE DE DADOS'!$A$1:$N$1,0)),\"\")","v":"01 DE 01"}]
[{"$f":"IFERROR(INDEX(tbldados[ID],SMALL(IF(FREQUENCY(IF((tbldados[REFERENTE]=$E$2)*(tbldados[DESCRIÇÃO]=$C$4)*(tbldados[TIPO]=$E$4),MATCH(tbldados[ID],tbldados[ID],0)),ROW(tbldados[ID])-ROW('BASE DE DADOS'!$J$2)+1),ROW(tbldados[])-ROW('BASE DE DADOS'!$J$2)+1),ROWS($1:2))),\"\")","v":""},{"$f":"IFERROR(INDEX(tbldados[],MATCH(ANALISE!$A12,tbldados[[ID]:[ID]],0),MATCH(ANALISE!B$10,'BASE DE DADOS'!$A$1:$N$1,0)),\"\")","v":""},{"$f":"IFERROR(INDEX(tbldados[],MATCH(ANALISE!$A12,tbldados[[ID]:[ID]],0),MATCH(ANALISE!C$10,'BASE DE DADOS'!$A$1:$N$1,0)),\"\")","v":""},{"$f":"IFERROR(INDEX(tbldados[],MATCH(ANALISE!$A12,tbldados[[ID]:[ID]],0),MATCH(ANALISE!D$10,'BASE DE DADOS'!$A$1:$N$1,0)),\"\")","v":""},{"$f":"IFERROR(INDEX(tbldados[],MATCH(ANALISE!$A12,tbldados[[ID]:[ID]],0),MATCH(ANALISE!E$10,'BASE DE DADOS'!$A$1:$N$1,0)),\"\")","v":""},{"$f":"IFERROR(INDEX(tbldados[],MATCH(ANALISE!$A12,tbldados[[ID]:[ID]],0),MATCH(ANALISE!F$10,'BASE DE DADOS'!$A$1:$N$1,0)),\"\")","v":""},{"$f":"IFERROR(INDEX(tbldados[],MATCH(ANALISE!$A12,tbldados[[ID]:[ID]],0),MATCH(ANALISE!G$10,'BASE DE DADOS'!$A$1:$N$1,0)),\"\")","v":""},null,{"$f":"IFERROR(INDEX(tbldados[ID],SMALL(IF(FREQUENCY(IF((tbldados[REFERENTE]=$L$8)*(tbldados[DATA]=$C$5)*(tbldados[TIPO]=$K$8)*(tbldados[CARTÃO]=$M$8),MATCH(tbldados[ID],tbldados[ID],0)),ROW(tbldados[ID])-ROW('BASE DE DADOS'!$J$2)+1),ROW(tbldados[])-ROW('BASE DE DADOS'!$J$2)+1),ROWS($1:2))),\"\")","v":""},{"$f":"IFERROR(INDEX(tbldados[],MATCH(ANALISE!$I12,tbldados[[ID]:[ID]],0),MATCH(ANALISE!J$10,'BASE DE DADOS'!$A$1:$N$1,0)),\"\")","v":""},{"$f":"IFERROR(INDEX(tbldados[],MATCH(ANALISE!$I12,tbldados[[ID]:[ID]],0),MATCH(ANALISE!K$10,'BASE DE DADOS'!$A$1:$N$1,0)),\"\")","v":""},{"$f":"IFERROR(INDEX(tbldados[],MATCH(ANALISE!$I12,tbldados[[ID]:[ID]],0),MATCH(ANALISE!L$10,'BASE DE DADOS'!$A$1:$N$1,0)),\"\")","v":""},{"$f":"IFERROR(INDEX(tbldados[],MATCH(ANALISE!$I12,tbldados[[ID]:[ID]],0),MATCH(ANALISE!M$10,'BASE DE DADOS'!$A$1:$N$1,0)),\"\")","v":""}]
[{"$f":"IFERROR(INDEX(tbldados[ID],SMALL(IF(FREQUENCY(IF((tbldados[REFERENTE]=$E$2)*(tbldados[DESCRIÇÃO]=$C$4)*(tbldados[TIPO]=$E$4),MATCH(tbldados[ID],tbldados[ID],0)),ROW(tbldados[ID])-ROW('BASE DE DADOS'!$J$2)+1),ROW(tbldados[])-ROW('BASE DE DADOS'!$J$2)+1),ROWS($1:3))),\"\")","v":""},{"$f":"IFERROR(INDEX(tbldados[],MATCH(ANALISE!$A13,tbldados[[ID]:[ID]],0),MATCH(ANALISE!B$10,'BASE DE DADOS'!$A$1:$N$1,0)),\"\")","v":""},{"$f":"IFERROR(INDEX(tbldados[],MATCH(ANALISE!$A13,tbldados[[ID]:[ID]],0),MATCH(ANALISE!C$10,'BASE DE DADOS'!$A$1:$N$1,0)),\"\")","v":""},{"$f":"IFERROR(INDEX(tbldados[],MATCH(ANALISE!$A13,tbldados[[ID]:[ID]],0),MATCH(ANALISE!D$10,'BASE DE DADOS'!$A$1:$N$1,0)),\"\")","v":""},{"$f":"IFERROR(INDEX(tbldados[],MATCH(ANALISE!$A13,tbldados[[ID]:[ID]],0),MATCH(ANALISE!E$10,'BASE DE DADOS'!$A$1:$N$1,0)),\"\")","v":""},{"$f":"IFERROR(INDEX(tbldados[],MATCH(ANALISE!$A13,tbldados[[ID]:[ID]],0),MATCH(ANALISE!F$10,'BASE DE DADOS'!$A$1:$N$1,0)),\"\")","v":""},{"$f":"IFERROR(INDEX(tbldados[],MATCH(ANALISE!$A13,tbldados[[ID]:[ID]],0),MATCH(ANALISE!G$10,'BASE DE DADOS'!$A$1:$N$1,0)),\"\")","v":""},{"$f":"IFERROR(INDEX(tbldados[TIPO],SMALL(IF(FREQUENCY(IF((tbldados[CARTÃO]=$C$4)*(tbldados[DATA]=$C$5),MATCH(tbldados[TIPO],tbldados[TIPO],0)),ROW(tbldados[TIPO])-ROW('BASE DE DADOS'!#REF!)+1),ROW(tbldados[])-ROW('BASE DE DADOS'!#REF!)+1),ROWS($1:2))),\"\")","v":""},{"$f":"IFERROR(INDEX(tbldados[ID],SMALL(IF(FREQUENCY(IF((tbldados[REFERENTE]=$L$8)*(tbldados[DATA]=$C$5)*(tbldados[TIPO]=$K$8)*(tbldados[CARTÃO]=$M$8),MATCH(tbldados[ID],tbldados[ID],0)),ROW(tbldados[ID])-ROW('BASE DE DADOS'!$J$2)+1),ROW(tbldados[])-ROW('BASE DE DADOS'!$J$2)+1),ROWS($1:3))),\"\")","v":""},{"$f":"IFERROR(INDEX(tbldados[],MATCH(ANALISE!$I13,tbldados[[ID]:[ID]],0),MATCH(ANALISE!J$10,'BASE DE DADOS'!$A$1:$N$1,0)),\"\")","v":""},{"$f":"IFERROR(INDEX(tbldados[],MATCH(ANALISE!$I13,tbldados[[ID]:[ID]],0),MATCH(ANALISE!K$10,'BASE DE DADOS'!$A$1:$N$1,0)),\"\")","v":""},{"$f":"IFERROR(INDEX(tbldados[],MATCH(ANALISE!$I13,tbldados[[ID]:[ID]],0),MATCH(ANALISE!L$10,'BASE DE DADOS'!$A$1:$N$1,0)),\"\")","v":""},{"$f":"IFERROR(INDEX(tbldados[],MATCH(ANALISE!$I13,tbldados[[ID]:[ID]],0),MATCH(ANALISE!M$10,'BASE DE DADOS'!$A$1:$N$1,0)),\"\")","v":""}]
[{"$f":"IFERROR(INDEX(tbldados[ID],SMALL(IF(FREQUENCY(IF((tbldados[REFERENTE]=$E$2)*(tbldados[DESCRIÇÃO]=$C$4)*(tbldados[TIPO]=$E$4),MATCH(tbldados[ID],tbldados[ID],0)),ROW(tbldados[ID])-ROW('BASE DE DADOS'!$J$2)+1),ROW(tbldados[])-ROW('BASE DE DADOS'!$J$2)+1),ROWS($1:4))),\"\")","v":""},{"$f":"IFERROR(INDEX(tbldados[],MATCH(ANALISE!$A14,tbldados[[ID]:[ID]],0),MATCH(ANALISE!B$10,'BASE DE DADOS'!$A$1:$N$1,0)),\"\")","v":""},{"$f":"IFERROR(INDEX(tbldados[],MATCH(ANALISE!$A14,tbldados[[ID]:[ID]],0),MATCH(ANALISE!C$10,'BASE DE DADOS'!$A$1:$N$1,0)),\"\")","v":""},{"$f":"IFERROR(INDEX(tbldados[],MATCH(ANALISE!$A14,tbldados[[ID]:[ID]],0),MATCH(ANALISE!D$10,'BASE DE DADOS'!$A$1:$N$1,0)),\"\")","v":""},{"$f":"IFERROR(INDEX(tbldados[],MATCH(ANALISE!$A14,tbldados[[ID]:[ID]],0),MATCH(ANALISE!E$10,'BASE DE DADOS'!$A$1:$N$1,0)),\"\")","v":""},{"$f":"IFERROR(INDEX(tbldados[],MATCH(ANALISE!$A14,tbldados[[ID]:[ID]],0),MATCH(ANALISE!F$10,'BASE DE DADOS'!$A$1:$N$1,0)),\"\")","v":""},{"$f":"IFERROR(INDEX(tbldados[],MATCH(ANALISE!$A14,tbldados[[ID]:[ID]],0),MATCH(ANALISE!G$10,'BASE DE DADOS'!$A$1:$N$1,0)),\"\")","v":""},{"$f":"IFERROR(INDEX(tbldados[TIPO],SMALL(IF(FREQUENCY(IF((tbldados[CARTÃO]=$C$4)*(tbldados[DATA]=$C$5),MATCH(tbldados[TIPO],tbldados[TIPO],0)),ROW(tbldados[TIPO])-ROW('BASE DE DADOS'!#REF!)+1),ROW(tbldados[])-ROW('BASE DE DADOS'!#REF!)+1),ROWS($1:3))),\"\")","v":""},{"$f":"IFERROR(INDEX(tbldados[ID],SMALL(IF(FREQUENCY(IF((tbldados[REFERENTE]=$L$8)*(tbldados[DATA]=$C$5)*(tbldados[TIPO]=$K$8)*(tbldados[CARTÃO]=$M$8),MATCH(tbldados[ID],tbldados[ID],0)),ROW(tbldados[ID])-ROW('BASE DE DADOS'!$J$2)+1),ROW(tbldados[])-ROW('BASE DE DADOS'!$J$2)+1),ROWS($1:4))),\"\")","v":""},{"$f":"IFERROR(INDEX(tbldados[],MATCH(ANALISE!$I14,tbldados[[ID]:[ID]],0),MATCH(ANALISE!J$10,'BASE DE DADOS'!$A$1:$N$1,0)),\"\")","v":""},{"$f":"IFERROR(INDEX(tbldados[],MATCH(ANALISE!$I14,tbldados[[ID]:[ID]],0),MATCH(ANALISE!K$10,'BASE DE DADOS'!$A$1:$N$1,0)),\"\")","v":""},{"$f":"IFERROR(INDEX(tbldados[],MATCH(ANALISE!$I14,tbldados[[ID]:[ID]],0),MATCH(ANALISE!L$10,'BASE DE DADOS'!$A$1:$N$1,0)),\"\")","v":""},{"$f":"IFERROR(INDEX(tbldados[],MATCH(ANALISE!$I14,tbldados[[ID]:[ID]],0),MATCH(ANALISE!M$10,'BASE DE DADOS'!$A$1:$N$1,0)),\"\")","v":""}]
[{"$f":"IFERROR(INDEX(tbldados[ID],SMALL(IF(FREQUENCY(IF((tbldados[REFERENTE]=$E$2)*(tbldados[DESCRIÇÃO]=$C$4)*(tbldados[TIPO]=$E$4),MATCH(tbldados[ID],tbldados[ID],0)),ROW(tbldados[ID])-ROW('BASE DE DADOS'!$J$2)+1),ROW(tbldados[])-ROW('BASE DE DADOS'!$J$2)+1),ROWS($1:5))),\"\")","v":""},{"$f":"IFERROR(INDEX(tbldados[],MATCH(ANALISE!$A15,tbldados[[ID]:[ID]],0),MATCH(ANALISE!B$10,'BASE DE DADOS'!$A$1:$N$1,0)),\"\")","v":""},{"$f":"IFERROR(INDEX(tbldados[],MATCH(ANALISE!$A15,tbldados[[ID]:[ID]],0),MATCH(ANALISE!C$10,'BASE DE DADOS'!$A$1:$N$1,0)),\"\")","v":""},{"$f":"IFERROR(INDEX(tbldados[],MATCH(ANALISE!$A15,tbldados[[ID]:[ID]],0),MATCH(ANALISE!D$10,'BASE DE DADOS'!$A$1:$N$1,0)),\"\")","v":""},{"$f":"IFERROR(INDEX(tbldados[],MATCH(ANALISE!$A15,tbldados[[ID]:[ID]],0),MATCH(ANALISE!E$10,'BASE DE DADOS'!$A$1:$N$1,0)),\"\")","v":""},{"$f":"IFERROR(INDEX(tbldados[],MATCH(ANALISE!$A15,tbldados[[ID]:[ID]],0),MATCH(ANALISE!F$10,'BASE DE DADOS'!$A$1:$N$1,0)),\"\")","v":""},{"$f":"IFERROR(INDEX(tbldados[],MATCH(ANALISE!$A15,tbldados[[ID]:[ID]],0),MATCH(ANALISE!G$10,'BASE DE DADOS'!$A$1:$N$1,0)),\"\")","v":""},null,{"$f":"IFERROR(INDEX(tbldados[ID],SMALL(IF(FREQUENCY(IF((tbldados[REFERENTE]=$L$8)*(tbldados[DATA]=$C$5)*(tbldados[TIPO]=$K$8)*(tbldados[CARTÃO]=$M$8),MATCH(tbldados[ID],tbldados[ID],0)),ROW(tbldados[ID])-ROW('BASE DE DADOS'!$J$2)+1),ROW(tbldados[])-ROW('BASE DE DADOS'!$J$2)+1),ROWS($1:5))),\"\")","v":""},{"$f":"IFERROR(INDEX(tbldados[],MATCH(ANALISE!$I15,tbldados[[ID]:[ID]],0),MATCH(ANALISE!J$10,'BASE DE DADOS'!$A$1:$N$1,0)),\"\")","v":""},{"$f":"IFERROR(INDEX(tbldados[],MATCH(ANALISE!$I15,tbldados[[ID]:[ID]],0),MATCH(ANALISE!K$10,'BASE DE DADOS'!$A$1:$N$1,0)),\"\")","v":""},{"$f":"IFERROR(INDEX(tbldados[],MATCH(ANALISE!$I15,tbldados[[ID]:[ID]],0),MATCH(ANALISE!L$10,'BASE DE DADOS'!$A$1:$N$1,0)),\"\")","v":""},{"$f":"IFERROR(INDEX(tbldados[],MATCH(ANALISE!$I15,tbldados[[ID]:[ID]],0),MATCH(ANALISE!M$10,'BASE DE DADOS'!$A$1:$N$1,0)),\"\")","v":""}]
[{"$f":"IFERROR(INDEX(tbldados[ID],SMALL(IF(FREQUENCY(IF((tbldados[REFERENTE]=$E$2)*(tbldados[DESCRIÇÃO]=$C$4)*(tbldados[TIPO]=$E$4),MATCH(tbldados[ID],tbldados[ID],0)),ROW(tbldados[ID])-ROW('BASE DE DADOS'!$J$2)+1),ROW(tbldados[])-ROW('BASE DE DADOS'!$J$2)+1),ROWS($1:6))),\"\")","v":""},{"$f":"IFERROR(INDEX(tbldados[],MATCH(ANALISE!$A16,tbldados[[ID]:[ID]],0),MATCH(ANALISE!B$10,'BASE DE DADOS'!$A$1:$N$1,0)),\"\")","v":""},{"$f":"IFERROR(INDEX(tbldados[],MATCH(ANALISE!$A16,tbldados[[ID]:[ID]],0),MATCH(ANALISE!C$10,'BASE DE DADOS'!$A$1:$N$1,0)),\"\")","v":""},{"$f":"IFERROR(INDEX(tbldados[],MATCH(ANALISE!$A16,tbldados[[ID]:[ID]],0),MATCH(ANALISE!D$10,'BASE DE DADOS'!$A$1:$N$1,0)),\"\")","v":""},{"$f":"IFERROR(INDEX(tbldados[],MATCH(ANALISE!$A16,tbldados[[ID]:[ID]],0),MATCH(ANALISE!E$10,'BASE DE DADOS'!$A$1:$N$1,0)),\"\")","v":""},{"$f":"IFERROR(INDEX(tbldados[],MATCH(ANALISE!$A16,tbldados[[ID]:[ID]],0),MATCH(ANALISE!F$10,'BASE DE DADOS'!$A$1:$N$1,0)),\"\")","v":""},{"$f":"IFERROR(INDEX(tbldados[],MATCH(ANALISE!$A16,tbldados[[ID]:[ID]],0),MATCH(ANALISE!G$10,'BASE DE DADOS'!$A$1:$N$1,0)),\"\")","v":""},null,{"$f":"IFERROR(INDEX(tbldados[ID],SMALL(IF(FREQUENCY(IF((tbldados[REFERENTE]=$L$8)*(tbldados[DATA]=$C$5)*(tbldados[TIPO]=$K$8)*(tbldados[CARTÃO]=$M$8),MATCH(tbldados[ID],tbldados[ID],0)),ROW(tbldados[ID])-ROW('BASE DE DADOS'!$J$2)+1),ROW(tbldados[])-ROW('BASE DE DADOS'!$J$2)+1),ROWS($1:6))),\"\")","v":""},{"$f":"IFERROR(INDEX(tbldados[],MATCH(ANALISE!$I16,tbldados[[ID]:[ID]],0),MATCH(ANALISE!J$10,'BASE DE DADOS'!$A$1:$N$1,0)),\"\")","v":""},{"$f":"IFERROR(INDEX(tbldados[],MATCH(ANALISE!$I16,tbldados[[ID]:[ID]],0),MATCH(ANALISE!K$10,'BASE DE DADOS'!$A$1:$N$1,0)),\"\")","v":""},{"$f":"IFERROR(INDEX(tbldados[],MATCH(ANALISE!$I16,tbldados[[ID]:[ID]],0),MATCH(ANALISE!L$10,'BASE DE DADOS'!$A$1:$N$1,0)),\"\")","v":""},{"$f":"IFERROR(INDEX(tbldados[],MATCH(ANALISE!$I16,tbldados[[ID]:[ID]],0),MATCH(ANALISE!M$10,'BASE DE DADOS'!$A$1:$N$1,0)),\"\")","v":""},null,null,380]
[{"$f":"IFERROR(INDEX(tbldados[ID],SMALL(IF(FREQUENCY(IF((tbldados[REFERENTE]=$E$2)*(tbldados[DESCRIÇÃO]=$C$4)*(tbldados[TIPO]=$E$4),MATCH(tbldados[ID],tbldados[ID],0)),ROW(tbldados[ID])-ROW('BASE DE DADOS'!$J$2)+1),ROW(tbldados[])-ROW('BASE DE DADOS'!$J$2)+1),ROWS($1:7))),\"\")","v":""},{"$f":"IFERROR(INDEX(tbldados[],MATCH(ANALISE!$A17,tbldados[[ID]:[ID]],0),MATCH(ANALISE!B$10,'BASE DE DADOS'!$A$1:$N$1,0)),\"\")","v":""},{"$f":"IFERROR(INDEX(tbldados[],MATCH(ANALISE!$A17,tbldados[[ID]:[ID]],0),MATCH(ANALISE!C$10,'BASE DE DADOS'!$A$1:$N$1,0)),\"\")","v":""},{"$f":"IFERROR(INDEX(tbldados[],MATCH(ANALISE!$A17,tbldados[[ID]:[ID]],0),MATCH(ANALISE!D$10,'BASE DE DADOS'!$A$1:$N$1,0)),\"\")","v":""},{"$f":"IFERROR(INDEX(tbldados[],MATCH(ANALISE!$A17,tbldados[[ID]:[ID]],0),MATCH(ANALISE!E$10,'BASE DE DADOS'!$A$1:$N$1,0)),\"\")","v":""},{"$f":"IFERROR(INDEX(tbldados[],MATCH(ANALISE!$A17,tbldados[[ID]:[ID]],0),MATCH(ANALISE!F$10,'BASE DE DADOS'!$A$1:$N$1,0)),\"\")","v":""},{"$f":"IFERROR(INDEX(tbldados[],MATCH(ANALISE!$A17,tbldados[[ID]:[ID]],0),MATCH(ANALISE!G$10,'BASE DE DADOS'!$A$1:$N$1,0)),\"\")","v":""},null,{"$f":"IFERROR(INDEX(tbldados[ID],SMALL(IF(FREQUENCY(IF((tbldados[REFERENTE]=$L$8)*(tbldados[DATA]=$C$5)*(tbldados[TIPO]=$K$8)*(tbldados[CARTÃO]=$M$8),MATCH(tbldados[ID],tbldados[ID],0)),ROW(tbldados[ID])-ROW('BASE DE DADOS'!$J$2)+1),ROW(tbldados[])-ROW('BASE DE DADOS'!$J$2)+1),ROWS($1:7))),\"\")","v":""},{"$f":"IFERROR(INDEX(tbldados[],MATCH(ANALISE!$I17,tbldados[[ID]:[ID]],0),MATCH(ANALISE!J$10,'BASE DE DADOS'!$A$1:$N$1,0)),\"\")","v":""},{"$f":"IFERROR(INDEX(tbldados[],MATCH(ANALISE!$I17,tbldados[[ID]:[ID]],0),MATCH(ANALISE!K$10,'BASE DE DADOS'!$A$1:$N$1,0)),\"\")","v":""},{"$f":"IFERROR(INDEX(tbldados[],MATCH(ANALISE!$I17,tbldados[[ID]:[ID]],0),MATCH(ANALISE!L$10,'BASE DE DADOS'!$A$1:$N$1,0)),\"\")","v":""},{"$f":"IFERROR(INDEX(tbldados[],MATCH(ANALISE!$I17,tbldados[[ID]:[ID]],0),MATCH(ANALISE!M$10,'BASE DE DADOS'!$A$1:$N$1,0)),\"\")","v":""},null,null,80]
[{"$f":"IFERROR(INDEX(tbldados[ID],SMALL(IF(FREQUENCY(IF((tbldados[REFERENTE]=$E$2)*(tbldados[DESCRIÇÃO]=$C$4)*(tbldados[TIPO]=$E$4),MATCH(tbldados[ID],tbldados[ID],0)),ROW(tbldados[ID])-ROW('BASE DE DADOS'!$J$2)+1),ROW(tbldados[])-ROW('BASE DE DADOS'!$J$2)+1),ROWS($1:8))),\"\")","v":""},{"$f":"IFERROR(INDEX(tbldados[],MATCH(ANALISE!$A18,tbldados[[ID]:[ID]],0),MATCH(ANALISE!B$10,'BASE DE DADOS'!$A$1:$N$1,0)),\"\")","v":""},{"$f":"IFERROR(INDEX(tbldados[],MATCH(ANALISE!$A18,tbldados[[ID]:[ID]],0),MATCH(ANALISE!C$10,'BASE DE DADOS'!$A$1:$N$1,0)),\"\")","v":""},{"$f":"IFERROR(INDEX(tbldados[],MATCH(ANALISE!$A18,tbldados[[ID]:[ID]],0),MATCH(ANALISE!D$10,'BASE DE DADOS'!$A$1:$N$1,0)),\"\")","v":""},{"$f":"IFERROR(INDEX(tbldados[],MATCH(ANALISE!$A18,tbldados[[ID]:[ID]],0),MATCH(ANALISE!E$10,'BASE DE DADOS'!$A$1:$N$1,0)),\"\")","v":""},{"$f":"IFERROR(INDEX(tbldados[],MATCH(ANALISE!$A18,tbldados[[ID]:[ID]],0),MATCH(ANALISE!F$10,'BASE DE DADOS'!$A$1:$N$1,0)),\"\")","v":""},{"$f":"IFERROR(INDEX(tbldados[],MATCH(ANALISE!$A18,tbldados[[ID]:[ID]],0),MATCH(ANALISE!G$10,'BASE DE DADOS'!$A$1:$N$1,0)),\"\")","v":""},null,{"$f":"IFERROR(INDEX(tbldados[ID],SMALL(IF(FREQUENCY(IF((tbldados[REFERENTE]=$L$8)*(tbldados[DATA]=$C$5)*(tbldados[TIPO]=$K$8)*(tbldados[CARTÃO]=$M$8),MATCH(tbldados[ID],tbldados[ID],0)),ROW(tbldados[ID])-ROW('BASE DE DADOS'!$J$2)+1),ROW(tbldados[])-ROW('BASE DE DADOS'!$J$2)+1),ROWS($1:8))),\"\")","v":""},{"$f":"IFERROR(INDEX(tbldados[],MATCH(ANALISE!$I18,tbldados[[ID]:[ID]],0),MATCH(ANALISE!J$10,'BASE DE DADOS'!$A$1:$N$1,0)),\"\")","v":""},{"$f":"IFERROR(INDEX(tbldados[],MATCH(ANALISE!$I18,tbldados[[ID]:[ID]],0),MATCH(ANALISE!K$10,'BASE DE DADOS'!$A$1:$N$1,0)),\"\")","v":""},{"$f":"IFERROR(INDEX(tbldados[],MATCH(ANALISE!$I18,tbldados[[ID]:[ID]],0),MATCH(ANALISE!L$10,'BASE DE DADOS'!$A$1:$N$1,0)),\"\")","v":""},{"$f":"IFERROR(INDEX(tbldados[],MATCH(ANALISE!$I18,tbldados[[ID]:[ID]],0),MATCH(ANALISE!M$10,'BASE DE DADOS'!$A$1:$N$1,0)),\"\")","v":""},null,null,120]
[{"$f":"IFERROR(INDEX(tbldados[ID],SMALL(IF(FREQUENCY(IF((tbldados[REFERENTE]=$E$2)*(tbldados[DESCRIÇÃO]=$C$4)*(tbldados[TIPO]=$E$4),MATCH(tbldados[ID],tbldados[ID],0)),ROW(tbldados[ID])-ROW('BASE DE DADOS'!$J$2)+1),ROW(tbldados[])-ROW('BASE DE DADOS'!$J$2)+1),ROWS($1:9))),\"\")","v":""},{"$f":"IFERROR(INDEX(tbldados[],MATCH(ANALISE!$A19,tbldados[[ID]:[ID]],0),MATCH(ANALISE!B$10,'BASE DE DADOS'!$A$1:$N$1,0)),\"\")","v":""},{"$f":"IFERROR(INDEX(tbldados[],MATCH(ANALISE!$A19,tbldados[[ID]:[ID]],0),MATCH(ANALISE!C$10,'BASE DE DADOS'!$A$1:$N$1,0)),\"\")","v":""},{"$f":"IFERROR(INDEX(tbldados[],MATCH(ANALISE!$A19,tbldados[[ID]:[ID]],0),MATCH(ANALISE!D$10,'BASE DE DADOS'!$A$1:$N$1,0)),\"\")","v":""},{"$f":"IFERROR(INDEX(tbldados[],MATCH(ANALISE!$A19,tbldados[[ID]:[ID]],0),MATCH(ANALISE!E$10,'BASE DE DADOS'!$A$1:$N$1,0)),\"\")","v":""},{"$f":"IFERROR(INDEX(tbldados[],MATCH(ANALISE!$A19,tbldados[[ID]:[ID]],0),MATCH(ANALISE!F$10,'BASE DE DADOS'!$A$1:$N$1,0)),\"\")","v":""},{"$f":"IFERROR(INDEX(tbldados[],MATCH(ANALISE!$A19,tbldados[[ID]:[ID]],0),MATCH(ANALISE!G$10,'BASE DE DADOS'!$A$1:$N$1,0)),\"\")","v":""},null,{"$f":"IFERROR(INDEX(tbldados[ID],SMALL(IF(FREQUENCY(IF((tbldados[REFERENTE]=$L$8)*(tbldados[DATA]=$C$5)*(tbldados[TIPO]=$K$8)*(tbldados[CARTÃO]=$M$8),MATCH(tbldados[ID],tbldados[ID],0)),ROW(tbldados[ID])-ROW('BASE DE DADOS'!$J$2)+1),ROW(tbldados[])-ROW('BASE DE DADOS'!$J$2)+1),ROWS($1:9))),\"\")","v":""},{"$f":"IFERROR(INDEX(tbldados[],MATCH(ANALISE!$I19,tbldados[[ID]:[ID]],0),MATCH(ANALISE!J$10,'BASE DE DADOS'!$A$1:$N$1,0)),\"\")","v":""},{"$f":"IFERROR(INDEX(tbldados[],MATCH(ANALISE!$I19,tbldados[[ID]:[ID]],0),MATCH(ANALISE!K$10,'BASE DE DADOS'!$A$1:$N$1,0)),\"\")","v":""},{"$f":"IFERROR(INDEX(tbldados[],MATCH(ANALISE!$I19,tbldados[[ID]:[ID]],0),MATCH(ANALISE!L$10,'BASE DE DADOS'!$A$1:$N$1,0)),\"\")","v":""},{"$f":"IFERROR(INDEX(tbldados[],MATCH(ANALISE!$I19,tbldados[[ID]:[ID]],0),MATCH(ANALISE!M$10,'BASE DE DADOS'!$A$1:$N$1,0)),\"\")","v":""}]
[{"$f":"IFERROR(INDEX(tbldados[ID],SMALL(IF(FREQUENCY(IF((tbldados[REFERENTE]=$E$2)*(tbldados[DESCRIÇÃO]=$C$4)*(tbldados[TIPO]=$E$4),MATCH(tbldados[ID],tbldados[ID],0)),ROW(tbldados[ID])-ROW('BASE DE DADOS'!$J$2)+1),ROW(tbldados[])-ROW('BASE DE DADOS'!$J$2)+1),ROWS($1:10))),\"\")","v":""},{"$f":"IFERROR(INDEX(tbldados[],MATCH(ANALISE!$A20,tbldados[[ID]:[ID]],0),MATCH(ANALISE!B$10,'BASE DE DADOS'!$A$1:$N$1,0)),\"\")","v":""},{"$f":"IFERROR(INDEX(tbldados[],MATCH(ANALISE!$A20,tbldados[[ID]:[ID]],0),MATCH(ANALISE!C$10,'BASE DE DADOS'!$A$1:$N$1,0)),\"\")","v":""},{"$f":"IFERROR(INDEX(tbldados[],MATCH(ANALISE!$A20,tbldados[[ID]:[ID]],0),MATCH(ANALISE!D$10,'BASE DE DADOS'!$A$1:$N$1,0)),\"\")","v":""},{"$f":"IFERROR(INDEX(tbldados[],MATCH(ANALISE!$A20,tbldados[[ID]:[ID]],0),MATCH(ANALISE!E$10,'BASE DE DADOS'!$A$1:$N$1,0)),\"\")","v":""},{"$f":"IFERROR(INDEX(tbldados[],MATCH(ANALISE!$A20,tbldados[[ID]:[ID]],0),MATCH(ANALISE!F$10,'BASE DE DADOS'!$A$1:$N$1,0)),\"\")","v":""},{"$f":"IFERROR(INDEX(tbldados[],MATCH(ANALISE!$A20,tbldados[[ID]:[ID]],0),MATCH(ANALISE!G$10,'BASE DE DADOS'!$A$1:$N$1,0)),\"\")","v":""},null,{"$f":"IFERROR(INDEX(tbldados[ID],SMALL(IF(FREQUENCY(IF((tbldados[REFERENTE]=$L$8)*(tbldados[DATA]=$C$5)*(tbldados[TIPO]=$K$8)*(tbldados[CARTÃO]=$M$8),MATCH(tbldados[ID],tbldados[ID],0)),ROW(tbldados[ID])-ROW('BASE DE DADOS'!$J$2)+1),ROW(tbldados[])-ROW('BASE DE DADOS'!$J$2)+1),ROWS($1:10))),\"\")","v":""},{"$f":"IFERROR(INDEX(tbldados[],MATCH(ANALISE!$I20,tbldados[[ID]:[ID]],0),MATCH(ANALISE!J$10,'BASE DE DADOS'!$A$1:$N$1,0)),\"\")","v":""},{"$f":"IFERROR(INDEX(tbldados[],MATCH(ANALISE!$I20,tbldados[[ID]:[ID]],0),MATCH(ANALISE!K$10,'BASE DE DADOS'!$A$1:$N$1,0)),\"\")","v":""},{"$f":"IFERROR(INDEX(tbldados[],MATCH(ANALISE!$I20,tbldados[[ID]:[ID]],0),MATCH(ANALISE!L$10,'BASE DE DADOS'!$A$1:$N$1,0)),\"\")","v":""},{"$f":"IFERROR(INDEX(tbldados[],MATCH(ANALISE!$I20,tbldados[[ID]:[ID]],0),MATCH(ANALISE!M$10,'BASE DE DADOS'!$A$1:$N$1,0)),\"\")","v":""}]
[null,{"$f":"IFERROR(INDEX(tbldados[],MATCH(ANALISE!$A21,tbldados[[ID]:[ID]],0),MATCH(ANALISE!B$10,'BASE DE DADOS'!$A$1:$N$1,0)),\"\")","v":""},null,{"$f":"IF(ROWS($1:11)>COUNTIF(tbldados[DATA],$C$5),\"\",INDEX(tbldados[TOTAL BRUTO],SMALL(IF(tbldados[DATA]=$C$5,ROW(tbldados[DATA])-ROW('BASE DE DADOS'!K25)+1,FALSE),ROWS($1:11))))","v":""},{"$f":"IF(ROWS($1:11)>COUNTIF(tbldados[DATA],$C$5),\"\",INDEX(tbldados[VALOR PAGO],SMALL(IF(tbldados[DATA]=$C$5,ROW(tbldados[DATA])-ROW('BASE DE DADOS'!K25)+1,FALSE),ROWS($1:11))))","v":""},{"$f":"IFERROR(INDEX(tbldados[APP],SMALL(IF(FREQUENCY(IF((tbldados[CARTÃO]=$C$4)*(tbldados[DATA]=$C$5),MATCH(tbldados[APP],tbldados[APP],0)),ROW(tbldados[APP])-ROW('BASE DE DADOS'!#REF!)+1),ROW(tbldados[])-ROW('BASE DE DADOS'!#REF!)+1),ROWS($1:4))),\"\")","v":""},null,null,null,null,null,{"$f":"IF(ROWS($1:11)>COUNTIF(TBDADOS[VENCIMENTO],$C$5),\"\",INDEX(TBDADOS[VALOR],SMALL(IF(TBDADOS[VENCIMENTO]=$C$5,ROW(TBDADOS[VENCIMENTO])-ROW(DADOS!$K$2)+1,FALSE),ROWS($1:11))))","v":""},{"$f":"IF(ROWS($1:11)>COUNTIF(TBDADOS[VENCIMENTO],$C$5),\"\",INDEX(TBDADOS[Nº DE\n PARCELAS],SMALL(IF(TBDADOS[VENCIMENTO]=$C$5,ROW(TBDADOS[VENCIMENTO])-ROW(DADOS!$K$2)+1,FALSE),ROWS($1:11))))","v":""}]

{"sheet":"CALENDARIO","index":6,"n_rows":23,"n_cols":50,"rows_kept":23,"cut":false,"hidden":false,"merged":[[0,22,0,24]]}
[null,null,null,null,null,null,null,null,null,null,null,null,"ANO",null,2021,null,null,null,null,null,"CARD - ",null,"MELIUZ",null,null,null,null,null,null,"MÊS - ",null,{"$f":"INDEX({\"JANEIRO\";\"FEVEREIRO\";\"MARCO\";\"ABRIL\";\"MAIO\";\"JUNHO\";\"JULHO\";\"AGOSTO\";\"SETEMBRO\";\"OUTUBRO\";\"NOVEMBRO\";\"DEZEMBRO\"},AG2)","v":"AGOSTO"}]
[null,null,null,null,null,null,null,null,null,null,null,null,null,null,null,null,null,null,null,null,null,null,null,null,null,null,null,null,null,null,null,null,8]
[null,null,null,1,null,null,null,null,null,null,null,{"$f":"D3+1","v":2},null,null,null,null,null,null,null,{"$f":"L3+1","v":3},null,null,null,null,null,null,null,{"$f":"T3+1","v":4},null,null,null,null,null,null,null,{"$f":"AB3+1","v":5},null,null,null,null,null,null,null,{"$f":"AJ3+1","v":6}]
[null,null,null,{"$f":"DATE(O1,D3,1)","v":"2021-01-01"},null,null,null,null,null,null,null,{"$f":"DATE(ANNO,L3,1)","v":"2021-02-01"},null,null,null,null,null,null,null,{"$f":"DATE(ANNO,T3,1)","v":"2021-03-01"},null,null,null,null,null,null,null,{"$f":"DATE(ANNO,AB3,1)","v":"2021-04-01"},null,null,null,null,null,null,null,{"$f":"DATE(ANNO,AJ3,1)","v":"2021-05-01"},null,null,null,null,null,null,null,{"$f":"DATE(ANNO,AR3,1)","v":"2021-06-01"}]
[null,null,null,1,2,3,4,5,6,7,null,1,2,3,4,5,6,7,null,1,2,3,4,5,6,7,null,1,2,3,4,5,6,7,null,1,2,3,4,5,6,7,null,1,2,3,4,5,6,7]
[null,null,null,"D","S","T","Q","Q","S","S",null,"D","S","T","Q","Q","S","S",null,"D","S","T","Q","Q","S","S",null,"D","S","T","Q","Q","S","S",null,"D","S","T","Q","Q","S","S",null,"D","S","T","Q","Q","S","S"]
[null,null,null,{"$f":"IF(WEEKDAY(D4)=D5,D4,IF(WEEKDAY(D4)>D5,\"\",C7+1))","v":""},{"$f":"IF(WEEKDAY(D4)=E5,D4,IF(WEEKDAY(D4)>E5,\"\",D7+1))","v":""},{"$f":"IF(WEEKDAY(D4)=F5,D4,IF(WEEKDAY(D4)>F5,\"\",E7+1))","v":""},{"$f":"IF(WEEKDAY(D4)=G5,D4,IF(WEEKDAY(D4)>G5,\"\",F7+1))","v":""},{"$f":"IF(WEEKDAY(D4)=H5,D4,IF(WEEKDAY(D4)>H5,\"\",G7+1))","v":""},{"$f":"IF(WEEKDAY(D4)=I5,D4,IF(WEEKDAY(D4)>I5,\"\",H7+1))","v":"2021-01-01"},{"$f":"IF(WEEKDAY(D4)=J5,D4,IF(WEEKDAY(D4)>J5,\"\",I7+1))","v":"2021-01-02"},null,{"$f":"IF(WEEKDAY(L4)=L5,L4,IF(WEEKDAY(L4)>L5,\"\",K7+1))","v":""},{"$f":"IF(WEEKDAY(L4)=M5,L4,IF(WEEKDAY(L4)>M5,\"\",L7+1))","v":"2021-02-01"},{"$f":"IF(WEEKDAY(L4)=N5,L4,IF(WEEKDAY(L4)>N5,\"\",M7+1))","v":"2021-02-02"},{"$f":"IF(WEEKDAY(L4)=O5,L4,IF(WEEKDAY(L4)>O5,\"\",N7+1))","v":"2021-02-03"},{"$f":"IF(WEEKDAY(L4)=P5,L4,IF(WEEKDAY(L4)>P5,\"\",O7+1))","v":"2021-02-04"},{"$f":"IF(WEEKDAY(L4)=Q5,L4,IF(WEEKDAY(L4)>Q5,\"\",P7+1))","v":"2021-02-05"},{"$f":"IF(WEEKDAY(L4)=R5,L4,IF(WEEKDAY(L4)>R5,\"\",Q7+1))","v":"2021-02-06"},null,{"$f":"IF(WEEKDAY(T4)=T5,T4,IF(WEEKDAY(T4)>T5,\"\",S7+1))","v":""},{"$f":"IF(WEEKDAY(T4)=U5,T4,IF(WEEKDAY(T4)>U5,\"\",T7+1))","v":"2021-03-01"},{"$f":"IF(WEEKDAY(T4)=V5,T4,IF(WEEKDAY(T4)>V5,\"\",U7+1))","v":"2021-03-02"},{"$f":"IF(WEEKDAY(T4)=W5,T4,IF(WEEKDAY(T4)>W5,\"\",V7+1))","v":"2021-03-03"},{"$f":"IF(WEEKDAY(T4)=X5,T4,IF(WEEKDAY(T4)>X5,\"\",W7+1))","v":"2021-03-04"},{"$f":"IF(WEEKDAY(T4)=Y5,T4,IF(WEEKDAY(T4)>Y5,\"\",X7+1))","v":"2021-03-05"},{"$f":"IF(WEEKDAY(T4)=Z5,T4,IF(WEEKDAY(T4)>Z5,\"\",Y7+1))","v":"2021-03-06"},null,{"$f":"IF(WEEKDAY(AB4)=AB5,AB4,IF(WEEKDAY(AB4)>AB5,\"\",AA7+1))","v":""},{"$f":"IF(WEEKDAY(AB4)=AC5,AB4,IF(WEEKDAY(AB4)>AC5,\"\",AB7+1))","v":""},{"$f":"IF(WEEKDAY(AB4)=AD5,AB4,IF(WEEKDAY(AB4)>AD5,\"\",AC7+1))","v":""},{"$f":"IF(WEEKDAY(AB4)=AE5,AB4,IF(WEEKDAY(AB4)>AE5,\"\",AD7+1))","v":""},{"$f":"IF(WEEKDAY(AB4)=AF5,AB4,IF(WEEKDAY(AB4)>AF5,\"\",AE7+1))","v":"2021-04-01"},{"$f":"IF(WEEKDAY(AB4)=AG5,AB4,IF(WEEKDAY(AB4)>AG5,\"\",AF7+1))","v":"2021-04-02"},{"$f":"IF(WEEKDAY(AB4)=AH5,AB4,IF(WEEKDAY(AB4)>AH5,\"\",AG7+1))","v":"2021-04-03"},null,{"$f":"IF(WEEKDAY(AJ4)=AJ5,AJ4,IF(WEEKDAY(AJ4)>AJ5,\"\",AI7+1))","v":""},{"$f":"IF(WEEKDAY(AJ4)=AK5,AJ4,IF(WEEKDAY(AJ4)>AK5,\"\",AJ7+1))","v":""},{"$f":"IF(WEEKDAY(AJ4)=AL5,AJ4,IF(WEEKDAY(AJ4)>AL5,\"\",AK7+1))","v":""},{"$f":"IF(WEEKDAY(AJ4)=AM5,AJ4,IF(WEEKDAY(AJ4)>AM5,\"\",AL7+1))","v":""},{"$f":"IF(WEEKDAY(AJ4)=AN5,AJ4,IF(WEEKDAY(AJ4)>AN5,\"\",AM7+1))","v":""},{"$f":"IF(WEEKDAY(AJ4)=AO5,AJ4,IF(WEEKDAY(AJ4)>AO5,\"\",AN7+1))","v":""},{"$f":"IF(WEEKDAY(AJ4)=AP5,AJ4,IF(WEEKDAY(AJ4)>AP5,\"\",AO7+1))","v":"2021-05-01"},null,{"$f":"IF(WEEKDAY(AR4)=AR5,AR4,IF(WEEKDAY(AR4)>AR5,\"\",AQ7+1))","v":""},{"$f":"IF(WEEKDAY(AR4)=AS5,AR4,IF(WEEKDAY(AR4)>AS5,\"\",AR7+1))","v":""},{"$f":"IF(WEEKDAY(AR4)=AT5,AR4,IF(WEEKDAY(AR4)>AT5,\"\",AS7+1))","v":"2021-06-01"},{"$f":"IF(WEEKDAY(AR4)=AU5,AR4,IF(WEEKDAY(AR4)>AU5,\"\",AT7+1))","v":"2021-06-02"},{"$f":"IF(WEEKDAY(AR4)=AV5,AR4,IF(WEEKDAY(AR4)>AV5,\"\",AU7+1))","v":"2021-06-03"},{"$f":"IF(WEEKDAY(AR4)=AW5,AR4,IF(WEEKDAY(AR4)>AW5,\"\",AV7+1))","v":"2021-06-04"},{"$f":"IF(WEEKDAY(AR4)=AX5,AR4,IF(WEEKDAY(AR4)>AX5,\"\",AW7+1))","v":"2021-06-05"}]
[null,null,null,{"$f":"J7+1","v":"2021-01-03"},{"$f":"D8+1","v":"2021-01-04"},{"$f":"E8+1","v":"2021-01-05"},"2021-01-06","2021-01-07","2021-01-08","2021-01-09",null,{"$f":"R7+1","v":"2021-02-07"},{"$f":"L8+1","v":"2021-02-08"},{"$f":"M8+1","v":"2021-02-09"},"2021-02-10","2021-02-11","2021-02-12","2021-02-13",null,{"$f":"Z7+1","v":"2021-03-07"},{"$f":"T8+1","v":"2021-03-08"},{"$f":"U8+1","v":"2021-03-09"},"2021-03-10","2021-03-11","2021-03-12","2021-03-13",null,{"$f":"AH7+1","v":"2021-04-04"},{"$f":"AB8+1","v":"2021-04-05"},{"$f":"AC8+1","v":"2021-04-06"},"2021-04-07","2021-04-08","2021-04-09","2021-04-10",null,{"$f":"AP7+1","v":"2021-05-02"},{"$f":"AJ8+1","v":"2021-05-03"},{"$f":"AK8+1","v":"2021-05-04"},"2021-05-05","2021-05-06","2021-05-07","2021-05-08",null,{"$f":"AX7+1","v":"2021-06-06"},{"$f":"AR8+1","v":"2021-06-07"},{"$f":"AS8+1","v":"2021-06-08"},"2021-06-09","2021-06-10","2021-06-11","2021-06-12"]
[null,null,null,{"$f":"J8+1","v":"2021-01-10"},{"$f":"D9+1","v":"2021-01-11"},"2021-01-12","2021-01-13","2021-01-14","2021-01-15","2021-01-16",null,{"$f":"R8+1","v":"2021-02-14"},{"$f":"L9+1","v":"2021-02-15"},"2021-02-16","2021-02-17","2021-02-18","2021-02-19","2021-02-20",null,{"$f":"Z8+1","v":"2021-03-14"},{"$f":"T9+1","v":"2021-03-15"},"2021-03-16","2021-03-17","2021-03-18","2021-03-19","2021-03-20",null,{"$f":"AH8+1","v":"2021-04-11"},{"$f":"AB9+1","v":"2021-04-12"},"2021-04-13","2021-04-14","2021-04-15","2021-04-16","2021-04-17",null,{"$f":"AP8+1","v":"2021-05-09"},{"$f":"AJ9+1","v":"2021-05-10"},"2021-05-11","2021-05-12","2021-05-13","2021-05-14","2021-05-15",null,{"$f":"AX8+1","v":"2021-06-13"},{"$f":"AR9+1","v":"2021-06-14"},"2021-06-15","2021-06-16","2021-06-17","2021-06-18","2021-06-19"]
[null,null,null,{"$f":"J9+1","v":"2021-01-17"},{"$f":"D10+1","v":"2021-01-18"},"2021-01-19","2021-01-20","2021-01-21","2021-01-22","2021-01-23",null,{"$f":"R9+1","v":"2021-02-21"},{"$f":"L10+1","v":"2021-02-22"},"2021-02-23","2021-02-24","2021-02-25","2021-02-26","2021-02-27",null,{"$f":"Z9+1","v":"2021-03-21"},{"$f":"T10+1","v":"2021-03-22"},"2021-03-23","2021-03-24","2021-03-25","2021-03-26","2021-03-27",null,{"$f":"AH9+1","v":"2021-04-18"},{"$f":"AB10+1","v":"2021-04-19"},"2021-04-20","2021-04-21","2021-04-22","2021-04-23","2021-04-24",null,{"$f":"AP9+1","v":"2021-05-16"},{"$f":"AJ10+1","v":"2021-05-17"},"2021-05-18","2021-05-19","2021-05-20","2021-05-21","2021-05-22",null,{"$f":"AX9+1","v":"2021-06-20"},{"$f":"AR10+1","v":"2021-06-21"},"2021-06-22","2021-06-23","2021-06-24","2021-06-25","2021-06-26"]
[null,null,null,{"$f":"IFERROR(IF(MONTH(J10+1)<>MONTH(J10),\"\",J10+1),\"\")","v":"2021-01-24"},{"$f":"IFERROR(IF(MONTH(D11+1)<>MONTH(D11),\"\",D11+1),\"\")","v":"2021-01-25"},{"$f":"IFERROR(IF(MONTH(E11+1)<>MONTH(E11),\"\",E11+1),\"\")","v":"2021-01-26"},"2021-01-27","2021-01-28","2021-01-29","2021-01-30",null,{"$f":"IFERROR(IF(MONTH(R10+1)<>MONTH(R10),\"\",R10+1),\"\")","v":"2021-02-28"},{"$f":"IFERROR(IF(MONTH(L11+1)<>MONTH(L11),\"\",L11+1),\"\")","v":""},{"$f":"IFERROR(IF(MONTH(M11+1)<>MONTH(M11),\"\",M11+1),\"\")","v":""},"","","","",null,{"$f":"IFERROR(IF(MONTH(Z10+1)<>MONTH(Z10),\"\",Z10+1),\"\")","v":"2021-03-28"},{"$f":"IFERROR(IF(MONTH(T11+1)<>MONTH(T11),\"\",T11+1),\"\")","v":"2021-03-29"},{"$f":"IFERROR(IF(MONTH(U11+1)<>MONTH(U11),\"\",U11+1),\"\")","v":"2021-03-30"},"2021-03-31","","","",null,{"$f":"IFERROR(IF(MONTH(AH10+1)<>MONTH(AH10),\"\",AH10+1),\"\")","v":"2021-04-25"},{"$f":"IFERROR(IF(MONTH(AB11+1)<>MONTH(AB11),\"\",AB11+1),\"\")","v":"2021-04-26"},{"$f":"IFERROR(IF(MONTH(AC11+1)<>MONTH(AC11),\"\",AC11+1),\"\")","v":"2021-04-27"},"2021-04-28","2021-04-29","2021-04-30","",null,{"$f":"IFERROR(IF(MONTH(AP10+1)<>MONTH(AP10),\"\",AP10+1),\"\")","v":"2021-05-23"},{"$f":"IFERROR(IF(MONTH(AJ11+1)<>MONTH(AJ11),\"\",AJ11+1),\"\")","v":"2021-05-24"},{"$f":"IFERROR(IF(MONTH(AK11+1)<>MONTH(AK11),\"\",AK11+1),\"\")","v":"2021-05-25"},"2021-05-26","2021-05-27","2021-05-28","2021-05-29",null,{"$f":"IFERROR(IF(MONTH(AX10+1)<>MONTH(AX10),\"\",AX10+1),\"\")","v":"2021-06-27"},{"$f":"IFERROR(IF(MONTH(AR11+1)<>MONTH(AR11),\"\",AR11+1),\"\")","v":"2021-06-28"},{"$f":"IFERROR(IF(MONTH(AS11+1)<>MONTH(AS11),\"\",AS11+1),\"\")","v":"2021-06-29"},"2021-06-30","","",""]
[null,null,null,{"$f":"IFERROR(IF(MONTH(J11+1)<>MONTH(J11),\"\",J11+1),\"\")","v":"2021-01-31"},{"$f":"IFERROR(IF(MONTH(D12+1)<>MONTH(D12),\"\",D12+1),\"\")","v":""},"","","","","",null,{"$f":"IFERROR(IF(MONTH(R11+1)<>MONTH(R11),\"\",R11+1),\"\")","v":""},{"$f":"IFERROR(IF(MONTH(L12+1)<>MONTH(L12),\"\",L12+1),\"\")","v":""},"","","","","",null,{"$f":"IFERROR(IF(MONTH(Z11+1)<>MONTH(Z11),\"\",Z11+1),\"\")","v":""},{"$f":"IFERROR(IF(MONTH(T12+1)<>MONTH(T12),\"\",T12+1),\"\")","v":""},"","","","","",null,{"$f":"IFERROR(IF(MONTH(AH11+1)<>MONTH(AH11),\"\",AH11+1),\"\")","v":""},{"$f":"IFERROR(IF(MONTH(AB12+1)<>MONTH(AB12),\"\",AB12+1),\"\")","v":""},"","","","","",null,{"$f":"IFERROR(IF(MONTH(AP11+1)<>MONTH(AP11),\"\",AP11+1),\"\")","v":"2021-05-30"},{"$f":"IFERROR(IF(MONTH(AJ12+1)<>MONTH(AJ12),\"\",AJ12+1),\"\")","v":"2021-05-31"},"","","","","",null,{"$f":"IFERROR(IF(MONTH(AX11+1)<>MONTH(AX11),\"\",AX11+1),\"\")","v":""},{"$f":"IFERROR(IF(MONTH(AR12+1)<>MONTH(AR12),\"\",AR12+1),\"\")","v":""},"","","","",""]
[]
[null,null,null,{"$f":"AR3+1","v":7},null,null,null,null,null,null,null,{"$f":"D14+1","v":8},null,null,null,null,null,null,null,{"$f":"L14+1","v":9},null,null,null,null,null,null,null,{"$f":"T14+1","v":10},null,null,null,null,null,null,null,{"$f":"AB14+1","v":11},null,null,null,null,null,null,null,{"$f":"AJ14+1","v":12}]
[null,null,null,{"$f":"DATE(ANNO,D14,1)","v":"2021-07-01"},null,null,null,null,null,null,null,{"$f":"DATE(ANNO,L14,1)","v":"2021-08-01"},null,null,null,null,null,null,null,{"$f":"DATE(ANNO,T14,1)","v":"2021-09-01"},null,null,null,null,null,null,null,{"$f":"DATE(ANNO,AB14,1)","v":"2021-10-01"},null,null,null,null,null,null,null,{"$f":"DATE(ANNO,AJ14,1)","v":"2021-11-01"},null,null,null,null,null,null,null,{"$f":"DATE(ANNO,AR14,1)","v":"2021-12-01"}]
[null,null,null,1,2,3,4,5,6,7,null,1,2,3,4,5,6,7,null,1,2,3,4,5,6,7,null,1,2,3,4,5,6,7,null,1,2,3,4,5,6,7,null,1,2,3,4,5,6,7]
[null,null,null,"D","S","T","Q","Q","S","S",null,"D","S","T","Q","Q","S","S",null,"D","S","T","Q","Q","S","S",null,"D","S","T","Q","Q","S","S",null,"D","S","T","Q","Q","S","S",null,"D","S","T","Q","Q","S","S"]
[null,null,null,{"$f":"IF(WEEKDAY(D15)=D16,D15,IF(WEEKDAY(D15)>D16,\"\",C18+1))","v":""},{"$f":"IF(WEEKDAY(D15)=E16,D15,IF(WEEKDAY(D15)>E16,\"\",D18+1))","v":""},{"$f":"IF(WEEKDAY(D15)=F16,D15,IF(WEEKDAY(D15)>F16,\"\",E18+1))","v":""},{"$f":"IF(WEEKDAY(D15)=G16,D15,IF(WEEKDAY(D15)>G16,\"\",F18+1))","v":""},{"$f":"IF(WEEKDAY(D15)=H16,D15,IF(WEEKDAY(D15)>H16,\"\",G18+1))","v":"2021-07-01"},{"$f":"IF(WEEKDAY(D15)=I16,D15,IF(WEEKDAY(D15)>I16,\"\",H18+1))","v":"2021-07-02"},{"$f":"IF(WEEKDAY(D15)=J16,D15,IF(WEEKDAY(D15)>J16,\"\",I18+1))","v":"2021-07-03"},null,{"$f":"IF(WEEKDAY(L15)=L16,L15,IF(WEEKDAY(L15)>L16,\"\",K18+1))","v":"2021-08-01"},{"$f":"IF(WEEKDAY(L15)=M16,L15,IF(WEEKDAY(L15)>M16,\"\",L18+1))","v":"2021-08-02"},{"$f":"IF(WEEKDAY(L15)=N16,L15,IF(WEEKDAY(L15)>N16,\"\",M18+1))","v":"2021-08-03"},{"$f":"IF(WEEKDAY(L15)=O16,L15,IF(WEEKDAY(L15)>O16,\"\",N18+1))","v":"2021-08-04"},{"$f":"IF(WEEKDAY(L15)=P16,L15,IF(WEEKDAY(L15)>P16,\"\",O18+1))","v":"2021-08-05"},{"$f":"IF(WEEKDAY(L15)=Q16,L15,IF(WEEKDAY(L15)>Q16,\"\",P18+1))","v":"2021-08-06"},{"$f":"IF(WEEKDAY(L15)=R16,L15,IF(WEEKDAY(L15)>R16,\"\",Q18+1))","v":"2021-08-07"},null,{"$f":"IF(WEEKDAY(T15)=T16,T15,IF(WEEKDAY(T15)>T16,\"\",S18+1))","v":""},{"$f":"IF(WEEKDAY(T15)=U16,T15,IF(WEEKDAY(T15)>U16,\"\",T18+1))","v":""},{"$f":"IF(WEEKDAY(T15)=V16,T15,IF(WEEKDAY(T15)>V16,\"\",U18+1))","v":""},{"$f":"IF(WEEKDAY(T15)=W16,T15,IF(WEEKDAY(T15)>W16,\"\",V18+1))","v":"2021-09-01"},{"$f":"IF(WEEKDAY(T15)=X16,T15,IF(WEEKDAY(T15)>X16,\"\",W18+1))","v":"2021-09-02"},{"$f":"IF(WEEKDAY(T15)=Y16,T15,IF(WEEKDAY(T15)>Y16,\"\",X18+1))","v":"2021-09-03"},{"$f":"IF(WEEKDAY(T15)=Z16,T15,IF(WEEKDAY(T15)>Z16,\"\",Y18+1))","v":"2021-09-04"},null,{"$f":"IF(WEEKDAY(AB15)=AB16,AB15,IF(WEEKDAY(AB15)>AB16,\"\",AA18+1))","v":""},{"$f":"IF(WEEKDAY(AB15)=AC16,AB15,IF(WEEKDAY(AB15)>AC16,\"\",AB18+1))","v":""},{"$f":"IF(WEEKDAY(AB15)=AD16,AB15,IF(WEEKDAY(AB15)>AD16,\"\",AC18+1))","v":""},{"$f":"IF(WEEKDAY(AB15)=AE16,AB15,IF(WEEKDAY(AB15)>AE16,\"\",AD18+1))","v":""},{"$f":"IF(WEEKDAY(AB15)=AF16,AB15,IF(WEEKDAY(AB15)>AF16,\"\",AE18+1))","v":""},{"$f":"IF(WEEKDAY(AB15)=AG16,AB15,IF(WEEKDAY(AB15)>AG16,\"\",AF18+1))","v":"2021-10-01"},{"$f":"IF(WEEKDAY(AB15)=AH16,AB15,IF(WEEKDAY(AB15)>AH16,\"\",AG18+1))","v":"2021-10-02"},null,{"$f":"IF(WEEKDAY(AJ15)=AJ16,AJ15,IF(WEEKDAY(AJ15)>AJ16,\"\",AI18+1))","v":""},{"$f":"IF(WEEKDAY(AJ15)=AK16,AJ15,IF(WEEKDAY(AJ15)>AK16,\"\",AJ18+1))","v":"2021-11-01"},{"$f":"IF(WEEKDAY(AJ15)=AL16,AJ15,IF(WEEKDAY(AJ15)>AL16,\"\",AK18+1))","v":"2021-11-02"},{"$f":"IF(WEEKDAY(AJ15)=AM16,AJ15,IF(WEEKDAY(AJ15)>AM16,\"\",AL18+1))","v":"2021-11-03"},{"$f":"IF(WEEKDAY(AJ15)=AN16,AJ15,IF(WEEKDAY(AJ15)>AN16,\"\",AM18+1))","v":"2021-11-04"},{"$f":"IF(WEEKDAY(AJ15)=AO16,AJ15,IF(WEEKDAY(AJ15)>AO16,\"\",AN18+1))","v":"2021-11-05"},{"$f":"IF(WEEKDAY(AJ15)=AP16,AJ15,IF(WEEKDAY(AJ15)>AP16,\"\",AO18+1))","v":"2021-11-06"},null,{"$f":"IF(WEEKDAY(AR15)=AR16,AR15,IF(WEEKDAY(AR15)>AR16,\"\",AQ18+1))","v":""},{"$f":"IF(WEEKDAY(AR15)=AS16,AR15,IF(WEEKDAY(AR15)>AS16,\"\",AR18+1))","v":""},{"$f":"IF(WEEKDAY(AR15)=AT16,AR15,IF(WEEKDAY(AR15)>AT16,\"\",AS18+1))","v":""},{"$f":"IF(WEEKDAY(AR15)=AU16,AR15,IF(WEEKDAY(AR15)>AU16,\"\",AT18+1))","v":"2021-12-01"},{"$f":"IF(WEEKDAY(AR15)=AV16,AR15,IF(WEEKDAY(AR15)>AV16,\"\",AU18+1))","v":"2021-12-02"},{"$f":"IF(WEEKDAY(AR15)=AW16,AR15,IF(WEEKDAY(AR15)>AW16,\"\",AV18+1))","v":"2021-12-03"},{"$f":"IF(WEEKDAY(AR15)=AX16,AR15,IF(WEEKDAY(AR15)>AX16,\"\",AW18+1))","v":"2021-12-04"}]
[null,null,null,{"$f":"J18+1","v":"2021-07-04"},{"$f":"D19+1","v":"2021-07-05"},{"$f":"E19+1","v":"2021-07-06"},"2021-07-07","2021-07-08","2021-07-09","2021-07-10",null,{"$f":"R18+1","v":"2021-08-08"},{"$f":"L19+1","v":"2021-08-09"},{"$f":"M19+1","v":"2021-08-10"},"2021-08-11","2021-08-12","2021-08-13","2021-08-14",null,{"$f":"Z18+1","v":"2021-09-05"},{"$f":"T19+1","v":"2021-09-06"},{"$f":"U19+1","v":"2021-09-07"},"2021-09-08","2021-09-09","2021-09-10","2021-09-11",null,{"$f":"AH18+1","v":"2021-10-03"},{"$f":"AB19+1","v":"2021-10-04"},{"$f":"AC19+1","v":"2021-10-05"},"2021-10-06","2021-10-07","2021-10-08","2021-10-09",null,{"$f":"AP18+1","v":"2021-11-07"},{"$f":"AJ19+1","v":"2021-11-08"},{"$f":"AK19+1","v":"2021-11-09"},"2021-11-10","2021-11-11","2021-11-12","2021-11-13",null,{"$f":"AX18+1","v":"2021-12-05"},{"$f":"AR19+1","v":"2021-12-06"},{"$f":"AS19+1","v":"2021-12-07"},"2021-12-08","2021-12-09","2021-12-10","2021-12-11"]
[null,null,null,{"$f":"J19+1","v":"2021-07-11"},{"$f":"D20+1","v":"2021-07-12"},"2021-07-13","2021-07-14","2021-07-15","2021-07-16","2021-07-17",null,{"$f":"R19+1","v":"2021-08-15"},{"$f":"L20+1","v":"2021-08-16"},"2021-08-17","2021-08-18","2021-08-19","2021-08-20","2021-08-21",null,{"$f":"Z19+1","v":"2021-09-12"},{"$f":"T20+1","v":"2021-09-13"},"2021-09-14","2021-09-15","2021-09-16","2021-09-17","2021-09-18",null,{"$f":"AH19+1","v":"2021-10-10"},{"$f":"AB20+1","v":"2021-10-11"},"2021-10-12","2021-10-13","2021-10-14","2021-10-15","2021-10-16",null,{"$f":"AP19+1","v":"2021-11-14"},{"$f":"AJ20+1","v":"2021-11-15"},"2021-11-16","2021-11-17","2021-11-18","2021-11-19","2021-11-20",null,{"$f":"AX19+1","v":"2021-12-12"},{"$f":"AR20+1","v":"2021-12-13"},"2021-12-14","2021-12-15","2021-12-16","2021-12-17","2021-12-18"]
[null,null,null,{"$f":"J20+1","v":"2021-07-18"},{"$f":"D21+1","v":"2021-07-19"},"2021-07-20","2021-07-21","2021-07-22","2021-07-23","2021-07-24",null,{"$f":"R20+1","v":"2021-08-22"},{"$f":"L21+1","v":"2021-08-23"},"2021-08-24","2021-08-25","2021-08-26","2021-08-27","2021-08-28",null,{"$f":"Z20+1","v":"2021-09-19"},{"$f":"T21+1","v":"2021-09-20"},"2021-09-21","2021-09-22","2021-09-23","2021-09-24","2021-09-25",null,{"$f":"AH20+1","v":"2021-10-17"},{"$f":"AB21+1","v":"2021-10-18"},"2021-10-19","2021-10-20","2021-10-21","2021-10-22","2021-10-23",null,{"$f":"AP20+1","v":"2021-11-21"},{"$f":"AJ21+1","v":"2021-11-22"},"2021-11-23","2021-11-24","2021-11-25","2021-11-26","2021-11-27",null,{"$f":"AX20+1","v":"2021-12-19"},{"$f":"AR21+1","v":"2021-12-20"},"2021-12-21","2021-12-22","2021-12-23","2021-12-24","2021-12-25"]
[null,null,null,{"$f":"IFERROR(IF(MONTH(J21+1)<>MONTH(J21),\"\",J21+1),\"\")","v":"2021-07-25"},{"$f":"IFERROR(IF(MONTH(D22+1)<>MONTH(D22),\"\",D22+1),\"\")","v":"2021-07-26"},{"$f":"IFERROR(IF(MONTH(E22+1)<>MONTH(E22),\"\",E22+1),\"\")","v":"2021-07-27"},"2021-07-28","2021-07-29","2021-07-30","2021-07-31",null,{"$f":"IFERROR(IF(MONTH(R21+1)<>MONTH(R21),\"\",R21+1),\"\")","v":"2021-08-29"},{"$f":"IFERROR(IF(MONTH(L22+1)<>MONTH(L22),\"\",L22+1),\"\")","v":"2021-08-30"},{"$f":"IFERROR(IF(MONTH(M22+1)<>MONTH(M22),\"\",M22+1),\"\")","v":"2021-08-31"},"","","","",null,{"$f":"IFERROR(IF(MONTH(Z21+1)<>MONTH(Z21),\"\",Z21+1),\"\")","v":"2021-09-26"},{"$f":"IFERROR(IF(MONTH(T22+1)<>MONTH(T22),\"\",T22+1),\"\")","v":"2021-09-27"},{"$f":"IFERROR(IF(MONTH(U22+1)<>MONTH(U22),\"\",U22+1),\"\")","v":"2021-09-28"},"2021-09-29","2021-09-30","","",null,{"$f":"IFERROR(IF(MONTH(AH21+1)<>MONTH(AH21),\"\",AH21+1),\"\")","v":"2021-10-24"},{"$f":"IFERROR(IF(MONTH(AB22+1)<>MONTH(AB22),\"\",AB22+1),\"\")","v":"2021-10-25"},{"$f":"IFERROR(IF(MONTH(AC22+1)<>MONTH(AC22),\"\",AC22+1),\"\")","v":"2021-10-26"},"2021-10-27","2021-10-28","2021-10-29","2021-10-30",null,{"$f":"IFERROR(IF(MONTH(AP21+1)<>MONTH(AP21),\"\",AP21+1),\"\")","v":"2021-11-28"},{"$f":"IFERROR(IF(MONTH(AJ22+1)<>MONTH(AJ22),\"\",AJ22+1),\"\")","v":"2021-11-29"},{"$f":"IFERROR(IF(MONTH(AK22+1)<>MONTH(AK22),\"\",AK22+1),\"\")","v":"2021-11-30"},"","","","",null,{"$f":"IFERROR(IF(MONTH(AX21+1)<>MONTH(AX21),\"\",AX21+1),\"\")","v":"2021-12-26"},{"$f":"IFERROR(IF(MONTH(AR22+1)<>MONTH(AR22),\"\",AR22+1),\"\")","v":"2021-12-27"},{"$f":"IFERROR(IF(MONTH(AS22+1)<>MONTH(AS22),\"\",AS22+1),\"\")","v":"2021-12-28"},"2021-12-29","2021-12-30","2021-12-31",""]
[null,null,null,{"$f":"IFERROR(IF(MONTH(J22+1)<>MONTH(J22),\"\",J22+1),\"\")","v":""},{"$f":"IFERROR(IF(MONTH(D23+1)<>MONTH(D23),\"\",D23+1),\"\")","v":""},"","","","","",null,{"$f":"IFERROR(IF(MONTH(R22+1)<>MONTH(R22),\"\",R22+1),\"\")","v":""},{"$f":"IFERROR(IF(MONTH(L23+1)<>MONTH(L23),\"\",L23+1),\"\")","v":""},"","","","","",null,{"$f":"IFERROR(IF(MONTH(Z22+1)<>MONTH(Z22),\"\",Z22+1),\"\")","v":""},{"$f":"IFERROR(IF(MONTH(T23+1)<>MONTH(T23),\"\",T23+1),\"\")","v":""},"","","","","",null,{"$f":"IFERROR(IF(MONTH(AH22+1)<>MONTH(AH22),\"\",AH22+1),\"\")","v":"2021-10-31"},{"$f":"IFERROR(IF(MONTH(AB23+1)<>MONTH(AB23),\"\",AB23+1),\"\")","v":""},"","","","","",null,{"$f":"IFERROR(IF(MONTH(AP22+1)<>MONTH(AP22),\"\",AP22+1),\"\")","v":""},{"$f":"IFERROR(IF(MONTH(AJ23+1)<>MONTH(AJ23),\"\",AJ23+1),\"\")","v":""},"","","","","",null,{"$f":"IFERROR(IF(MONTH(AX22+1)<>MONTH(AX22),\"\",AX22+1),\"\")","v":""},{"$f":"IFERROR(IF(MONTH(AR23+1)<>MONTH(AR23),\"\",AR23+1),\"\")","v":""},"","","","",""]

{"sheet":"FERIADOS","index":7,"n_rows":28,"n_cols":19,"rows_kept":28,"cut":false,"hidden":false,"merged":[]}
["DATA DO FERIADO","DESCRIÇÃO DO FERIADO","ANO","MÊS ","DIA",null,null,{"$f":"ANNO","v":2021},"TITULAR","DIA","FECHAMENTO","VENCIMENTO",null,null,null,null,"CARTÕES","FECHAMENTO","VENCIMENTO"]
[{"$f":"DATE(C2,D2,E2)","v":44197},"INICIO DO ANO",{"$f":"$H$1","v":2021},1,1,null,null,null,null,{"$f":"DAY(L2)","v":1},{"$f":"VLOOKUP(CALENDARIO!W1,CONFIG!$D$2:$G$15,4,0)","v":44397},{"$f":"VLOOKUP(CALENDARIO!W1,CONFIG!$D$2:$G$15,3,0)","v":44409}]
[{"$f":"A4-1","v":44242},"CARNAVAL",{"$f":"$H$1","v":2021},"X","X"]
[{"$f":"A6-47","v":44243},"CARNAVAL",2021,"X","X"]
[{"$f":"A6-2","v":44288},"SEXTA SANTA",2021,"X","X"]
[{"$f":"FLOOR(DAY(MINUTE(H1/38)/2+56)&\"/5\"&\"/\"&H1,7)-34","v":44290},"PASCOA",2021,"X","X"]
[{"$f":"DATE(C7,D7,E7)","v":44307},"TIRADENTES",2021,4,21]
[{"$f":"DATE(C8,D8,E8)","v":44317},"DIA DO TRABALHADOR",2021,5,1]
[{"$f":"A6+60","v":44350},"CORPUS CRISTHI",2021,"X","X"]
[{"$f":"DATE(C10,D10,E10)","v":44446},"INDEPENDÊNCIA",2021,9,7]
[{"$f":"DATE(C11,D11,E11)","v":44481},"NOSSA SENHORA APARECIDA",2021,10,12]
[{"$f":"DATE(C12,D12,E12)","v":44502},"FINADOS",2021,11,2]
[44515,"PROCLAMAÇÃO DA REPÚBLICA",2021,11,15]
[44555,"NATAL",2021,12,25]
[null,null,2021]
[null,null,2021]
[null,null,2021,null,null,null,null,null,null,null,null,"SE(CALENDÁRIO!AD1<>\"\";DATA(ANO(HOJE());SE(MÊS(L2)=MÊS(DATA(ANO(HOJE());CALENDÁRIO!AG2;PROCV(CALENDÁRIO!AD1;AUXILIAR!D2:G15;4;0)));MÊS(L2)-1;CALENDÁRIO!AG2);PROCV(CALENDÁRIO!AD1;AUXILIAR!D2:G15;4;0)))"]
[null,null,2021]
[null,null,2021,null,null,null,null,null,null,null,null,77175]
[null,null,2021]
[null,null,2021]
[null,null,2021]
[null,null,2021]
[null,null,2021]
[null,null,2021]
[null,null,2021]
[null,null,2021]
[null,null,2021]

{"sheet":"GASTOS_MENSAIS","index":8,"n_rows":22,"n_cols":20,"rows_kept":22,"cut":false,"hidden":false,"merged":[]}
[]
[]
[]
[]
["CARTÃO","JANEIRO","FEVEREIRO","MARÇO","ABRIL","MAIO","JUNHO","JULHO","AGOSTO","SETEMBRO","OUTUBRO","NOVEMBRO","DEZEMBRO","TOTAL",null,null,"CARTÃO","LIMITE\nDISPONIVEL","GASTOS","DISPONIVEL"]
["CARTÃO","2021-01-01","2021-02-01","2021-03-01","2021-04-01","2021-05-01","2021-06-01","2021-07-01","2021-08-01","2021-09-01","2021-10-01","2021-11-01","2021-12-01"]
[{"$f":"CONFIG!A2","v":"CLICK_JUNIOR"},{"$f":"SUMIFS(DADOS!$O:$O,DADOS!$E:$E,$A7,DADOS!$M:$M,DATE(YEAR(TODAY()),MONTH(B$6),DAY(VLOOKUP($A7,CONFIG!$E$2:$F$15,2,0))))","v":0},{"$f":"SUMIFS(DADOS!$O:$O,DADOS!$E:$E,$A7,DADOS!$M:$M,DATE(YEAR(TODAY()),MONTH(C$6),DAY(VLOOKUP($A7,CONFIG!$E$2:$F$15,2,0))))","v":0},{"$f":"SUMIFS(DADOS!$O:$O,DADOS!$E:$E,$A7,DADOS!$M:$M,DATE(YEAR(TODAY()),MONTH(D$6),DAY(VLOOKUP($A7,CONFIG!$E$2:$F$15,2,0))))","v":0},{"$f":"SUMIFS(DADOS!$O:$O,DADOS!$E:$E,$A7,DADOS!$M:$M,DATE(YEAR(TODAY()),MONTH(E$6),DAY(VLOOKUP($A7,CONFIG!$E$2:$F$15,2,0))))","v":0},{"$f":"SUMIFS(DADOS!$O:$O,DADOS!$E:$E,$A7,DADOS!$M:$M,DATE(YEAR(TODAY()),MONTH(F$6),DAY(VLOOKUP($A7,CONFIG!$E$2:$F$15,2,0))))","v":0},{"$f":"SUMIFS(DADOS!$O:$O,DADOS!$E:$E,$A7,DADOS!$M:$M,DATE(YEAR(TODAY()),MONTH(G$6),DAY(VLOOKUP($A7,CONFIG!$E$2:$F$15,2,0))))","v":0},{"$f":"SUMIFS(DADOS!$O:$O,DADOS!$E:$E,$A7,DADOS!$M:$M,DATE(YEAR(TODAY()),MONTH(H$6),DAY(VLOOKUP($A7,CONFIG!$E$2:$F$15,2,0))))","v":0},{"$f":"SUMIFS(DADOS!$O:$O,DADOS!$E:$E,$A7,DADOS!$M:$M,DATE(YEAR(TODAY()),MONTH(I$6),DAY(VLOOKUP($A7,CONFIG!$E$2:$F$15,2,0))))","v":0},{"$f":"SUMIFS(DADOS!$O:$O,DADOS!$E:$E,$A7,DADOS!$M:$M,DATE(YEAR(TODAY()),MONTH(J$6),DAY(VLOOKUP($A7,CONFIG!$E$2:$F$15,2,0))))","v":0},{"$f":"SUMIFS(DADOS!$O:$O,DADOS!$E:$E,$A7,DADOS!$M:$M,DATE(YEAR(TODAY()),MONTH(K$6),DAY(VLOOKUP($A7,CONFIG!$E$2:$F$15,2,0))))","v":0},{"$f":"SUMIFS(DADOS!$O:$O,DADOS!$E:$E,$A7,DADOS!$M:$M,DATE(YEAR(TODAY()),MONTH(L$6),DAY(VLOOKUP($A7,CONFIG!$E$2:$F$15,2,0))))","v":0},{"$f":"SUMIFS(DADOS!$O:$O,DADOS!$E:$E,$A7,DADOS!$M:$M,DATE(YEAR(TODAY()),MONTH(M$6),DAY(VLOOKUP($A7,CONFIG!$E$2:$F$15,2,0))))","v":0},{"$f":"SUM(B7:M7)","v":0},null,null,{"$f":"A7","v":"CLICK_JUNIOR"},2300,{"$error":"#VALUE!"},{"$f":"R7-S7","v":{"$error":"#VALUE!"}}]
[{"$f":"CONFIG!A3","v":"MELIUZ_JUNIOR"},{"$f":"SUMIFS(DADOS!$O:$O,DADOS!$E:$E,$A8,DADOS!$M:$M,DATE(YEAR(TODAY()),MONTH(B$6),DAY(VLOOKUP($A8,CONFIG!$E$2:$F$15,2,0))))","v":0},{"$f":"SUMIFS(DADOS!$O:$O,DADOS!$E:$E,$A8,DADOS!$M:$M,DATE(YEAR(TODAY()),MONTH(C$6),DAY(VLOOKUP($A8,CONFIG!$E$2:$F$15,2,0))))","v":0},{"$f":"SUMIFS(DADOS!$O:$O,DADOS!$E:$E,$A8,DADOS!$M:$M,DATE(YEAR(TODAY()),MONTH(D$6),DAY(VLOOKUP($A8,CONFIG!$E$2:$F$15,2,0))))","v":0},{"$f":"SUMIFS(DADOS!$O:$O,DADOS!$E:$E,$A8,DADOS!$M:$M,DATE(YEAR(TODAY()),MONTH(E$6),DAY(VLOOKUP($A8,CONFIG!$E$2:$F$15,2,0))))","v":0},{"$f":"SUMIFS(DADOS!$O:$O,DADOS!$E:$E,$A8,DADOS!$M:$M,DATE(YEAR(TODAY()),MONTH(F$6),DAY(VLOOKUP($A8,CONFIG!$E$2:$F$15,2,0))))","v":0},{"$f":"SUMIFS(DADOS!$O:$O,DADOS!$E:$E,$A8,DADOS!$M:$M,DATE(YEAR(TODAY()),MONTH(G$6),DAY(VLOOKUP($A8,CONFIG!$E$2:$F$15,2,0))))","v":0},{"$f":"SUMIFS(DADOS!$O:$O,DADOS!$E:$E,$A8,DADOS!$M:$M,DATE(YEAR(TODAY()),MONTH(H$6),DAY(VLOOKUP($A8,CONFIG!$E$2:$F$15,2,0))))","v":0},{"$f":"SUMIFS(DADOS!$O:$O,DADOS!$E:$E,$A8,DADOS!$M:$M,DATE(YEAR(TODAY()),MONTH(I$6),DAY(VLOOKUP($A8,CONFIG!$E$2:$F$15,2,0))))","v":0},{"$f":"SUMIFS(DADOS!$O:$O,DADOS!$E:$E,$A8,DADOS!$M:$M,DATE(YEAR(TODAY()),MONTH(J$6),DAY(VLOOKUP($A8,CONFIG!$E$2:$F$15,2,0))))","v":0},{"$f":"SUMIFS(DADOS!$O:$O,DADOS!$E:$E,$A8,DADOS!$M:$M,DATE(YEAR(TODAY()),MONTH(K$6),DAY(VLOOKUP($A8,CONFIG!$E$2:$F$15,2,0))))","v":0},{"$f":"SUMIFS(DADOS!$O:$O,DADOS!$E:$E,$A8,DADOS!$M:$M,DATE(YEAR(TODAY()),MONTH(L$6),DAY(VLOOKUP($A8,CONFIG!$E$2:$F$15,2,0))))","v":0},{"$f":"SUMIFS(DADOS!$O:$O,DADOS!$E:$E,$A8,DADOS!$M:$M,DATE(YEAR(TODAY()),MONTH(M$6),DAY(VLOOKUP($A8,CONFIG!$E$2:$F$15,2,0))))","v":0},{"$f":"SUM(B8:M8)","v":0},null,null,{"$f":"A8","v":"MELIUZ_JUNIOR"},950,{"$error":"#VALUE!"},{"$f":"R8-S8","v":{"$error":"#VALUE!"}}]
[{"$f":"CONFIG!A4","v":"ZERO_JUNIOR"},{"$f":"SUMIFS(DADOS!$O:$O,DADOS!$E:$E,$A9,DADOS!$M:$M,DATE(YEAR(TODAY()),MONTH(B$6),DAY(VLOOKUP($A9,CONFIG!$E$2:$F$15,2,0))))","v":0},{"$f":"SUMIFS(DADOS!$O:$O,DADOS!$E:$E,$A9,DADOS!$M:$M,DATE(YEAR(TODAY()),MONTH(C$6),DAY(VLOOKUP($A9,CONFIG!$E$2:$F$15,2,0))))","v":0},{"$f":"SUMIFS(DADOS!$O:$O,DADOS!$E:$E,$A9,DADOS!$M:$M,DATE(YEAR(TODAY()),MONTH(D$6),DAY(VLOOKUP($A9,CONFIG!$E$2:$F$15,2,0))))","v":0},{"$f":"SUMIFS(DADOS!$O:$O,DADOS!$E:$E,$A9,DADOS!$M:$M,DATE(YEAR(TODAY()),MONTH(E$6),DAY(VLOOKUP($A9,CONFIG!$E$2:$F$15,2,0))))","v":0},{"$f":"SUMIFS(DADOS!$O:$O,DADOS!$E:$E,$A9,DADOS!$M:$M,DATE(YEAR(TODAY()),MONTH(F$6),DAY(VLOOKUP($A9,CONFIG!$E$2:$F$15,2,0))))","v":0},{"$f":"SUMIFS(DADOS!$O:$O,DADOS!$E:$E,$A9,DADOS!$M:$M,DATE(YEAR(TODAY()),MONTH(G$6),DAY(VLOOKUP($A9,CONFIG!$E$2:$F$15,2,0))))","v":0},{"$f":"SUMIFS(DADOS!$O:$O,DADOS!$E:$E,$A9,DADOS!$M:$M,DATE(YEAR(TODAY()),MONTH(H$6),DAY(VLOOKUP($A9,CONFIG!$E$2:$F$15,2,0))))","v":0},{"$f":"SUMIFS(DADOS!$O:$O,DADOS!$E:$E,$A9,DADOS!$M:$M,DATE(YEAR(TODAY()),MONTH(I$6),DAY(VLOOKUP($A9,CONFIG!$E$2:$F$15,2,0))))","v":0},{"$f":"SUMIFS(DADOS!$O:$O,DADOS!$E:$E,$A9,DADOS!$M:$M,DATE(YEAR(TODAY()),MONTH(J$6),DAY(VLOOKUP($A9,CONFIG!$E$2:$F$15,2,0))))","v":0},{"$f":"SUMIFS(DADOS!$O:$O,DADOS!$E:$E,$A9,DADOS!$M:$M,DATE(YEAR(TODAY()),MONTH(K$6),DAY(VLOOKUP($A9,CONFIG!$E$2:$F$15,2,0))))","v":0},{"$f":"SUMIFS(DADOS!$O:$O,DADOS!$E:$E,$A9,DADOS!$M:$M,DATE(YEAR(TODAY()),MONTH(L$6),DAY(VLOOKUP($A9,CONFIG!$E$2:$F$15,2,0))))","v":0},{"$f":"SUMIFS(DADOS!$O:$O,DADOS!$E:$E,$A9,DADOS!$M:$M,DATE(YEAR(TODAY()),MONTH(M$6),DAY(VLOOKUP($A9,CONFIG!$E$2:$F$15,2,0))))","v":0},0,null,null,"ZERO_JUNIOR",1600,{"$error":"#VALUE!"},{"$error":"#VALUE!"}]
[{"$f":"CONFIG!A5","v":"NUBANK_JUNIOR"},{"$f":"SUMIFS(DADOS!$O:$O,DADOS!$E:$E,$A10,DADOS!$M:$M,DATE(YEAR(TODAY()),MONTH(B$6),DAY(VLOOKUP($A10,CONFIG!$E$2:$F$15,2,0))))","v":0},{"$f":"SUMIFS(DADOS!$O:$O,DADOS!$E:$E,$A10,DADOS!$M:$M,DATE(YEAR(TODAY()),MONTH(C$6),DAY(VLOOKUP($A10,CONFIG!$E$2:$F$15,2,0))))","v":0},{"$f":"SUMIFS(DADOS!$O:$O,DADOS!$E:$E,$A10,DADOS!$M:$M,DATE(YEAR(TODAY()),MONTH(D$6),DAY(VLOOKUP($A10,CONFIG!$E$2:$F$15,2,0))))","v":0},{"$f":"SUMIFS(DADOS!$O:$O,DADOS!$E:$E,$A10,DADOS!$M:$M,DATE(YEAR(TODAY()),MONTH(E$6),DAY(VLOOKUP($A10,CONFIG!$E$2:$F$15,2,0))))","v":0},{"$f":"SUMIFS(DADOS!$O:$O,DADOS!$E:$E,$A10,DADOS!$M:$M,DATE(YEAR(TODAY()),MONTH(F$6),DAY(VLOOKUP($A10,CONFIG!$E$2:$F$15,2,0))))","v":0},{"$f":"SUMIFS(DADOS!$O:$O,DADOS!$E:$E,$A10,DADOS!$M:$M,DATE(YEAR(TODAY()),MONTH(G$6),DAY(VLOOKUP($A10,CONFIG!$E$2:$F$15,2,0))))","v":0},{"$f":"SUMIFS(DADOS!$O:$O,DADOS!$E:$E,$A10,DADOS!$M:$M,DATE(YEAR(TODAY()),MONTH(H$6),DAY(VLOOKUP($A10,CONFIG!$E$2:$F$15,2,0))))","v":0},{"$f":"SUMIFS(DADOS!$O:$O,DADOS!$E:$E,$A10,DADOS!$M:$M,DATE(YEAR(TODAY()),MONTH(I$6),DAY(VLOOKUP($A10,CONFIG!$E$2:$F$15,2,0))))","v":0},{"$f":"SUMIFS(DADOS!$O:$O,DADOS!$E:$E,$A10,DADOS!$M:$M,DATE(YEAR(TODAY()),MONTH(J$6),DAY(VLOOKUP($A10,CONFIG!$E$2:$F$15,2,0))))","v":0},{"$f":"SUMIFS(DADOS!$O:$O,DADOS!$E:$E,$A10,DADOS!$M:$M,DATE(YEAR(TODAY()),MONTH(K$6),DAY(VLOOKUP($A10,CONFIG!$E$2:$F$15,2,0))))","v":0},{"$f":"SUMIFS(DADOS!$O:$O,DADOS!$E:$E,$A10,DADOS!$M:$M,DATE(YEAR(TODAY()),MONTH(L$6),DAY(VLOOKUP($A10,CONFIG!$E$2:$F$15,2,0))))","v":0},{"$f":"SUMIFS(DADOS!$O:$O,DADOS!$E:$E,$A10,DADOS!$M:$M,DATE(YEAR(TODAY()),MONTH(M$6),DAY(VLOOKUP($A10,CONFIG!$E$2:$F$15,2,0))))","v":0},0,null,null,"NUBANK_JUNIOR",4350,{"$error":"#VALUE!"},{"$error":"#VALUE!"}]
[{"$f":"CONFIG!A6","v":"AZUL_JUNIOR"},{"$f":"SUMIFS(DADOS!$O:$O,DADOS!$E:$E,$A11,DADOS!$M:$M,DATE(YEAR(TODAY()),MONTH(B$6),DAY(VLOOKUP($A11,CONFIG!$E$2:$F$15,2,0))))","v":0},{"$f":"SUMIFS(DADOS!$O:$O,DADOS!$E:$E,$A11,DADOS!$M:$M,DATE(YEAR(TODAY()),MONTH(C$6),DAY(VLOOKUP($A11,CONFIG!$E$2:$F$15,2,0))))","v":0},{"$f":"SUMIFS(DADOS!$O:$O,DADOS!$E:$E,$A11,DADOS!$M:$M,DATE(YEAR(TODAY()),MONTH(D$6),DAY(VLOOKUP($A11,CONFIG!$E$2:$F$15,2,0))))","v":0},{"$f":"SUMIFS(DADOS!$O:$O,DADOS!$E:$E,$A11,DADOS!$M:$M,DATE(YEAR(TODAY()),MONTH(E$6),DAY(VLOOKUP($A11,CONFIG!$E$2:$F$15,2,0))))","v":0},{"$f":"SUMIFS(DADOS!$O:$O,DADOS!$E:$E,$A11,DADOS!$M:$M,DATE(YEAR(TODAY()),MONTH(F$6),DAY(VLOOKUP($A11,CONFIG!$E$2:$F$15,2,0))))","v":0},{"$f":"SUMIFS(DADOS!$O:$O,DADOS!$E:$E,$A11,DADOS!$M:$M,DATE(YEAR(TODAY()),MONTH(G$6),DAY(VLOOKUP($A11,CONFIG!$E$2:$F$15,2,0))))","v":0},{"$f":"SUMIFS(DADOS!$O:$O,DADOS!$E:$E,$A11,DADOS!$M:$M,DATE(YEAR(TODAY()),MONTH(H$6),DAY(VLOOKUP($A11,CONFIG!$E$2:$F$15,2,0))))","v":0},{"$f":"SUMIFS(DADOS!$O:$O,DADOS!$E:$E,$A11,DADOS!$M:$M,DATE(YEAR(TODAY()),MONTH(I$6),DAY(VLOOKUP($A11,CONFIG!$E$2:$F$15,2,0))))","v":0},{"$f":"SUMIFS(DADOS!$O:$O,DADOS!$E:$E,$A11,DADOS!$M:$M,DATE(YEAR(TODAY()),MONTH(J$6),DAY(VLOOKUP($A11,CONFIG!$E$2:$F$15,2,0))))","v":0},{"$f":"SUMIFS(DADOS!$O:$O,DADOS!$E:$E,$A11,DADOS!$M:$M,DATE(YEAR(TODAY()),MONTH(K$6),DAY(VLOOKUP($A11,CONFIG!$E$2:$F$15,2,0))))","v":0},{"$f":"SUMIFS(DADOS!$O:$O,DADOS!$E:$E,$A11,DADOS!$M:$M,DATE(YEAR(TODAY()),MONTH(L$6),DAY(VLOOKUP($A11,CONFIG!$E$2:$F$15,2,0))))","v":0},{"$f":"SUMIFS(DADOS!$O:$O,DADOS!$E:$E,$A11,DADOS!$M:$M,DATE(YEAR(TODAY()),MONTH(M$6),DAY(VLOOKUP($A11,CONFIG!$E$2:$F$15,2,0))))","v":0},0,null,null,"AZUL_JUNIOR",2150,{"$error":"#VALUE!"},{"$error":"#VALUE!"}]
[{"$f":"CONFIG!A7","v":"GOLD_JUNIOR"},{"$f":"SUMIFS(DADOS!$O:$O,DADOS!$E:$E,$A12,DADOS!$M:$M,DATE(YEAR(TODAY()),MONTH(B$6),DAY(VLOOKUP($A12,CONFIG!$E$2:$F$15,2,0))))","v":0},{"$f":"SUMIFS(DADOS!$O:$O,DADOS!$E:$E,$A12,DADOS!$M:$M,DATE(YEAR(TODAY()),MONTH(C$6),DAY(VLOOKUP($A12,CONFIG!$E$2:$F$15,2,0))))","v":0},{"$f":"SUMIFS(DADOS!$O:$O,DADOS!$E:$E,$A12,DADOS!$M:$M,DATE(YEAR(TODAY()),MONTH(D$6),DAY(VLOOKUP($A12,CONFIG!$E$2:$F$15,2,0))))","v":0},{"$f":"SUMIFS(DADOS!$O:$O,DADOS!$E:$E,$A12,DADOS!$M:$M,DATE(YEAR(TODAY()),MONTH(E$6),DAY(VLOOKUP($A12,CONFIG!$E$2:$F$15,2,0))))","v":0},{"$f":"SUMIFS(DADOS!$O:$O,DADOS!$E:$E,$A12,DADOS!$M:$M,DATE(YEAR(TODAY()),MONTH(F$6),DAY(VLOOKUP($A12,CONFIG!$E$2:$F$15,2,0))))","v":0},{"$f":"SUMIFS(DADOS!$O:$O,DADOS!$E:$E,$A12,DADOS!$M:$M,DATE(YEAR(TODAY()),MONTH(G$6),DAY(VLOOKUP($A12,CONFIG!$E$2:$F$15,2,0))))","v":0},{"$f":"SUMIFS(DADOS!$O:$O,DADOS!$E:$E,$A12,DADOS!$M:$M,DATE(YEAR(TODAY()),MONTH(H$6),DAY(VLOOKUP($A12,CONFIG!$E$2:$F$15,2,0))))","v":0},{"$f":"SUMIFS(DADOS!$O:$O,DADOS!$E:$E,$A12,DADOS!$M:$M,DATE(YEAR(TODAY()),MONTH(I$6),DAY(VLOOKUP($A12,CONFIG!$E$2:$F$15,2,0))))","v":0},{"$f":"SUMIFS(DADOS!$O:$O,DADOS!$E:$E,$A12,DADOS!$M:$M,DATE(YEAR(TODAY()),MONTH(J$6),DAY(VLOOKUP($A12,CONFIG!$E$2:$F$15,2,0))))","v":0},{"$f":"SUMIFS(DADOS!$O:$O,DADOS!$E:$E,$A12,DADOS!$M:$M,DATE(YEAR(TODAY()),MONTH(K$6),DAY(VLOOKUP($A12,CONFIG!$E$2:$F$15,2,0))))","v":0},{"$f":"SUMIFS(DADOS!$O:$O,DADOS!$E:$E,$A12,DADOS!$M:$M,DATE(YEAR(TODAY()),MONTH(L$6),DAY(VLOOKUP($A12,CONFIG!$E$2:$F$15,2,0))))","v":0},{"$f":"SUMIFS(DADOS!$O:$O,DADOS!$E:$E,$A12,DADOS!$M:$M,DATE(YEAR(TODAY()),MONTH(M$6),DAY(VLOOKUP($A12,CONFIG!$E$2:$F$15,2,0))))","v":0},0,null,null,"GOLD_JUNIOR",2500,{"$error":"#VALUE!"},{"$error":"#VALUE!"}]
[{"$f":"CONFIG!A8","v":"LATAM_JUNIOR"},{"$f":"SUMIFS(DADOS!$O:$O,DADOS!$E:$E,$A13,DADOS!$M:$M,DATE(YEAR(TODAY()),MONTH(B$6),DAY(VLOOKUP($A13,CONFIG!$E$2:$F$15,2,0))))","v":0},{"$f":"SUMIFS(DADOS!$O:$O,DADOS!$E:$E,$A13,DADOS!$M:$M,DATE(YEAR(TODAY()),MONTH(C$6),DAY(VLOOKUP($A13,CONFIG!$E$2:$F$15,2,0))))","v":0},{"$f":"SUMIFS(DADOS!$O:$O,DADOS!$E:$E,$A13,DADOS!$M:$M,DATE(YEAR(TODAY()),MONTH(D$6),DAY(VLOOKUP($A13,CONFIG!$E$2:$F$15,2,0))))","v":0},{"$f":"SUMIFS(DADOS!$O:$O,DADOS!$E:$E,$A13,DADOS!$M:$M,DATE(YEAR(TODAY()),MONTH(E$6),DAY(VLOOKUP($A13,CONFIG!$E$2:$F$15,2,0))))","v":0},{"$f":"SUMIFS(DADOS!$O:$O,DADOS!$E:$E,$A13,DADOS!$M:$M,DATE(YEAR(TODAY()),MONTH(F$6),DAY(VLOOKUP($A13,CONFIG!$E$2:$F$15,2,0))))","v":0},{"$f":"SUMIFS(DADOS!$O:$O,DADOS!$E:$E,$A13,DADOS!$M:$M,DATE(YEAR(TODAY()),MONTH(G$6),DAY(VLOOKUP($A13,CONFIG!$E$2:$F$15,2,0))))","v":0},{"$f":"SUMIFS(DADOS!$O:$O,DADOS!$E:$E,$A13,DADOS!$M:$M,DATE(YEAR(TODAY()),MONTH(H$6),DAY(VLOOKUP($A13,CONFIG!$E$2:$F$15,2,0))))","v":0},{"$f":"SUMIFS(DADOS!$O:$O,DADOS!$E:$E,$A13,DADOS!$M:$M,DATE(YEAR(TODAY()),MONTH(I$6),DAY(VLOOKUP($A13,CONFIG!$E$2:$F$15,2,0))))","v":0},{"$f":"SUMIFS(DADOS!$O:$O,DADOS!$E:$E,$A13,DADOS!$M:$M,DATE(YEAR(TODAY()),MONTH(J$6),DAY(VLOOKUP($A13,CONFIG!$E$2:$F$15,2,0))))","v":0},{"$f":"SUMIFS(DADOS!$O:$O,DADOS!$E:$E,$A13,DADOS!$M:$M,DATE(YEAR(TODAY()),MONTH(K$6),DAY(VLOOKUP($A13,CONFIG!$E$2:$F$15,2,0))))","v":0},{"$f":"SUMIFS(DADOS!$O:$O,DADOS!$E:$E,$A13,DADOS!$M:$M,DATE(YEAR(TODAY()),MONTH(L$6),DAY(VLOOKUP($A13,CONFIG!$E$2:$F$15,2,0))))","v":0},{"$f":"SUMIFS(DADOS!$O:$O,DADOS!$E:$E,$A13,DADOS!$M:$M,DATE(YEAR(TODAY()),MONTH(M$6),DAY(VLOOKUP($A13,CONFIG!$E$2:$F$15,2,0))))","v":0},0,null,null,"LATAM_JUNIOR",3800,{"$error":"#VALUE!"},{"$error":"#VALUE!"}]
[{"$f":"CONFIG!A9","v":"FREE_JUNIOR"},{"$f":"SUMIFS(DADOS!$O:$O,DADOS!$E:$E,$A14,DADOS!$M:$M,DATE(YEAR(TODAY()),MONTH(B$6),DAY(VLOOKUP($A14,CONFIG!$E$2:$F$15,2,0))))","v":0},{"$f":"SUMIFS(DADOS!$O:$O,DADOS!$E:$E,$A14,DADOS!$M:$M,DATE(YEAR(TODAY()),MONTH(C$6),DAY(VLOOKUP($A14,CONFIG!$E$2:$F$15,2,0))))","v":0},{"$f":"SUMIFS(DADOS!$O:$O,DADOS!$E:$E,$A14,DADOS!$M:$M,DATE(YEAR(TODAY()),MONTH(D$6),DAY(VLOOKUP($A14,CONFIG!$E$2:$F$15,2,0))))","v":0},{"$f":"SUMIFS(DADOS!$O:$O,DADOS!$E:$E,$A14,DADOS!$M:$M,DATE(YEAR(TODAY()),MONTH(E$6),DAY(VLOOKUP($A14,CONFIG!$E$2:$F$15,2,0))))","v":0},{"$f":"SUMIFS(DADOS!$O:$O,DADOS!$E:$E,$A14,DADOS!$M:$M,DATE(YEAR(TODAY()),MONTH(F$6),DAY(VLOOKUP($A14,CONFIG!$E$2:$F$15,2,0))))","v":0},{"$f":"SUMIFS(DADOS!$O:$O,DADOS!$E:$E,$A14,DADOS!$M:$M,DATE(YEAR(TODAY()),MONTH(G$6),DAY(VLOOKUP($A14,CONFIG!$E$2:$F$15,2,0))))","v":0},{"$f":"SUMIFS(DADOS!$O:$O,DADOS!$E:$E,$A14,DADOS!$M:$M,DATE(YEAR(TODAY()),MONTH(H$6),DAY(VLOOKUP($A14,CONFIG!$E$2:$F$15,2,0))))","v":0},{"$f":"SUMIFS(DADOS!$O:$O,DADOS!$E:$E,$A14,DADOS!$M:$M,DATE(YEAR(TODAY()),MONTH(I$6),DAY(VLOOKUP($A14,CONFIG!$E$2:$F$15,2,0))))","v":0},{"$f":"SUMIFS(DADOS!$O:$O,DADOS!$E:$E,$A14,DADOS!$M:$M,DATE(YEAR(TODAY()),MONTH(J$6),DAY(VLOOKUP($A14,CONFIG!$E$2:$F$15,2,0))))","v":0},{"$f":"SUMIFS(DADOS!$O:$O,DADOS!$E:$E,$A14,DADOS!$M:$M,DATE(YEAR(TODAY()),MONTH(K$6),DAY(VLOOKUP($A14,CONFIG!$E$2:$F$15,2,0))))","v":0},{"$f":"SUMIFS(DADOS!$O:$O,DADOS!$E:$E,$A14,DADOS!$M:$M,DATE(YEAR(TODAY()),MONTH(L$6),DAY(VLOOKUP($A14,CONFIG!$E$2:$F$15,2,0))))","v":0},{"$f":"SUMIFS(DADOS!$O:$O,DADOS!$E:$E,$A14,DADOS!$M:$M,DATE(YEAR(TODAY()),MONTH(M$6),DAY(VLOOKUP($A14,CONFIG!$E$2:$F$15,2,0))))","v":0},0,null,null,"FREE_JUNIOR",1490,{"$error":"#VALUE!"},{"$error":"#VALUE!"}]
[{"$f":"CONFIG!A10","v":"PAG_JUNIOR"},{"$f":"SUMIFS(DADOS!$O:$O,DADOS!$E:$E,$A15,DADOS!$M:$M,DATE(YEAR(TODAY()),MONTH(B$6),DAY(VLOOKUP($A15,CONFIG!$E$2:$F$15,2,0))))","v":0},{"$f":"SUMIFS(DADOS!$O:$O,DADOS!$E:$E,$A15,DADOS!$M:$M,DATE(YEAR(TODAY()),MONTH(C$6),DAY(VLOOKUP($A15,CONFIG!$E$2:$F$15,2,0))))","v":0},{"$f":"SUMIFS(DADOS!$O:$O,DADOS!$E:$E,$A15,DADOS!$M:$M,DATE(YEAR(TODAY()),MONTH(D$6),DAY(VLOOKUP($A15,CONFIG!$E$2:$F$15,2,0))))","v":0},{"$f":"SUMIFS(DADOS!$O:$O,DADOS!$E:$E,$A15,DADOS!$M:$M,DATE(YEAR(TODAY()),MONTH(E$6),DAY(VLOOKUP($A15,CONFIG!$E$2:$F$15,2,0))))","v":0},{"$f":"SUMIFS(DADOS!$O:$O,DADOS!$E:$E,$A15,DADOS!$M:$M,DATE(YEAR(TODAY()),MONTH(F$6),DAY(VLOOKUP($A15,CONFIG!$E$2:$F$15,2,0))))","v":0},{"$f":"SUMIFS(DADOS!$O:$O,DADOS!$E:$E,$A15,DADOS!$M:$M,DATE(YEAR(TODAY()),MONTH(G$6),DAY(VLOOKUP($A15,CONFIG!$E$2:$F$15,2,0))))","v":0},{"$f":"SUMIFS(DADOS!$O:$O,DADOS!$E:$E,$A15,DADOS!$M:$M,DATE(YEAR(TODAY()),MONTH(H$6),DAY(VLOOKUP($A15,CONFIG!$E$2:$F$15,2,0))))","v":0},{"$f":"SUMIFS(DADOS!$O:$O,DADOS!$E:$E,$A15,DADOS!$M:$M,DATE(YEAR(TODAY()),MONTH(I$6),DAY(VLOOKUP($A15,CONFIG!$E$2:$F$15,2,0))))","v":0},{"$f":"SUMIFS(DADOS!$O:$O,DADOS!$E:$E,$A15,DADOS!$M:$M,DATE(YEAR(TODAY()),MONTH(J$6),DAY(VLOOKUP($A15,CONFIG!$E$2:$F$15,2,0))))","v":0},{"$f":"SUMIFS(DADOS!$O:$O,DADOS!$E:$E,$A15,DADOS!$M:$M,DATE(YEAR(TODAY()),MONTH(K$6),DAY(VLOOKUP($A15,CONFIG!$E$2:$F$15,2,0))))","v":0},{"$f":"SUMIFS(DADOS!$O:$O,DADOS!$E:$E,$A15,DADOS!$M:$M,DATE(YEAR(TODAY()),MONTH(L$6),DAY(VLOOKUP($A15,CONFIG!$E$2:$F$15,2,0))))","v":0},{"$f":"SUMIFS(DADOS!$O:$O,DADOS!$E:$E,$A15,DADOS!$M:$M,DATE(YEAR(TODAY()),MONTH(M$6),DAY(VLOOKUP($A15,CONFIG!$E$2:$F$15,2,0))))","v":0},0,null,null,"PAG_JUNIOR",2000,{"$error":"#VALUE!"},{"$error":"#VALUE!"}]
[{"$f":"CONFIG!A11","v":"NCARD_JUNIOR"},{"$f":"SUMIFS(DADOS!$O:$O,DADOS!$E:$E,$A16,DADOS!$M:$M,DATE(YEAR(TODAY()),MONTH(B$6),DAY(VLOOKUP($A16,CONFIG!$E$2:$F$15,2,0))))","v":0},{"$f":"SUMIFS(DADOS!$O:$O,DADOS!$E:$E,$A16,DADOS!$M:$M,DATE(YEAR(TODAY()),MONTH(C$6),DAY(VLOOKUP($A16,CONFIG!$E$2:$F$15,2,0))))","v":0},{"$f":"SUMIFS(DADOS!$O:$O,DADOS!$E:$E,$A16,DADOS!$M:$M,DATE(YEAR(TODAY()),MONTH(D$6),DAY(VLOOKUP($A16,CONFIG!$E$2:$F$15,2,0))))","v":0},{"$f":"SUMIFS(DADOS!$O:$O,DADOS!$E:$E,$A16,DADOS!$M:$M,DATE(YEAR(TODAY()),MONTH(E$6),DAY(VLOOKUP($A16,CONFIG!$E$2:$F$15,2,0))))","v":0},{"$f":"SUMIFS(DADOS!$O:$O,DADOS!$E:$E,$A16,DADOS!$M:$M,DATE(YEAR(TODAY()),MONTH(F$6),DAY(VLOOKUP($A16,CONFIG!$E$2:$F$15,2,0))))","v":0},{"$f":"SUMIFS(DADOS!$O:$O,DADOS!$E:$E,$A16,DADOS!$M:$M,DATE(YEAR(TODAY()),MONTH(G$6),DAY(VLOOKUP($A16,CONFIG!$E$2:$F$15,2,0))))","v":0},{"$f":"SUMIFS(DADOS!$O:$O,DADOS!$E:$E,$A16,DADOS!$M:$M,DATE(YEAR(TODAY()),MONTH(H$6),DAY(VLOOKUP($A16,CONFIG!$E$2:$F$15,2,0))))","v":0},{"$f":"SUMIFS(DADOS!$O:$O,DADOS!$E:$E,$A16,DADOS!$M:$M,DATE(YEAR(TODAY()),MONTH(I$6),DAY(VLOOKUP($A16,CONFIG!$E$2:$F$15,2,0))))","v":0},{"$f":"SUMIFS(DADOS!$O:$O,DADOS!$E:$E,$A16,DADOS!$M:$M,DATE(YEAR(TODAY()),MONTH(J$6),DAY(VLOOKUP($A16,CONFIG!$E$2:$F$15,2,0))))","v":0},{"$f":"SUMIFS(DADOS!$O:$O,DADOS!$E:$E,$A16,DADOS!$M:$M,DATE(YEAR(TODAY()),MONTH(K$6),DAY(VLOOKUP($A16,CONFIG!$E$2:$F$15,2,0))))","v":0},{"$f":"SUMIFS(DADOS!$O:$O,DADOS!$E:$E,$A16,DADOS!$M:$M,DATE(YEAR(TODAY()),MONTH(L$6),DAY(VLOOKUP($A16,CONFIG!$E$2:$F$15,2,0))))","v":0},{"$f":"SUMIFS(DADOS!$O:$O,DADOS!$E:$E,$A16,DADOS!$M:$M,DATE(YEAR(TODAY()),MONTH(M$6),DAY(VLOOKUP($A16,CONFIG!$E$2:$F$15,2,0))))","v":0},0,null,null,"NCARD_JUNIOR",1600,{"$error":"#VALUE!"},{"$error":"#VALUE!"}]
[{"$f":"CONFIG!A12","v":"INTER_JUNIOR"},{"$f":"SUMIFS(DADOS!$O:$O,DADOS!$E:$E,$A17,DADOS!$M:$M,DATE(YEAR(TODAY()),MONTH(B$6),DAY(VLOOKUP($A17,CONFIG!$E$2:$F$15,2,0))))","v":0},{"$f":"SUMIFS(DADOS!$O:$O,DADOS!$E:$E,$A17,DADOS!$M:$M,DATE(YEAR(TODAY()),MONTH(C$6),DAY(VLOOKUP($A17,CONFIG!$E$2:$F$15,2,0))))","v":0},{"$f":"SUMIFS(DADOS!$O:$O,DADOS!$E:$E,$A17,DADOS!$M:$M,DATE(YEAR(TODAY()),MONTH(D$6),DAY(VLOOKUP($A17,CONFIG!$E$2:$F$15,2,0))))","v":0},{"$f":"SUMIFS(DADOS!$O:$O,DADOS!$E:$E,$A17,DADOS!$M:$M,DATE(YEAR(TODAY()),MONTH(E$6),DAY(VLOOKUP($A17,CONFIG!$E$2:$F$15,2,0))))","v":0},{"$f":"SUMIFS(DADOS!$O:$O,DADOS!$E:$E,$A17,DADOS!$M:$M,DATE(YEAR(TODAY()),MONTH(F$6),DAY(VLOOKUP($A17,CONFIG!$E$2:$F$15,2,0))))","v":0},{"$f":"SUMIFS(DADOS!$O:$O,DADOS!$E:$E,$A17,DADOS!$M:$M,DATE(YEAR(TODAY()),MONTH(G$6),DAY(VLOOKUP($A17,CONFIG!$E$2:$F$15,2,0))))","v":0},{"$f":"SUMIFS(DADOS!$O:$O,DADOS!$E:$E,$A17,DADOS!$M:$M,DATE(YEAR(TODAY()),MONTH(H$6),DAY(VLOOKUP($A17,CONFIG!$E$2:$F$15,2,0))))","v":0},{"$f":"SUMIFS(DADOS!$O:$O,DADOS!$E:$E,$A17,DADOS!$M:$M,DATE(YEAR(TODAY()),MONTH(I$6),DAY(VLOOKUP($A17,CONFIG!$E$2:$F$15,2,0))))","v":0},{"$f":"SUMIFS(DADOS!$O:$O,DADOS!$E:$E,$A17,DADOS!$M:$M,DATE(YEAR(TODAY()),MONTH(J$6),DAY(VLOOKUP($A17,CONFIG!$E$2:$F$15,2,0))))","v":0},{"$f":"SUMIFS(DADOS!$O:$O,DADOS!$E:$E,$A17,DADOS!$M:$M,DATE(YEAR(TODAY()),MONTH(K$6),DAY(VLOOKUP($A17,CONFIG!$E$2:$F$15,2,0))))","v":0},{"$f":"SUMIFS(DADOS!$O:$O,DADOS!$E:$E,$A17,DADOS!$M:$M,DATE(YEAR(TODAY()),MONTH(L$6),DAY(VLOOKUP($A17,CONFIG!$E$2:$F$15,2,0))))","v":0},{"$f":"SUMIFS(DADOS!$O:$O,DADOS!$E:$E,$A17,DADOS!$M:$M,DATE(YEAR(TODAY()),MONTH(M$6),DAY(VLOOKUP($A17,CONFIG!$E$2:$F$15,2,0))))","v":0},0,null,null,"INTER_JUNIOR",6500,{"$error":"#VALUE!"},{"$error":"#VALUE!"}]
[{"$f":"CONFIG!A13","v":"C6_JUNIOR"},{"$f":"SUMIFS(DADOS!$O:$O,DADOS!$E:$E,$A18,DADOS!$M:$M,DATE(YEAR(TODAY()),MONTH(B$6),DAY(VLOOKUP($A18,CONFIG!$E$2:$F$15,2,0))))","v":0},{"$f":"SUMIFS(DADOS!$O:$O,DADOS!$E:$E,$A18,DADOS!$M:$M,DATE(YEAR(TODAY()),MONTH(C$6),DAY(VLOOKUP($A18,CONFIG!$E$2:$F$15,2,0))))","v":0},{"$f":"SUMIFS(DADOS!$O:$O,DADOS!$E:$E,$A18,DADOS!$M:$M,DATE(YEAR(TODAY()),MONTH(D$6),DAY(VLOOKUP($A18,CONFIG!$E$2:$F$15,2,0))))","v":0},{"$f":"SUMIFS(DADOS!$O:$O,DADOS!$E:$E,$A18,DADOS!$M:$M,DATE(YEAR(TODAY()),MONTH(E$6),DAY(VLOOKUP($A18,CONFIG!$E$2:$F$15,2,0))))","v":0},{"$f":"SUMIFS(DADOS!$O:$O,DADOS!$E:$E,$A18,DADOS!$M:$M,DATE(YEAR(TODAY()),MONTH(F$6),DAY(VLOOKUP($A18,CONFIG!$E$2:$F$15,2,0))))","v":0},{"$f":"SUMIFS(DADOS!$O:$O,DADOS!$E:$E,$A18,DADOS!$M:$M,DATE(YEAR(TODAY()),MONTH(G$6),DAY(VLOOKUP($A18,CONFIG!$E$2:$F$15,2,0))))","v":0},{"$f":"SUMIFS(DADOS!$O:$O,DADOS!$E:$E,$A18,DADOS!$M:$M,DATE(YEAR(TODAY()),MONTH(H$6),DAY(VLOOKUP($A18,CONFIG!$E$2:$F$15,2,0))))","v":0},{"$f":"SUMIFS(DADOS!$O:$O,DADOS!$E:$E,$A18,DADOS!$M:$M,DATE(YEAR(TODAY()),MONTH(I$6),DAY(VLOOKUP($A18,CONFIG!$E$2:$F$15,2,0))))","v":0},{"$f":"SUMIFS(DADOS!$O:$O,DADOS!$E:$E,$A18,DADOS!$M:$M,DATE(YEAR(TODAY()),MONTH(J$6),DAY(VLOOKUP($A18,CONFIG!$E$2:$F$15,2,0))))","v":0},{"$f":"SUMIFS(DADOS!$O:$O,DADOS!$E:$E,$A18,DADOS!$M:$M,DATE(YEAR(TODAY()),MONTH(K$6),DAY(VLOOKUP($A18,CONFIG!$E$2:$F$15,2,0))))","v":0},{"$f":"SUMIFS(DADOS!$O:$O,DADOS!$E:$E,$A18,DADOS!$M:$M,DATE(YEAR(TODAY()),MONTH(L$6),DAY(VLOOKUP($A18,CONFIG!$E$2:$F$15,2,0))))","v":0},{"$f":"SUMIFS(DADOS!$O:$O,DADOS!$E:$E,$A18,DADOS!$M:$M,DATE(YEAR(TODAY()),MONTH(M$6),DAY(VLOOKUP($A18,CONFIG!$E$2:$F$15,2,0))))","v":0},0,null,null,"C6_JUNIOR",130,{"$error":"#VALUE!"},{"$error":"#VALUE!"}]
[{"$f":"CONFIG!A14","v":"BMG_JUNIOR"},{"$f":"SUMIFS(DADOS!$O:$O,DADOS!$E:$E,$A19,DADOS!$M:$M,DATE(YEAR(TODAY()),MONTH(B$6),DAY(VLOOKUP($A19,CONFIG!$E$2:$F$15,2,0))))","v":0},{"$f":"SUMIFS(DADOS!$O:$O,DADOS!$E:$E,$A19,DADOS!$M:$M,DATE(YEAR(TODAY()),MONTH(C$6),DAY(VLOOKUP($A19,CONFIG!$E$2:$F$15,2,0))))","v":0},{"$f":"SUMIFS(DADOS!$O:$O,DADOS!$E:$E,$A19,DADOS!$M:$M,DATE(YEAR(TODAY()),MONTH(D$6),DAY(VLOOKUP($A19,CONFIG!$E$2:$F$15,2,0))))","v":0},{"$f":"SUMIFS(DADOS!$O:$O,DADOS!$E:$E,$A19,DADOS!$M:$M,DATE(YEAR(TODAY()),MONTH(E$6),DAY(VLOOKUP($A19,CONFIG!$E$2:$F$15,2,0))))","v":0},{"$f":"SUMIFS(DADOS!$O:$O,DADOS!$E:$E,$A19,DADOS!$M:$M,DATE(YEAR(TODAY()),MONTH(F$6),DAY(VLOOKUP($A19,CONFIG!$E$2:$F$15,2,0))))","v":0},{"$f":"SUMIFS(DADOS!$O:$O,DADOS!$E:$E,$A19,DADOS!$M:$M,DATE(YEAR(TODAY()),MONTH(G$6),DAY(VLOOKUP($A19,CONFIG!$E$2:$F$15,2,0))))","v":0},{"$f":"SUMIFS(DADOS!$O:$O,DADOS!$E:$E,$A19,DADOS!$M:$M,DATE(YEAR(TODAY()),MONTH(H$6),DAY(VLOOKUP($A19,CONFIG!$E$2:$F$15,2,0))))","v":0},{"$f":"SUMIFS(DADOS!$O:$O,DADOS!$E:$E,$A19,DADOS!$M:$M,DATE(YEAR(TODAY()),MONTH(I$6),DAY(VLOOKUP($A19,CONFIG!$E$2:$F$15,2,0))))","v":0},{"$f":"SUMIFS(DADOS!$O:$O,DADOS!$E:$E,$A19,DADOS!$M:$M,DATE(YEAR(TODAY()),MONTH(J$6),DAY(VLOOKUP($A19,CONFIG!$E$2:$F$15,2,0))))","v":0},{"$f":"SUMIFS(DADOS!$O:$O,DADOS!$E:$E,$A19,DADOS!$M:$M,DATE(YEAR(TODAY()),MONTH(K$6),DAY(VLOOKUP($A19,CONFIG!$E$2:$F$15,2,0))))","v":0},{"$f":"SUMIFS(DADOS!$O:$O,DADOS!$E:$E,$A19,DADOS!$M:$M,DATE(YEAR(TODAY()),MONTH(L$6),DAY(VLOOKUP($A19,CONFIG!$E$2:$F$15,2,0))))","v":0},{"$f":"SUMIFS(DADOS!$O:$O,DADOS!$E:$E,$A19,DADOS!$M:$M,DATE(YEAR(TODAY()),MONTH(M$6),DAY(VLOOKUP($A19,CONFIG!$E$2:$F$15,2,0))))","v":0},0,null,null,"BMG_JUNIOR",280,{"$error":"#VALUE!"},{"$error":"#VALUE!"}]
[{"$f":"CONFIG!A15","v":"PAN_JUNIOR"},{"$f":"SUMIFS(DADOS!$O:$O,DADOS!$E:$E,$A20,DADOS!$M:$M,DATE(YEAR(TODAY()),MONTH(B$6),DAY(VLOOKUP($A20,CONFIG!$E$2:$F$15,2,0))))","v":0},{"$f":"SUMIFS(DADOS!$O:$O,DADOS!$E:$E,$A20,DADOS!$M:$M,DATE(YEAR(TODAY()),MONTH(C$6),DAY(VLOOKUP($A20,CONFIG!$E$2:$F$15,2,0))))","v":0},{"$f":"SUMIFS(DADOS!$O:$O,DADOS!$E:$E,$A20,DADOS!$M:$M,DATE(YEAR(TODAY()),MONTH(D$6),DAY(VLOOKUP($A20,CONFIG!$E$2:$F$15,2,0))))","v":0},{"$f":"SUMIFS(DADOS!$O:$O,DADOS!$E:$E,$A20,DADOS!$M:$M,DATE(YEAR(TODAY()),MONTH(E$6),DAY(VLOOKUP($A20,CONFIG!$E$2:$F$15,2,0))))","v":0},{"$f":"SUMIFS(DADOS!$O:$O,DADOS!$E:$E,$A20,DADOS!$M:$M,DATE(YEAR(TODAY()),MONTH(F$6),DAY(VLOOKUP($A20,CONFIG!$E$2:$F$15,2,0))))","v":0},{"$f":"SUMIFS(DADOS!$O:$O,DADOS!$E:$E,$A20,DADOS!$M:$M,DATE(YEAR(TODAY()),MONTH(G$6),DAY(VLOOKUP($A20,CONFIG!$E$2:$F$15,2,0))))","v":0},{"$f":"SUMIFS(DADOS!$O:$O,DADOS!$E:$E,$A20,DADOS!$M:$M,DATE(YEAR(TODAY()),MONTH(H$6),DAY(VLOOKUP($A20,CONFIG!$E$2:$F$15,2,0))))","v":0},{"$f":"SUMIFS(DADOS!$O:$O,DADOS!$E:$E,$A20,DADOS!$M:$M,DATE(YEAR(TODAY()),MONTH(I$6),DAY(VLOOKUP($A20,CONFIG!$E$2:$F$15,2,0))))","v":0},{"$f":"SUMIFS(DADOS!$O:$O,DADOS!$E:$E,$A20,DADOS!$M:$M,DATE(YEAR(TODAY()),MONTH(J$6),DAY(VLOOKUP($A20,CONFIG!$E$2:$F$15,2,0))))","v":0},{"$f":"SUMIFS(DADOS!$O:$O,DADOS!$E:$E,$A20,DADOS!$M:$M,DATE(YEAR(TODAY()),MONTH(K$6),DAY(VLOOKUP($A20,CONFIG!$E$2:$F$15,2,0))))","v":0},{"$f":"SUMIFS(DADOS!$O:$O,DADOS!$E:$E,$A20,DADOS!$M:$M,DATE(YEAR(TODAY()),MONTH(L$6),DAY(VLOOKUP($A20,CONFIG!$E$2:$F$15,2,0))))","v":0},{"$f":"SUMIFS(DADOS!$O:$O,DADOS!$E:$E,$A20,DADOS!$M:$M,DATE(YEAR(TODAY()),MONTH(M$6),DAY(VLOOKUP($A20,CONFIG!$E$2:$F$15,2,0))))","v":0},0,null,null,"PAN_JUNIOR",260,{"$error":"#VALUE!"},{"$error":"#VALUE!"}]
[]
["TOTAIS",{"$f":"SUM(B7:B20)","v":0},{"$f":"SUM(C7:C20)","v":0},0,0,0,0,0,0,0,0,0,0,{"$f":"SUM(N7:N20)","v":0}]

{"sheet":"CONFIG","index":9,"n_rows":1048576,"n_cols":16384,"rows_kept":4500,"cut":true,"hidden":false,"merged":[],"bounds":{"rows_first":2000,"rows_last":500,"rows_between":2000,"halvings":0}}
["CARTÕES",null,"TÍTULAR","CARTÃO","MATRIZ","DATA DO VENCIMENTO","DATA DO FECHAMENTO",null,null,null,null,null,null,"JUNIOR","MÊS",null,null,null,"TÍTULAR"]
[{"$f":"D2&\"_\"&C2","v":"CLICK_JUNIOR"},null,"JUNIOR","CLICK",{"$f":"TBLCARTAO[[#This Row],[CARTÕES]]","v":"CLICK_JUNIOR"},{"$f":"DATE(YEAR(TODAY()),CALENDARIO!$AG$2,L2)","v":44425},{"$f":"DATE(YEAR(TODAY()),CALENDARIO!AG$2,M2)","v":44417},null,null,null,null,17,9,null,null,null,null,null,"JUNIOR"]
[{"$f":"D3&\"_\"&C3","v":"MELIUZ_JUNIOR"},null,"JUNIOR","MELIUZ",{"$f":"TBLCARTAO[[#This Row],[CARTÕES]]","v":"MELIUZ_JUNIOR"},{"$f":"DATE(YEAR(TODAY()),CALENDARIO!$AG$2,L3)","v":44409},{"$f":"IF(MONTH(DATE(YEAR(TODAY()),CALENDARIO!$AG$2,M3))=MONTH(F3),DATE(YEAR(TODAY()),CALENDARIO!$AG$2-1,M3),DATE(YEAR(TODAY()),CALENDARIO!$AG$2,M3))","v":44397},null,null,null,null,1,20,"LIMITE","FATURA","DISPONIVEL",null,null,"MOCINHA"]
["ZERO_JUNIOR",null,"JUNIOR","ZERO",{"$f":"TBLCARTAO[[#This Row],[CARTÕES]]","v":"ZERO_JUNIOR"},{"$f":"DATE(YEAR(TODAY()),CALENDARIO!$AG$2,L4)","v":44434},{"$f":"DATE(YEAR(TODAY()),CALENDARIO!AG$2,M4)","v":44428},null,null,null,null,26,20,1800,null,null,null,null,"MÃE"]
["NUBANK_JUNIOR",null,"JUNIOR","NUBANK",{"$f":"TBLCARTAO[[#This Row],[CARTÕES]]","v":"NUBANK_JUNIOR"},{"$f":"DATE(YEAR(TODAY()),CALENDARIO!$AG$2,L5)","v":44421},{"$f":"DATE(YEAR(TODAY()),CALENDARIO!AG$2,M5)","v":44414},null,null,null,null,13,6,680]
["AZUL_JUNIOR",null,"JUNIOR","AZUL",{"$f":"TBLCARTAO[[#This Row],[CARTÕES]]","v":"AZUL_JUNIOR"},{"$f":"DATE(YEAR(TODAY()),CALENDARIO!$AG$2,L6)","v":44414},{"$f":"IF(MONTH(DATE(YEAR(TODAY()),CALENDARIO!$AG$2,M6))=MONTH(F6),DATE(YEAR(TODAY()),CALENDARIO!$AG$2-1,M6),DATE(YEAR(TODAY()),CALENDARIO!$AG$2,M6))","v":44405},null,null,null,null,6,28,1100]
["GOLD_JUNIOR",null,"JUNIOR","GOLD",{"$f":"TBLCARTAO[[#This Row],[CARTÕES]]","v":"GOLD_JUNIOR"},{"$f":"DATE(YEAR(TODAY()),CALENDARIO!$AG$2,L7)","v":44431},{"$f":"DATE(YEAR(TODAY()),CALENDARIO!AG$2,M7)","v":44422},null,null,null,null,23,14]
["LATAM_JUNIOR",null,"JUNIOR","LATAM",{"$f":"TBLCARTAO[[#This Row],[CARTÕES]]","v":"LATAM_JUNIOR"},{"$f":"DATE(YEAR(TODAY()),CALENDARIO!$AG$2,L8)","v":44433},{"$f":"DATE(YEAR(TODAY()),CALENDARIO!AG$2,M8)","v":44424},null,null,null,null,25,16]
["FREE_JUNIOR",null,"JUNIOR","FREE",{"$f":"TBLCARTAO[[#This Row],[CARTÕES]]","v":"FREE_JUNIOR"},{"$f":"DATE(YEAR(TODAY()),CALENDARIO!$AG$2,L9)","v":44438},{"$f":"DATE(YEAR(TODAY()),CALENDARIO!AG$2,M9)","v":44432},null,null,null,null,30,24]
["PAG_JUNIOR",null,"JUNIOR","PAG",{"$f":"TBLCARTAO[[#This Row],[CARTÕES]]","v":"PAG_JUNIOR"},{"$f":"DATE(YEAR(TODAY()),CALENDARIO!$AG$2,L10)","v":44428},{"$f":"DATE(YEAR(TODAY()),CALENDARIO!AG$2,M10)","v":44422},null,null,null,null,20,14]
["NCARD_JUNIOR",null,"JUNIOR","NCARD",{"$f":"TBLCARTAO[[#This Row],[CARTÕES]]","v":"NCARD_JUNIOR"},{"$f":"DATE(YEAR(TODAY()),CALENDARIO!$AG$2,L11)","v":44417},{"$f":"DATE(YEAR(TODAY()),CALENDARIO!AG$2,M11)","v":44409},null,null,null,null,9,1]
[{"$f":"D12&\"_\"&C12","v":"INTER_JUNIOR"},null,"JUNIOR","INTER",{"$f":"TBLCARTAO[[#This Row],[CARTÕES]]","v":"INTER_JUNIOR"},{"$f":"DATE(YEAR(TODAY()),CALENDARIO!$AG$2,L12)","v":44423},{"$f":"DATE(YEAR(TODAY()),CALENDARIO!AG$2,M12)","v":44414},null,null,null,null,15,6,null,1,{"$f":"SMALL($F$2:$F$15,O12)","v":44409},"C6"]
[{"$f":"D13&\"_\"&C13","v":"C6_JUNIOR"},null,"JUNIOR","C6",{"$f":"TBLCARTAO[[#This Row],[CARTÕES]]","v":"C6_JUNIOR"},{"$f":"DATE(YEAR(TODAY()),CALENDARIO!$AG$2,L13)","v":44409},{"$f":"IF(MONTH(DATE(YEAR(TODAY()),CALENDARIO!$AG$2,M13))=MONTH(F13),DATE(YEAR(TODAY()),CALENDARIO!$AG$2-1,M13),DATE(YEAR(TODAY()),CALENDARIO!$AG$2,M13))","v":44398},null,null,null,null,1,21,null,2,{"$f":"SMALL($F$2:$F$15,O13)","v":44409},"MELIUZ"]
[{"$f":"D14&\"_\"&C14","v":"BMG_JUNIOR"},null,"JUNIOR","BMG",{"$f":"TBLCARTAO[[#This Row],[CARTÕES]]","v":"BMG_JUNIOR"},{"$f":"DATE(YEAR(TODAY()),CALENDARIO!$AG$2,L14)","v":44433},{"$f":"DATE(YEAR(TODAY()),CALENDARIO!AG$2,M14)","v":44423},null,null,null,null,25,15,null,3,44414,"AZUL"]
[{"$f":"D15&\"_\"&C15","v":"PAN_JUNIOR"},null,"JUNIOR","PAN",{"$f":"TBLCARTAO[[#This Row],[CARTÕES]]","v":"PAN_JUNIOR"},{"$f":"DATE(YEAR(TODAY()),CALENDARIO!$AG$2,L15)","v":44421},{"$f":"DATE(YEAR(TODAY()),CALENDARIO!AG$2,M15)","v":44438},null,null,null,null,13,30,null,4,44417,"NCARD"]
[null,null,null,null,null,null,null,null,null,null,null,null,null,null,5,44421,"PAN"]
[null,null,null,null,null,null,{"$f":"DATE(YEAR(TODAY()),E18-1,M15)","v":44407},null,null,null,null,null,null,null,6,44421,"NUBANK"]
["MESES",null,null,null,8,null,44438,null,null,null,null,null,null,null,7,44423,"INTER"]
[null,null,null,null,null,null,null,null,null,null,null,null,null,null,8,44425,"CLICK"]
[null,null,null,null,null,null,null,null,null,null,null,null,null,null,9,44428,"PAG"]
[null,null,null,null,null,null,null,null,null,null,null,null,null,null,10,44431,"GOLD"]
[null,null,null,null,null,"JANEIRO",null,null,null,null,null,null,{"$f":"DATE(TODAY(),MONTH(F22),13)","v":{"$error":"#VALUE!"}},null,11,44433,"LATAM"]
[null,null,null,null,null,null,null,null,null,null,null,null,null,null,12,44433,"BMG"]
[null,null,null,null,null,null,null,null,null,null,null,null,null,null,13,44434,"ZERO"]
[null,null,null,null,null,null,null,null,null,null,null,null,null,null,14,44438,"FREE"]
[]
[]
[]
[]
[]
[]
[]
[]
[]
[]
[]
[]
[]
[]
[]
[]
[]
[]
[]
[]
[]
[]
[]
[]
[]
[]
[]
[]
[]
[]
[]
[]
[]
[]
[]
[]
[]
[]
[]
[]
[]
[]
[]
[]
[]
[]
[]
[]
[]
[]
[]
[]
[]
[]
[]
[]
[]
[]
[]
[]
[]
[]
[]
[]
[]
[]
[]
[]
[]
[]
[]
[]
[]
[]
[]
[]
[]
[]
[]
[]
[]
[]
[]
[]
[]
[]
[]
[]
[]
[]
[]
[]
[]
[]
[]
[]
[]
[]
[]
[]
[]
[]
[]
[]
[]
[]
[]
[]
[]
[]
[]
[]
[]
[]
[]
[]
[]
[]
[]
[]
[]
[]
[]
[]
[]
[]
[]
[]
[]
[]
[]
[]
[]
[]
[]
[]
[]
[]
[]
[]
[]
[]
[]
[]
[]
[]
[]
[]
[]
[]
[]
[]
[]
[]
[]
[]
[]
[]
[]
[]
[]
[]
[]
[]
[]
[]
[]
[]
[]
[]
[]
[]
[]
[]
[]
[]
[]
[]
[]
[]
[]
[]
[]
[]
[]
[]
[]
[]
[]
[]
[]
[]
[]
[]
[]
[]
[]
[]
[]
[]
[]
[]
[]
[]
[]
[]
[]
[]
[]
[]
[]
[]
[]
[]
[]
[]
[]
[]
[]
[]
[]
[]
[]
[]
[]
[]
[]
[]
[]
[]
[]
[]
[]
[]
[]
[]
[]
[]
[]
[]
[]
[]
[]
[]
[]
[]
[]
[]
[]
[]
[]
[]
[]
[]
[]
[]
[]
[]
[]
[]
[]
[]
[]
[]
[]
[]
[]
[]
[]
[]
[]
[]
[]
[]
[]
[]
[]
[]
[]
[]
[]
[]
[]
[]
[]
[]
[]
[]
[]
[]
[]
[]
[]
[]
[]
[]
[]
[]
[]
[]
[]
[]
[]
[]
[]
[]
[]
[]
[]
[]
[]
[]
[]
[]
[]
[]
[]
[]
[]
[]
[]
[]
[]
[]
[]
[]
[]
[]
[]
[]
[]
[]
[]
[]
[]
[]
[]
[]
[]
[]
[]
[]
[]
[]
[]
[]
[]
[]
[]
[]
[]
[]
[]
[]
[]
[]
[]
[]
[]
[]
[]
[]
[]
[]
[]
[]
[]
[]
[]
[]
[]
[]
[]
[]
[]
[]
[]
[]
[]
[]
[]
[]
[]
[]
[]
[]
[]
[]
[]
[]
[]
[]
[]
[]
[]
[]
[]
[]
[]
[]
[]
[]
[]
[]
[]
[]
[]
[]
[]
[]
[]
[]
[]
[]
[]
[]
[]
[]
[]
[]
[]
[]
[]
[]
[]
[]
[]
[]
[]
[]
[]
[]
[]
[]
[]
[]
[]
[]
[]
[]
[]
[]
[]
[]
[]
[]
[]
[]
[]
[]
[]
[]
[]
[]
[]
[]
[]
[]
[]
[]
[]
[]
[]
[]
[]
[]
[]
[]
[]
[]
[]
[]
[]
[]
[]
[]
[]
[]
[]
[]
[]
[]
[]
[]
[]
[]
[]
[]
[]
[]
[]
[]
[]
[]
[]
[]
[]
[]
[]
[]
[]
[]
[]
[]
[]
[]
[]
[]
[]
[]
[]
[]
[]
[]
[]
[]
[]
[]
[]
[]
[]
[]
[]
[]
[]
[]
[]
[]
[]
[]
[]
[]
[]
[]
[]
[]
[]
[]
[]
[]
[]
[]
[]
[]
[]
[]
[]
[]
[]
[]
[]
[]
[]
[]
[]
[]
[]
[]
[]
[]
[]
[]
[]
[]
[]
[]
[]
[]
[]
[]
[]
[]
[]
[]
[]
[]
[]
[]
[]
[]
[]
[]
[]
[]
[]
[]
[]
[]
[]
[]
[]
[]
[]
[]
[]
[]
[]
[]
[]
[]
[]
[]
[]
[]
[]
[]
[]
[]
[]
[]
[]
[]
[]
[]
[]
[]
[]
[]
[]
[]
[]
[]
[]
[]
[]
[]
[]
[]
[]
[]
[]
[]
[]
[]
[]
[]
[]
[]
[]
[]
[]
[]
[]
[]
[]
[]
[]
[]
[]
[]
[]
[]
[]
[]
[]
[]
[]
[]
[]
[]
[]
[]
[]
[]
[]
[]
[]
[]
[]
[]
[]
[]
[]
[]
[]
[]
[]
[]
[]
[]
[]
[]
[]
[]
[]
[]
[]
[]
[]
[]
[]
[]
[]
[]
[]
[]
[]
[]
[]
[]
[]
[]
[]
[]
[]
[]
[]
[]
[]
[]
[]
[]
[]
[]
[]
[]
[]
[]
[]
[]
[]
[]
[]
[]
[]
[]
[]
[]
[]
[]
[]
[]
[]
[]
[]
[]
[]
[]
[]
[]
[]
[]
[]
[]
[]
[]
[]
[]
[]
[]
[]
[]
[]
[]
[]
[]
[]
[]
[]
[]
[]
[]
[]
[]
[]
[]
[]
[]
[]
[]
[]
[]
[]
[]
[]
[]
[]
[]
[]
[]
[]
[]
[]
[]
[]
[]
[]
[]
[]
[]
[]
[]
[]
[]
[]
[]
[]
[]
[]
[]
[]
[]
[]
[]
[]
[]
[]
[]
[]
[]
[]
[]
[]
[]
[]
[]
[]
[]
[]
[]
[]
[]
[]
[]
[]
[]
[]
[]
[]
[]
[]
[]
[]
[]
[]
[]
[]
[]
[]
[]
[]
[]
[]
[]
[]
[]
[]
[]
[]
[]
[]
[]
[]
[]
[]
[]
[]
[]
[]
[]
[]
[]
[]
[]
[]
[]
[]
[]
[]
[]
[]
[]
[]
[]
[]
[]
[]
[]
[]
[]
[]
[]
[]
[]
[]
[]
[]
[]
[]
[]
[]
[]
[]
[]
[]
[]
[]
[]
[]
[]
[]
[]
[]
[]
[]
[]
[]
[]
[]
[]
[]
[]
[]
[]
[]
[]
[]
[]
[]
[]
[]
[]
[]
[]
[]
[]
[]
[]
[]
[]
[]
[]
[]
[]
[]
[]
[]
[]
[]
[]
[]
[]
[]
[]
[]
[]
[]
[]
[]
[]
[]
[]
[]
[]
[]
[]
[]
[]
[]
[]
[]
[]
[]
[]
[]
[]
[]
[]
[]
[]
[]
[]
[]
[]
[]
[]
[]
[]
[]
[]
[]
[]
[]
[]
[]
[]
[]
[]
[]
[]
[]
[]
[]
[]
[]
[]
[]
[]
[]
[]
[]
[]
[]
[]
[]
[]
[]
[]
[]
[]
[]
[]
[]
[]
[]
[]
[]
[]
[]
[]
[]
[]
[]
[]
[]
[]
[]
[]
[]
[]
[]
[]
[]
[]
[]
[]
[]
[]
[]
[]
[]
[]
[]
[]
[]
[]
[]
[]
[]
[]
[]
[]
[]
[]
[]
[]
[]
[]
[]
[]
[]
[]
[]
[]
[]
[]
[]
[]
[]
[]
[]
[]
[]
[]
[]
[]
[]
[]
[]
[]
[]
[]
[]
[]
[]
[]
[]
[]
[]
[]
[]
[]
[]
[]
[]
[]
[]
[]
[]
[]
[]
[]
[]
[]
[]
[]
[]
[]
[]
[]
[]
[]
[]
[]
[]
[]
[]
[]
[]
[]
[]
[]
[]
[]
[]
[]
[]
[]
[]
[]
[]
[]
[]
[]
[]
[]
[]
[]
[]
[]
[]
[]
[]
[]
[]
[]
[]
[]
[]
[]
[]
[]
[]
[]
[]
[]
[]
[]
[]
[]
[]
[]
[]
[]
[]
[]
[]
[]
[]
[]
[]
[]
[]
[]
[]
[]
[]
[]
[]
[]
[]
[]
[]
[]
[]
[]
[]
[]
[]
[]
[]
[]
[]
[]
[]
[]
[]
[]
[]
[]
[]
[]
[]
[]
[]
[]
[]
[]
[]
[]
[]
[]
[]
[]
[]
[]
[]
[]
[]
[]
[]
[]
[]
[]
[]
[]
[]
[]
[]
[]
[]
[]
[]
[]
[]
[]
[]
[]
[]
[]
[]
[]
[]
[]
[]
[]
[]
[]
[]
[]
[]
[]
[]
[]
[]
[]
[]
[]
[]
[]
[]
[]
[]
[]
[]
[]
[]
[]
[]
[]
[]
[]
[]
[]
[]
[]
[]
[]
[]
[]
[]
[]
[]
[]
[]
[]
[]
[]
[]
[]
[]
[]
[]
[]
[]
[]
[]
[]
[]
[]
[]
[]
[]
[]
[]
[]
[]
[]
[]
[]
[]
[]
[]
[]
[]
[]
[]
[]
[]
[]
[]
[]
[]
[]
[]
[]
[]
[]
[]
[]
[]
[]
[]
[]
[]
[]
[]
[]
[]
[]
[]
[]
[]
[]
[]
[]
[]
[]
[]
[]
[]
[]
[]
[]
[]
[]
[]
[]
[]
[]
[]
[]
[]
[]
[]
[]
[]
[]
[]
[]
[]
[]
[]
[]
[]
[]
[]
[]
[]
[]
[]
[]
[]
[]
[]
[]
[]
[]
[]
[]
[]
[]
[]
[]
[]
[]
[]
[]
[]
[]
[]
[]
[]
[]
[]
[]
[]
[]
[]
[]
[]
[]
[]
[]
[]
[]
[]
[]
[]
[]
[]
[]
[]
[]
[]
[]
[]
[]
[]
[]
[]
[]
[]
[]
[]
[]
[]
[]
[]
[]
[]
[]
[]
[]
[]
[]
[]
[]
[]
[]
[]
[]
[]
[]
[]
[]
[]
[]
[]
[]
[]
[]
[]
[]
[]
[]
[]
[]
[]
[]
[]
[]
[]
[]
[]
[]
[]
[]
[]
[]
[]
[]
[]
[]
[]
[]
[]
[]
[]
[]
[]
[]
[]
[]
[]
[]
[]
[]
[]
[]
[]
[]
[]
[]
[]
[]
[]
[]
[]
[]
[]
[]
[]
[]
[]
[]
[]
[]
[]
[]
[]
[]
[]
[]
[]
[]
[]
[]
[]
[]
[]
[]
[]
[]
[]
[]
[]
[]
[]
[]
[]
[]
[]
[]
[]
[]
[]
[]
[]
[]
[]
[]
[]
[]
[]
[]
[]
[]
[]
[]
[]
[]
[]
[]
[]
[]
[]
[]
[]
[]
[]
[]
[]
[]
[]
[]
[]
[]
[]
[]
[]
[]
[]
[]
[]
[]
[]
[]
[]
[]
[]
[]
[]
[]
[]
[]
[]
[]
[]
[]
[]
[]
[]
[]
[]
[]
[]
[]
[]
[]
[]
[]
[]
[]
[]
[]
[]
[]
[]
[]
[]
[]
[]
[]
[]
[]
[]
[]
[]
[]
[]
[]
[]
[]
[]
[]
[]
[]
[]
[]
[]
[]
[]
[]
[]
[]
[]
[]
[]
[]
[]
[]
[]
[]
[]
[]
[]
[]
[]
[]
[]
[]
[]
[]
[]
[]
[]
[]
[]
[]
[]
[]
[]
[]
[]
[]
[]
[]
[]
[]
[]
[]
[]
[]
[]
[]
[]
[]
[]
[]
[]
[]
[]
[]
[]
[]
[]
[]
[]
[]
[]
[]
[]
[]
[]
[]
[]
[]
[]
[]
[]
[]
[]
[]
[]
[]
[]
[]
[]
[]
[]
[]
[]
[]
[]
[]
[]
[]
[]
[]
[]
[]
[]
[]
[]
[]
[]
[]
[]
[]
[]
[]
[]
[]
[]
[]
[]
[]
[]
[]
[]
[]
[]
[]
[]
[]
[]
[]
[]
[]
[]
[]
[]
[]
[]
[]
[]
[]
[]
[]
[]
[]
[]
[]
[]
[]
[]
[]
[]
[]
[]
[]
[]
[]
[]
[]
[]
[]
[]
[]
[]
[]
[]
[]
[]
[]
[]
[]
[]
[]
[]
[]
[]
[]
[]
[]
[]
[]
[]
[]
[]
[]
[]
[]
[]
[]
[]
[]
[]
[]
[]
[]
[]
[]
[]
[]
[]
[]
[]
[]
[]
[]
[]
[]
[]
[]
[]
[]
[]
[]
[]
[]
[]
[]
[]
[]
[]
[]
[]
[]
[]
[]
[]
[]
[]
[]
[]
[]
[]
[]
[]
[]
[]
[]
[]
[]
[]
[]
[]
[]
[]
[]
[]
[]
[]
[]
[]
[]
[]
[]
[]
[]
[]
[]
[]
[]
[]
[]
[]
[]
[]
[]
[]
[]
[]
[]
[]
[]
[]
[]
[]
[]
[]
[]
[]
[]
[]
[]
[]
[]
[]
[]
[]
[]
[]
[]
[]
[]
[]
[]
[]
[]
[]
[]
[]
[]
[]
[]
[]
[]
[]
[]
[]
[]
[]
[]
[]
[]
[]
[]
[]
[]
[]
[]
[]
[]
[]
[]
[]
[]
[]
[]
[]
[]
[]
[]
[]
[]
[]
[]
[]
[]
[]
[]
[]
[]
[]
[]
[]
[]
[]
[]
[]
[]
[]
[]
[]
[]
[]
[]
[]
[]
[]
[]
[]
[]
[]
[]
[]
[]
[]
[]
[]
[]
[]
[]
[]
[]
[]
[]
[]
[]
[]
[]
[]
[]
[]
[]
[]
[]
[]
[]
[]
[]
[]
[]
[]
[]
[]
[]
[]
[]
[]
[]
[]
[]
[]
[]
[]
[]
[]
[]
[]
[]
[]
[]
[]
[]
[]
[]
[]
[]
[]
[]
[]
[]
[]
[]
[]
[]
[]
[]
[]
[]
[]
[]
[]
[]
[]
[]
[]
[]
[]
[]
[]
[]
[]
[]
[]
[]
[]
[]
[]
[]
[]
[]
[]
[]
[]
[]
[]
[]
[]
[]
[]
[]
[]
[]
[]
[]
[]
[]
[]
[]
[]
[]
[]
[]
[]
[]
[]
[]
[]
[]
[]
[]
[]
[]
[]
[]
[]
[]
[]
[]
[]
[]
[]
[]
[]
[]
[]
[]
[]
[]
[]
[]
[]
[]
[]
[]
[]
[]
[]
[]
[]
[]
[]
[]
[]
[]
[]
[]
[]
[]
[]
[]
[]
[]
[]
[]
[]
[]
[]
[]
[]
[]
[]
[]
[]
[]
[]
[]
[]
[]
[]
[]
[]
[]
[]
[]
[]
[]
[]
[]
[]
[]
[]
[]
[]
[]
[]
[]
[]
[]
[]
[]
[]
[]
[]
[]
[]
[]
[]
[]
[]
[]
[]
[]
[]
[]
[]
[]
[]
[]
[]
[]
[]
[]
[]
[]
[]
[]
[]
[]
[]
[]
[]
[]
[]
[]
[]
[]
[]
[]
[]
[]
[]
[]
[]
[]
[]
[]
[]
[]
[]
[]
[]
[]
[]
[]
[]
[]
[]
[]
[]
[]
[]
[]
[]
[]
[]
[]
[]
[]
[]
[]
[]
[]
[]
[]
[]
[]
[]
[]
[]
[]
[]
[]
[]
[]
[]
[]
[]
[]
[]
[]
[]
[]
[]
[]
[]
[]
[]
[]
[]
[]
[]
[]
[]
[]
[]
[]
[]
[]
[]
[]
[]
[]
[]
[]
[]
[]
[]
[]
[]
[]
[]
[]
[]
[]
[]
[]
[]
[]
[]
[]
[]
[]
[]
[]
[]
[]
[]
[]
[]
[]
[]
[]
[]
[]
[]
[]
[]
[]
[]
[]
[]
[]
[]
[]
[]
[]
[]
[]
[]
[]
[]
[]
[]
[]
[]
[]
[]
[]
[]
[]
[]
[]
[]
[]
[]
[]
[]
[]
[]
[]
[]
[]
[]
[]
[]
[]
[]
[]
[]
[]
[]
[]
[]
[]
[]
[]
[]
[]
[]
[]
[]
[]
[]
[]
[]
[]
[]
[]
[]
[]
[]
[]
[]
[]
[]
[]
[]
[]
[]
[]
[]
[]
[]
[]
[]
[]
[]
[]
[]
[]
[]
[]
[]
[]
[]
[]
[]
[]
[]
[]
[]
[]
[]
[]
[]
[]
[]
[]
[]
[]
[]
[]
[]
[]
[]
[]
[]
[]
[]
[]
[]
[]
[]
[]
[]
[]
[]
[]
[]
[]
[]
[]
[]
[]
[]
[]
[]
[]
[]
[]
[]
[]
[]
[]
[]
[]
[]
[]
[]
[]
[]
[]
[]
[]
[]
[]
[]
[]
[]
[]
[]
[]
[]
[]
[]
[]
[]
[]
[]
[]
[]
[]
[]
[]
[]
[]
[]
[]
[]
[]
[]
[]
[]
[]
[]
[]
[]
[]
[]
[]
[]
[]
[]
[]
[]
[]
[]
[]
[]
[]
[]
[]
[]
[]
[]
[]
[]
[]
[]
[]
[]
[]
[]
[]
[]
[]
[]
[]
[]
[]
[]
[]
[]
[]
[]
[]
[]
[]
[]
[]
[]
[]
[]
[]
[]
[]
[]
[]
[]
[]
[]
[]
[]
[]
[]
[]
[]
[]
[]
[]
[]
[]
[]
[]
[]
[]
[]
[]
[]
[]
[]
[]
[]
[]
[]
[]
[]
[]
[]
[]
[]
[]
[]
[]
[]
[]
[]
[]
[]
[]
[]
[]
[]
[]
[]
[]
[]
[]
[]
[]
[]
[]
[]
[]
[]
[]
[]
[]
[]
[]
[]
[]
[]
[]
[]
[]
[]
[]
[]
[]
[]
[]
[]
[]
[]
[]
[]
[]
[]
[]
[]
[]
[]
[]
[]
[]
[]
[]
[]
[]
[]
[]
[]
[]
[]
[]
[]
[]
[]
[]
[]
[]
[]
[]
[]
[]
[]
[]
[]
[]
[]
[]
[]
[]
[]
[]
[]
[]
[]
[]
[]
[]
[]
[]
[]
[]
[]
[]
[]
[]
[]
[]
[]
[]
[]
[]
[]
[]
[]
[]
[]
[]
[]
[]
[]
[]
[]
[]
[]
[]
[]
[]
[]
[]
[]
[]
[]
[]
[]
[]
[]
[]
[]
[]
[]
[]
[]
[]
[]
[]
[]
[]
[]
[]
[]
[]
[]
[]
[]
[]
[]
[]
[]
[]
[]
[]
[]
[]
[]
[]
[]
[]
[]
[]
[]
[]
[]
[]
[]
[]
[]
[]
[]
[]
[]
[]
[]
[]
[]
[]
[]
[]
[]
[]
[]
[]
[]
[]
[]
[]
[]
[]
[]
[]
[]
[]
[]
[]
[]
[]
[]
[]
[]
[]
[]
[]
[]
[]
[]
[]
[]
[]
[]
[]
[]
[]
[]
[]
[]
[]
[]
[]
[]
[]
[]
[]
[]
[]
[]
[]
[]
[]
[]
[]
[]
[]
[]
[]
[]
[]
[]
[]
[]
[]
[]
[]
[]
[]
[]
[]
[]
[]
[]
[]
[]
[]
[]
[]
[]
[]
[]
[]
[]
[]
[]
[]
[]
[]
[]
[]
[]
[]
[]
[]
[]
[]
[]
[]
[]
[]
[]
[]
[]
[]
[]
[]
[]
[]
[]
[]
[]
[]
[]
[]
[]
[]
[]
[]
[]
[]
[]
[]
[]
[]
[]
[]
[]
[]
[]
[]
[]
[]
[]
[]
[]
[]
[]
[]
[]
[]
[]
[]
[]
[]
[]
[]
[]
[]
[]
[]
[]
[]
[]
[]
[]
[]
[]
[]
[]
[]
[]
[]
[]
[]
[]
[]
[]
[]
[]
[]
[]
[]
[]
[]
[]
[]
[]
[]
[]
[]
[]
[]
[]
[]
[]
[]
[]
[]
[]
[]
[]
[]
[]
[]
[]
[]
[]
[]
[]
[]
[]
[]
[]
[]
[]
[]
[]
[]
[]
[]
[]
[]
[]
[]
[]
[]
[]
[]
[]
[]
[]
[]
[]
[]
[]
[]
[]
[]
[]
[]
[]
[]
[]
[]
[]
[]
[]
[]
[]
[]
[]
[]
[]
[]
[]
[]
[]
[]
[]
[]
[]
[]
[]
[]
[]
[]
[]
[]
[]
[]
[]
[]
[]
[]
[]
[]
[]
[]
[]
[]
[]
[]
[]
[]
[]
[]
[]
[]
[]
[]
[]
[]
[]
[]
[]
[]
[]
[]
[]
[]
[]
[]
[]
[]
[]
[]
[]
[]
[]
[]
[]
[]
[]
[]
[]
[]
[]
[]
[]
[]
[]
[]
[]
[]
[]
[]
[]
[]
[]
[]
[]
[]
[]
[]
[]
[]
[]
[]
[]
[]
[]
[]
[]
[]
[]
[]
[]
[]
[]
[]
[]
[]
[]
[]
[]
[]
[]
[]
[]
[]
[]
[]
[]
[]
[]
[]
[]
[]
[]
[]
[]
[]
[]
[]
[]
[]
[]
[]
[]
[]
[]
[]
[]
[]
[]
[]
[]
[]
[]
[]
[]
[]
[]
[]
[]
[]
[]
[]
[]
[]
[]
[]
[]
[]
[]
[]
[]
[]
[]
[]
[]
[]
[]
[]
[]
[]
[]
[]
[]
[]
[]
[]
[]
[]
[]
[]
[]
[]
[]
[]
[]
[]
[]
[]
[]
[]
[]
[]
[]
[]
[]
[]
[]
[]
[]
[]
[]
[]
[]
[]
[]
[]
[]
[]
[]
[]
[]
[]
[]
[]
[]
[]
[]
[]
[]
[]
[]
[]
[]
[]
[]
[]
[]
[]
[]
[]
[]
[]
[]
[]
[]
[]
[]
[]
[]
[]
[]
[]
[]
[]
[]
[]
[]
[]
[]
[]
[]
[]
[]
[]
[]
[]
[]
[]
[]
[]
[]
[]
[]
[]
[]
[]
[]
[]
[]
[]
[]
[]
[]
[]
[]
[]
[]
[]
[]
[]
[]
[]
[]
[]
[]
[]
[]
[]
[]
[]
[]
[]
[]
[]
[]
[]
[]
[]
[]
[]
[]
[]
[]
[]
[]
[]
[]
[]
[]
[]
[]
[]
[]
[]
[]
[]
[]
[]
[]
[]
[]
[]
[]
[]
[]
[]
[]
[]
[]
[]
[]
[]
[]
[]
[]
[]
[]
[]
[]
[]
[]
[]
[]
[]
[]
[]
[]
[]
[]
[]
[]
[]
[]
[]
[]
[]
[]
[]
[]
[]
[]
[]
[]
[]
[]
[]
[]
[]
[]
[]
[]
[]
[]
[]
[]
[]
[]
[]
[]
[]
[]
[]
[]
[]
[]
[]
[]
[]
[]
[]
[]
[]
[]
[]
[]
[]
[]
[]
[]
[]
[]
[]
[]
[]
[]
[]
[]
[]
[]
[]
[]
[]
[]
[]
[]
[]
[]
[]
[]
[]
[]
[]
[]
[]
[]
[]
[]
[]
[]
[]
[]
[]
[]
[]
[]
[]
[]
[]
[]
[]
[]
[]
[]
[]
[]
[]
[]
[]
[]
[]
[]
[]
[]
[]
[]
[]
[]
[]
[]
[]
[]
[]
[]
[]
[]
[]
[]
[]
[]
[]
[]
[]
[]
[]
[]
[]
[]
[]
[]
[]
[]
[]
[]
[]
[]
[]
[]
[]
[]
[]
[]
[]
[]
[]
[]
[]
[]
[]
[]
[]
[]
[]
[]
[]
[]
[]
[]
[]
[]
[]
[]
[]
[]
[]
[]
[]
[]
[]
[]
[]
[]
[]
[]
[]
[]
[]
[]
[]
[]
[]
[]
[]
[]
[]
[]
[]
[]
[]
[]
[]
[]
[]
[]
[]
[]
[]
[]
[]
[]
[]
[]
[]
[]
[]
[]
[]
[]
[]
[]
[]
[]
[]
[]
[]
[]
[]
[]
[]
[]
[]
[]
[]
[]
[]
[]
[]
[]
[]
[]
[]
[]
[]
[]
[]
[]
[]
[]
[]
[]
[]
[]
[]
[]
[]
[]
[]
[]
[]
[]
[]
[]
[]
[]
[]
[]
[]
[]
[]
[]
[]
[]
[]
[]
[]
[]
[]
[]
[]
[]
[]
[]
[]
[]
[]
[]
[]
[]
[]
[]
[]
[]
[]
[]
[]
[]
[]
[]
[]
[]
[]
[]
[]
[]
[]
[]
[]
[]
[]
[]
[]
[]
[]
[]
[]
[]
[]
[]
[]
[]
[]
[]
[]
[]
[]
[]
[]
[]
[]
[]
[]
[]
[]
[]
[]
[]
[]
[]
[]
[]
[]
[]
[]
[]
[]
[]
[]
[]
[]
[]
[]
[]
[]
[]
[]
[]
[]
[]
[]
[]
[]
[]
[]
[]
[]
[]
[]
[]
[]
[]
[]
[]
[]
[]
[]
[]
[]
[]
[]
[]
[]
[]
[]
[]
[]
[]
[]
[]
[]
[]
[]
[]
[]
[]
[]
[]
[]
[]
[]
[]
[]
[]
[]
[]
[]
[]
[]
[]
[]
[]
[]
[]
[]
[]
[]
[]
[]
[]
[]
[]
[]
[]
[]
[]
[]
[]
[]
[]
[]
[]
[]
[]
[]
[]
[]
[]
[]
[]
[]
[]
[]
[]
[]
[]
[]
[]
[]
[]
[]
[]
[]
[]
[]
[]
[]
[]
[]
[]
[]
[]
[]
[]
[]
[]
[]
[]
[]
[]
[]
[]
[]
[]
[]
[]
[]
[]
[]
[]
[]
[]
[]
[]
[]
[]
[]
[]
[]
[]
[]
[]
[]
[]
[]
[]
[]
[]
[]
[]
[]
[]
[]
[]
[]
[]
[]
[]
[]
[]
[]
[]
[]
[]
[]
[]
[]
[]
[]
[]
[]
[]
[]
[]
[]
[]
[]
[]
[]
[]
[]
[]
[]
[]
[]
[]
[]
[]
[]
[]
[]
[]
[]
[]
[]
[]
[]
[]
[]
[]
[]
[]
[]
[]
[]
[]
[]
[]
[]
[]
[]
[]
[]
[]
[]
[]
[]
[]
[]
[]
[]
[]
[]
[]
[]
[]
[]
[]
[]
[]
[]
[]
[]
[]
[]
[]
[]
[]
[]
[]
[]
[]
[]
[]
[]
[]
[]
[]
[]
[]
[]
[]
[]
[]
[]
[]
[]
[]
[]
[]
[]
[]
[]
[]
[]
[]
[]
[]
[]
[]
[]
[]
[]
[]
[]
[]
[]
[]
[]
[]
[]
[]
[]
[]
[]
[]
[]
[]
[]
[]
[]
[]
[]
[]
[]
[]
[]
[]
[]
[]
[]
[]
[]
[]
[]
[]
[]
[]
[]
[]
[]
[]
[]
[]
[]
[]
[]
[]
[]
[]
[]
[]
[]
[]
[]
[]
[]
[]
[]
[]
[]
[]
[]
[]
[]
[]
[]
[]
[]
[]
[]
[]
[]
[]
[]
[]
[]
[]
[]
[]
[]
[]
[]
[]
[]
[]
[]
[]
[]
[]
[]
[]
[]
[]
[]
[]
[]
[]
[]
[]
[]
[]
[]
[]
[]
[]
[]
[]
[]
[]
[]
[]
[]
[]
[]
[]
[]
[]
[]
[]
[]
[]
[]
[]
[]
[]
[]
[]
[]
[]
[]
[]
[]
[]
[]
[]
[]
[]
[]
[]
[]
[]
[]
[]
[]
[]
[]
[]
[]
[]
[]
[]
[]
[]
[]
[]
[]
[]
[]
[]
[]
[]
[]
[]
[]
[]
[]
[]
[]
[]
[]
[]
[]
[]
[]
[]
[]
[]
[]
[]
[]
[]
[]
[]
[]
[]
[]
[]
[]
[]
[]
[]
[]
[]
[]
[]
[]
[]
[]
[]
[]
[]
[]
[]
[]
[]
[]
[]
[]
[]
[]
[]
[]
[]
[]
[]
[]
[]
[]
[]
[]
[]
[]
[]
[]
[]
[]
[]
[]
[]
[]
[]
[]
[]
[]
[]
[]
[]
[]
[]
[]
[]
[]
[]
[]
[]
[]
[]
[]
[]
[]
[]
[]
[]
[]
[]
[]
[]
[]
[]
[]
[]
[]
[]
[]
[]
[]
[]
[]
[]
[]
[]
[]
[]
[]
[]
[]
[]
[]
[]
[]
[]
[]
[]
[]
[]
[]
[]
[]
[]
[]
[]
[]
[]
[]
[]
[]
[]
[]
[]
[]
[]
[]
[]
[]
[]
[]
[]
[]
[]
[]
[]
[]
[]
[]
[]
[]
[]
[]
[]
[]
[]
[]
[]
[]
[]
[]
[]
[]
[]
[]
[]
[]
[]
[]
[]
[]
[]
[]
[]
[]
[]
[]
[]
[]
[]
[]
[]
[]
[]
[]
[]
[]
[]
[]
[]
[]
[]
[]
[]
[]
[]
[]
[]
[]
[]
[]
[]
[]
[]
[]
[]
[]
[]
[]
[]
[]
[]
[]
[]
[]
[]
[]
[]
[]
[]
[]
[]
[]
[]
[]
[]
[]
[]
[]
[]
[]
[]
[]
[]
[]
[]
[]
[]
[]
[]
[]
[]
[]
[]
[]
[]
[]
[]
[]
[]
[]
[]
[]
[]
[]
[]
[]
[]
[]
[]
[]
[]
[]
[]
[]
[]
[]
[]
[]
[]
[]
[]
[]
[]
[]
[]
[]
[]
[]
[]
[]
[]
[]
[]
[]
[]
[]
[]
[]
[]
[]
[]
[]
[]
[]
[]
[]
[]
[]
[]
[]
[]
[]
[]
[]
[]
[]
[]
[]
[]
[]
[]
[]
[]
[]
[]
[]
[]
[]
[]
[]
[]
[]
[]
[]
[]
[]
[]
[]
[]
[]
[]
[]
[]
[]
[]
[]
[]
[]
[null,null,null,null,null,null,null,null,null,null,null,null,null,null,null,null,null,null,null,null,null,null,null,null,null,null,null,null,null,null,null,null,null,null,null,null,null,null,null,null,null,null,null,null,null,null,null,null,null,null,null,null,null,null,null,null,null,null,null,null,null,null,null,null,null,null,null,null,null,null,null,null,null,null,null,null,null,null,null,null,null,null,null,null,null,null,null,null,null,null,null,null,null,null,null,null,null,null,null,null,null,null,null,null,null,null,null,null,null,null,null,null,null,null,null,null,null,null,null,null,null,null,null,null,null,null,null,null,null,null,null,null,null,null,null,null,null,null,null,null,null,null,null,null,null,null,null,null,null,null,null,null,null,null,null,null,null,null,null,null,null,null,null,null,null,null,null,null,null,null,null,null,null,null,null,null,null,null,null,null,null,null,null,null,null,null,null,null,null,null,null,null,null,null,null,null,null,null,null,null,null,null,null,null,null,null,null,null,null,null,null,null,null,null,null,null,null,null,null,null,null,null,null,null,null,null,null,null,null,null,null,null,null,null,null,null,null,null,null,null,null,null,null,null,null,null,null,null,null,null,null,null,null,null,null,null,null,null,null,null,null,null,null,null,null,null,null,null,null,null,null,null,null,null,null,null,null,null,null,null,null,null,null,null,null,null,null,null,null,null,null,null,null,null,null,null,null,null,null,null,null,null,null,null,null,null,null,null,null,null,null,null,null,null,null,null,null,null,null,null,null,null,null,null,null,null,null,null,null,null,null,null,null,null,null,null,null,null,null,null,null,null,null,null,null,null,null,null,null,null,null,null,null,null,null,null,null,null,null,null,null,null,null,null,null,null,null,null,null,null,null,null,null,null,null,null,null,null,null,null,null,null,null,null,null,null,null,null,null,null,null,null,null,null,null,null,null,null,null,null,null,null,null,null,null,null,null,null,null,null,null,null,null,null,null,null,null,null,null,null,null,null,null,null,null,null,null,null,null,null,null,null,null,null,null,null,null,null,null,null,null,null,null,null,null,null,null,null,null,null,null,null,null,null,null,null,null,null,null,null,null,null,null,null,null,null,null,null,null,null,null,null,null,null,null,null,null,null,null,null,null,null,null,null,null,null,null,null,null,null,null,null,null,null,null,null,null,null,null,null,null,null,null,null,null,null,null,null,null,null,null,null,null,null,null,null,null,null,null,null,null,null,null,null,null,null,null,null,null,null,null,null,null,null,null,null,null,null,null,null,null,null,null,null,null,null,null,null,null,null,null,null,null,null,null,null,null,null,null,null,null,null,null,null,null,null,null,null,null,null,null,null,null,null,null,null,null,null,null,null,null,null,null,null,null,null,null,null,null,null,null,null,null,null,null,null,null,null,null,null,null,null,null,null,null,null,null,null,null,null,null,null,null,null,null,null,null,null,null,null,null,null,null,null,null,null,null,null,null,null,null,null,null,null,null,null,null,null,null,null,null,null,null,null,null,null,null,null,null,null,null,null,null,null,null,null,null,null,null,null,null,null,null,null,null,null,null,null,null,null,null,null,null,null,null,null,null,null,null,null,null,null,null,null,null,null,null,null,null,null,null,null,null,null,null,null,null,null,null,null,null,null,null,null,null,null,null,null,null,null,null,null,null,null,null,null,null,null,null,null,null,null,null,null,null,null,null,null,null,null,null,null,null,null,null,null,null,null,null,null,null,null,null,null,null,null,null,null,null,null,null,null,null,null,null,null,null,null,null,null,null,null,null,null,null,null,null,null,null,null,null,null,null,null,null,null,null,null,null,null,null,null,null,null,null,null,null,null,null,null,null,null,null,null,null,null,null,null,null,null,null,null,null,null,null,null,null,null,null,null,null,null,null,null,null,null,null,null,null,null,null,null,null,null,null,null,null,null,null,null,null,null,null,null,null,null,null,null,null,null,null,null,null,null,null,null,null,null,null,null,null,null,null,null,null,null,null,null,null,null,null,null,null,null,null,null,null,null,null,null,null,null,null,null,null,null,null,null,null,null,null,null,null,null,null,null,null,null,null,null,null,null,null,null,null,null,null,null,null,null,null,null,null,null,null,null,null,null,null,null,null,null,null,null,null,null,null,null,null,null,null,null,null,null,null,null,null,null,null,null,null,null,null,null,null,null,null,null,null,null,null,null,null,null,null,null,null,null,null,null,null,null,null,null,null,null,null,null,null,null,null,null,null,null,null,null,null,null,null,null,null,null,null,null,null,null,null,null,null,null,null,null,null,null,null,null,null,null,null,null,null,null,null,null,null,null,null,null,null,null,null,null,null,null,null,null,null,null,null,null,null,null,null,null,null,null,null,null,null,null,null,null,null,null,null,null,null,null,null,null,null,null,null,null,null,null,null,null,null,null,null,null,null,null,null,null,null,null,null,null,null,null,null,null,null,null,null,null,null,null,null,null,null,null,null,null,null,null,null,null,null,null,null,null,null,null,null,null,null,null,null,null,null,null,null,null,null,null,null,null,null,null,null,null,null,null,null,null,null,null,null,null,null,null,null,null,null,null,null,null,null,null,null,null,null,null,null,null,null,null,null,null,null,null,null,null,null,null,null,null,null,null,null,null,null,null,null,null,null,null,null,null,null,null,null,null,null,null,null,null,null,null,null,null,null,null,null,null,null,null,null,null,null,null,null,null,null,null,null,null,null,null,null,null,null,null,null,null,null,null,null,null,null,null,null,null,null,null,null,null,null,null,null,null,null,null,null,null,null,null,null,null,null,null,null,null,null,null,null,null,null,null,null,null,null,null,null,null,null,null,null,null,null,null,null,null,null,null,null,null,null,null,null,null,null,null,null,null,null,null,null,null,null,null,null,null,null,null,null,null,null,null,null,null,null,null,null,null,null,null,null,null,null,null,null,null,null,null,null,null,null,null,null,null,null,null,null,null,null,null,null,null,null,null,null,null,null,null,null,null,null,null,null,null,null,null,null,null,null,null,null,null,null,null,null,null,null,null,null,null,null,null,null,null,null,null,null,null,null,null,null,null,null,null,null,null,null,null,null,null,null,null,null,null,null,null,null,null,null,null,null,null,null,null,null,null,null,null,null,null,null,null,null,null,null,null,null,null,null,null,null,null,null,null,null,null,null,null,null,null,null,null,null,null,null,null,null,null,null,null,null,null,null,null,null,null,null,null,null,null,null,null,null,null,null,null,null,null,null,null,null,null,null,null,null,null,null,null,null,null,null,null,null,null,null,null,null,null,null,null,null,null,null,null,null,null,null,null,null,null,null,null,null,null,null,null,null,null,null,null,null,null,null,null,null,null,null,null,null,null,null,null,null,null,null,null,null,null,null,null,null,null,null,null,null,null,null,null,null,null,null,null,null,null,null,null,null,null,null,null,null,null,null,null,null,null,null,null,null,null,null,null,null,null,null,null,null,null,null,null,null,null,null,null,null,null,null,null,null,null,null,null,null,null,null,null,null,null,null,null,null,null,null,null,null,null,null,null,null,null,null,null,null,null,null,null,null,null,null,null,null,null,null,null,null,null,null,null,null,null,null,null,null,null,null,null,null,null,null,null,null,null,null,null,null,null,null,null,null,null,null,null,null,null,null,null,null,null,null,null,null,null,null,null,null,null,null,null,null,null,null,null,null,null,null,null,null,null,null,null,null,null,null,null,null,null,null,null,null,null,null,null,null,null,null,null,null,null,null,null,null,null,null,null,null,null,null,null,null,null,null,null,null,null,null,null,null,null,null,null,null,null,null,null,null,null,null,null,null,null,null,null,null,null,null,null,null,null,null,null,null,null,null,null,null,null,null,null,null,null,null,null,null,null,null,null,null,null,null,null,null,null,null,null,null,null,null,null,null,null,null,null,null,null,null,null,null,null,null,null,null,null,null,null,null,null,null,null,null,null,null,null,null,null,null,null,null,null,null,null,null,null,null,null,null,null,null,null,null,null,null,null,null,null,null,null,null,null,null,null,null,null,null,null,null,null,null,null,null,null,null,null,null,null,null,null,null,null,null,null,null,null,null,null,null,null,null,null,null,null,null,null,null,null,null,null,null,null,null,null,null,null,null,null,null,null,null,null,null,null,null,null,null,null,null,null,null,null,null,null,null,null,null,null,null,null,null,null,null,null,null,null,null,null,null,null,null,null,null,null,null,null,null,null,null,null,null,null,null,null,null,null,null,null,null,null,null,null,null,null,null,null,null,null,null,null,null,null,null,null,null,null,null,null,null,null,null,null,null,null,null,null,null,null,null,null,null,null,null,null,null,null,null,null,null,null,null,null,null,null,null,null,null,null,null,null,null,null,null,null,null,null,null,null,null,null,null,null,null,null,null,null,null,null,null,null,null,null,null,null,null,null,null,null,null,null,null,null,null,null,null,null,null,null,null,null,null,null,null,null,null,null,null,null,null,null,null,null,null,null,null,null,null,null,null,null,null,null,null,null,null,null,null,null,null,null,null,null,null,null,null,null,null,null,null,null,null,null,null,null,null,null,null,null,null,null,null,null,null,null,null,null,null,null,null,null,null,null,null,null,null,null,null,null,null,null,null,null,null,null,null,null,null,null,null,null,null,null,null,null,null,null,null,null,null,null,null,null,null,null,null,null,null,null,null,null,null,null,null,null,null,null,null,null,null,null,null,null,null,null,null,null,null,null,null,null,null,null,null,null,null,null,null,null,null,null,null,null,null,null,null,null,null,null,null,null,null,null,null,null,null,null,null,null,null,null,null,null,null,null,null,null,null,null,null,null,null,null,null,null,null,null,null,null,null,null,null,null,null,null,null,null,null,null,null,null,null,null,null,null,null,null,null,null,null,null,null,null,null,null,null,null,null,null,null,null,null,null,null,null,null,null,null,null,null,null,null,null,null,null,null,null,null,null,null,null,null,null,null,null,null,null,null,null,null,null,null,null,null,null,null,null,null,null,null,null,null,null,null,null,null,null,null,null,null,null,null,null,null,null,null,null,null,null,null,null,null,null,null,null,null,null,null,null,null,null,null,null,null,null,null,null,null,null,null,null,null,null,null,null,null,null,null,null,null,null,null,null,null,null,null,null,null,null,null,null,null,null,null,null,null,null,null,null,null,null,null,null,null,null,null,null,null,null,null,null,null,null,null,null,null,null,null,null,null,null,null,null,null,null,null,null,null,null,null,null,null,null,null,null,null,null,null,null,null,null,null,null,null,null,null,null,null,null,null,null,null,null,null,null,null,null,null,null,null,null,null,null,null,null,null,null,null,null,null,null,null,null,null,null,null,null,null,null,null,null,null,null,null,null,null,null,null,null,null,null,null,null,null,null,null,null,null,null,null,null,null,null,null,null,null,null,null,null,null,null,null,null,null,null,null,null,null,null,null,null,null,null,null,null,null,null,null,null,null,null,null,null,null,null,null,null,null,null,null,null,null,null,null,null,null,null,null,null,null,null,null,null,null,null,null,null,null,null,null,null,null,null,null,null,null,null,null,null,null,null,null,null,null,null,null,null,null,null,null,null,null,null,null,null,null,null,null,null,null,null,null,null,null,null,null,null,null,null,null,null,null,null,null,null,null,null,null,null,null,null,null,null,null,null,null,null,null,null,null,null,null,null,null,null,null,null,null,null,null,null,null,null,null,null,null,null,null,null,null,null,null,null,null,null,null,null,null,null,null,null,null,null,null,null,null,null,null,null,null,null,null,null,null,null,null,null,null,null,null,null,null,null,null,null,null,null,null,null,null,null,null,null,null,null,null,null,null,null,null,null,null,null,null,null,null,null,null,null,null,null,null,null,null,null,null,null,null,null,null,null,null,null,null,null,null,null,null,null,null,null,null,null,null,null,null,null,null,null,null,null,null,null,null,null,null,null,null,null,null,null,null,null,null,null,null,null,null,null,null,null,null,null,null,null,null,null,null,null,null,null,null,null,null,null,null,null,null,null,null,null,null,null,null,null,null,null,null,null,null,null,null,null,null,null,null,null,null,null,null,null,null,null,null,null,null,null,null,null,null,null,null,null,null,null,null,null,null,null,null,null,null,null,null,null,null,null,null,null,null,null,null,null,null,null,null,null,null,null,null,null,null,null,null,null,null,null,null,null,null,null,null,null,null,null,null,null,null,null,null,null,null,null,null,null,null,null,null,null,null,null,null,null,null,null,null,null,null,null,null,null,null,null,null,null,null,null,null,null,null,null,null,null,null,null,null,null,null,null,null,null,null,null,null,null,null,null,null,null,null,null,null,null,null,null,null,null,null,null,null,null,null,null,null,null,null,null,null,null,null,null,null,null,null,null,null,null,null,null,null,null,null,null,null,null,null,null,null,null,null,null,null,null,null,null,null,null,null,null,null,null,null,null,null,null,null,null,null,null,null,null,null,null,null,null,null,null,null,null,null,null,null,null,null,null,null,null,null,null,null,null,null,null,null,null,null,null,null,null,null,null,null,null,null,null,null,null,null,null,null,null,null,null,null,null,null,null,null,null,null,null,null,null,null,null,null,null,null,null,null,null,null,null,null,null,null,null,null,null,null,null,null,null,null,null,null,null,null,null,null,null,null,null,null,null,null,null,null,null,null,null,null,null,null,null,null,null,null,null,null,null,null,null,null,null,null,null,null,null,null,null,null,null,null,null,null,null,null,null,null,null,null,null,null,null,null,null,null,null,null,null,null,null,null,null,null,null,null,null,null,null,null,null,null,null,null,null,null,null,null,null,null,null,null,null,null,null,null,null,null,null,null,null,null,null,null,null,null,null,null,null,null,null,null,null,null,null,null,null,null,null,null,null,null,null,null,null,null,null,null,null,null,null,null,null,null,null,null,null,null,null,null,null,null,null,null,null,null,null,null,null,null,null,null,null,null,null,null,null,null,null,null,null,null,null,null,null,null,null,null,null,null,null,null,null,null,null,null,null,null,null,null,null,null,null,null,null,null,null,null,null,null,null,null,null,null,null,null,null,null,null,null,null,null,null,null,null,null,null,null,null,null,null,null,null,null,null,null,null,null,null,null,null,null,null,null,null,null,null,null,null,null,null,null,null,null,null,null,null,null,null,null,null,null,null,null,null,null,null,null,null,null,null,null,null,null,null,null,null,null,null,null,null,null,null,null,null,null,null,null,null,null,null,null,null,null,null,null,null,null,null,null,null,null,null,null,null,null,null,null,null,null,null,null,null,null,null,null,null,null,null,null,null,null,null,null,null,null,null,null,null,null,null,null,null,null,null,null,null,null,null,null,null,null,null,null,null,null,null,null,null,null,null,null,null,null,null,null,null,null,null,null,null,null,null,null,null,null,null,null,null,null,null,null,null,null,null,null,null,null,null,null,null,null,null,null,null,null,null,null,null,null,null,null,null,null,null,null,null,null,null,null,null,null,null,null,null,null,null,null,null,null,null,null,null,null,null,null,null,null,null,null,null,null,null,null,null,null,null,null,null,null,null,null,null,null,null,null,null,null,null,null,null,null,null,null,null,null,null,null,null,null,null,null,null,null,null,null,null,null,null,null,null,null,null,null,null,null,null,null,null,null,null,null,null,null,null,null,null,null,null,null,null,null,null,null,null,null,null,null,null,null,null,null,null,null,null,null,null,null,null,null,null,null,null,null,null,null,null,null,null,null,null,null,null,null,null,null,null,null,null,null,null,null,null,null,null,null,null,null,null,null,null,null,null,null,null,null,null,null,null,null,null,null,null,null,null,null,null,null,null,null,null,null,null,null,null,null,null,null,null,null,null,null,null,null,null,null,null,null,null,null,null,null,null,null,null,null,null,null,null,null,null,null,null,null,null,null,null,null,null,null,null,null,null,null,null,null,null,null,null,null,null,null,null,null,null,null,null,null,null,null,null,null,null,null,null,null,null,null,null,null,null,null,null,null,null,null,null,null,null,null,null,null,null,null,null,null,null,null,null,null,null,null,null,null,null,null,null,null,null,null,null,null,null,null,null,null,null,null,null,null,null,null,null,null,null,null,null,null,null,null,null,null,null,null,null,null,null,null,null,null,null,null,null,null,null,null,null,null,null,null,null,null,null,null,null,null,null,null,null,null,null,null,null,null,null,null,null,null,null,null,null,null,null,null,null,null,null,null,null,null,null,null,null,null,null,null,null,null,null,null,null,null,null,null,null,null,null,null,null,null,null,null,null,null,null,null,null,null,null,null,null,null,null,null,null,null,null,null,null,null,null,null,null,null,null,null,null,null,null,null,null,null,null,null,null,null,null,null,null,null,null,null,null,null,null,null,null,null,null,null,null,null,null,null,null,null,null,null,null,null,null,null,null,null,null,null,null,null,null,null,null,null,null,null,null,null,null,null,null,null,null,null,null,null,null,null,null,null,null,null,null,null,null,null,null,null,null,null,null,null,null,null,null,null,null,null,null,null,null,null,null,null,null,null,null,null,null,null,null,null,null,null,null,null,null,null,null,null,null,null,null,null,null,null,null,null,null,null,null,null,null,null,null,null,null,null,null,null,null,null,null,null,null,null,null,null,null,null,null,null,null,null,null,null,null,null,null,null,null,null,null,null,null,null,null,null,null,null,null,null,null,null,null,null,null,null,null,null,null,null,null,null,null,null,null,null,null,null,null,null,null,null,null,null,null,null,null,null,null,null,null,null,null,null,null,null,null,null,null,null,null,null,null,null,null,null,null,null,null,null,null,null,null,null,null,null,null,null,null,null,null,null,null,null,null,null,null,null,null,null,null,null,null,null,null,null,null,null,null,null,null,null,null,null,null,null,null,null,null,null,null,null,null,null,null,null,null,null,null,null,null,null,null,null,null,null,null,null,null,null,null,null,null,null,null,null,null,null,null,null,null,null,null,null,null,null,null,null,null,null,null,null,null,null,null,null,null,null,null,null,null,null,null,null,null,null,null,null,null,null,null,null,null,null,null,null,null,null,null,null,null,null,null,null,null,null,null,null,null,null,null,null,null,null,null,null,null,null,null,null,null,null,null,null,null,null,null,null,null,null,null,null,null,null,null,null,null,null,null,null,null,null,null,null,null,null,null,null,null,null,null,null,null,null,null,null,null,null,null,null,null,null,null,null,null,null,null,null,null,null,null,null,null,null,null,null,null,null,null,null,null,null,null,null,null,null,null,null,null,null,null,null,null,null,null,null,null,null,null,null,null,null,null,null,null,null,null,null,null,null,null,null,null,null,null,null,null,null,null,null,null,null,null,null,null,null,null,null,null,null,null,null,null,null,null,null,null,null,null,null,null,null,null,null,null,null,null,null,null,null,null,null,null,null,null,null,null,null,null,null,null,null,null,null,null,null,null,null,null,null,null,null,null,null,null,null,null,null,null,null,null,null,null,null,null,null,null,null,null,null,null,null,null,null,null,null,null,null,null,null,null,null,null,null,null,null,null,null,null,null,null,null,null,null,null,null,null,null,null,null,null,null,null,null,null,null,null,null,null,null,null,null,null,null,null,null,null,null,null,null,null,null,null,null,null,null,null,null,null,null,null,null,null,null,null,null,null,null,null,null,null,null,null,null,null,null,null,null,null,null,null,null,null,null,null,null,null,null,null,null,null,null,null,null,null,null,null,null,null,null,null,null,null,null,null,null,null,null,null,null,null,null,null,null,null,null,null,null,null,null,null,null,null,null,null,null,null,null,null,null,null,null,null,null,null,null,null,null,null,null,null,null,null,null,null,null,null,null,null,null,null,null,null,null,null,null,null,null,null,null,null,null,null,null,null,null,null,null,null,null,null,null,null,null,null,null,null,null,null,null,null,null,null,null,null,null,null,null,null,null,null,null,null,null,null,null,null,null,null,null,null,null,null,null,null,null,null,null,null,null,null,null,null,null,null,null,null,null,null,null,null,null,null,null,null,null,null,null,null,null,null,null,null,null,null,null,null,null,null,null,null,null,null,null,null,null,null,null,null,null,null,null,null,null,null,null,null,null,null,null,null,null,null,null,null,null,null,null,null,null,null,null,null,null,null,null,null,null,null,null,null,null,null,null,null,null,null,null,null,null,null,null,null,null,null,null,null,null,null,null,null,null,null,null,null,null,null,null,null,null,null,null,null,null,null,null,null,null,null,null,null,null,null,null,null,null,null,null,null,null,null,null,null,null,null,null,null,null,null,null,null,null,null,null,null,null,null,null,null,null,null,null,null,null,null,null,null,null,null,null,null,null,null,null,null,null,null,null,null,null,null,null,null,null,null,null,null,null,null,null,null,null,null,null,null,null,null,null,null,null,null,null,null,null,null,null,null,null,null,null,null,null,null,null,null,null,null,null,null,null,null,null,null,null,null,null,null,null,null,null,null,null,null,null,null,null,null,null,null,null,null,null,null,null,null,null,null,null,null,null,null,null,null,null,null,null,null,null,null,null,null,null,null,null,null,null,null,null,null,null,null,null,null,null,null,null,null,null,null,null,null,null,null,null,null,null,null,null,null,null,null,null,null,null,null,null,null,null,null,null,null,null,null,null,null,null,null,null,null,null,null,null,null,null,null,null,null,null,null,null,null,null,null,null,null,null,null,null,null,null,null,null,null,null,null,null,null,null,null,null,null,null,null,null,null,null,null,null,null,null,null,null,null,null,null,null,null,null,null,null,null,null,null,null,null,null,null,null,null,null,null,null,null,null,null,null,null,null,null,null,null,null,null,null,null,null,null,null,null,null,null,null,null,null,null,null,null,null,null,null,null,null,null,null,null,null,null,null,null,null,null,null,null,null,null,null,null,null,null,null,null,null,null,null,null,null,null,null,null,null,null,null,null,null,null,null,null,null,null,null,null,null,null,null,null,null,null,null,null,null,null,null,null,null,null,null,null,null,null,null,null,null,null,null,null,null,null,null,null,null,null,null,null,null,null,null,null,null,null,null,null,null,null,null,null,null,null,null,null,null,null,null,null,null,null,null,null,null,null,null,null,null,null,null,null,null,null,null,null,null,null,null,null,null,null,null,null,null,null,null,null,null,null,null,null,null,null,null,null,null,null,null,null,null,null,null,null,null,null,null,null,null,null,null,null,null,null,null,null,null,null,null,null,null,null,null,null,null,null,null,null,null,null,null,null,null,null,null,null,null,null,null,null,null,null,null,null,null,null,null,null,null,null,null,null,null,null,null,null,null,null,null,null,null,null,null,null,null,null,null,null,null,null,null,null,null,null,null,null,null,null,null,null,null,null,null,null,null,null,null,null,null,null,null,null,null,null,null,null,null,null,null,null,null,null,null,null,null,null,null,null,null,null,null,null,null,null,null,null,null,null,null,null,null,null,null,null,null,null,null,null,null,null,null,null,null,null,null,null,null,null,null,null,null,null,null,null,null,null,null,null,null,null,null,null,null,null,null,null,null,null,null,null,null,null,null,null,null,null,null,null,null,null,null,null,null,null,null,null,null,null,null,null,null,null,null,null,null,null,null,null,null,null,null,null,null,null,null,null,null,null,null,null,null,null,null,null,null,null,null,null,null,null,null,null,null,null,null,null,null,null,null,null,null,null,null,null,null,null,null,null,null,null,null,null,null,null,null,null,null,null,null,null,null,null,null,null,null,null,null,null,null,null,null,null,null,null,null,null,null,null,null,null,null,null,null,null,null,null,null,null,null,null,null,null,null,null,null,null,null,null,null,null,null,null,null,null,null,null,null,null,null,null,null,null,null,null,null,null,null,null,null,null,null,null,null,null,null,null,null,null,null,null,null,null,null,null,null,null,null,null,null,null,null,null,null,null,null,null,null,null,null,null,null,null,null,null,null,null,null,null,null,null,null,null,null,null,null,null,null,null,null,null,null,null,null,null,null,null,null,null,null,null,null,null,null,null,null,null,null,null,null,null,null,null,null,null,null,null,null,null,null,null,null,null,null,null,null,null,null,null,null,null,null,null,null,null,null,null,null,null,null,null,null,null,null,null,null,null,null,null,null,null,null,null,null,null,null,null,null,null,null,null,null,null,null,null,null,null,null,null,null,null,null,null,null,null,null,null,null,null,null,null,null,null,null,null,null,null,null,null,null,null,null,null,null,null,null,null,null,null,null,null,null,null,null,null,null,null,null,null,null,null,null,null,null,null,null,null,null,null,null,null,null,null,null,null,null,null,null,null,null,null,null,null,null,null,null,null,null,null,null,null,null,null,null,null,null,null,null,null,null,null,null,null,null,null,null,null,null,null,null,null,null,null,null,null,null,null,null,null,null,null,null,null,null,null,null,null,null,null,null,null,null,null,null,null,null,null,null,null,null,null,null,null,null,null,null,null,null,null,null,null,null,null,null,null,null,null,null,null,null,null,null,null,null,null,null,null,null,null,null,null,null,null,null,null,null,null,null,null,null,null,null,null,null,null,null,null,null,null,null,null,null,null,null,null,null,null,null,null,null,null,null,null,null,null,null,null,null,null,null,null,null,null,null,null,null,null,null,null,null,null,null,null,null,null,null,null,null,null,null,null,null,null,null,null,null,null,null,null,null,null,null,null,null,null,null,null,null,null,null,null,null,null,null,null,null,null,null,null,null,null,null,null,null,null,null,null,null,null,null,null,null,null,null,null,null,null,null,null,null,null,null,null,null,null,null,null,null,null,null,null,null,null,null,null,null,null,null,null,null,null,null,null,null,null,null,null,null,null,null,null,null,null,null,null,null,null,null,null,null,null,null,null,null,null,null,null,null,null,null,null,null,null,null,null,null,null,null,null,null,null,null,null,null,null,null,null,null,null,null,null,null,null,null,null,null,null,null,null,null,null,null,null,null,null,null,null,null,null,null,null,null,null,null,null,null,null,null,null,null,null,null,null,null,null,null,null,null,null,null,null,null,null,null,null,null,null,null,null,null,null,null,null,null,null,null,null,null,null,null,null,null,null,null,null,null,null,null,null,null,null,null,null,null,null,null,null,null,null,null,null,null,null,null,null,null,null,null,null,null,null,null,null,null,null,null,null,null,null,null,null,null,null,null,null,null,null,null,null,null,null,null,null,null,null,null,null,null,null,null,null,null,null,null,null,null,null,null,null,null,null,null,null,null,null,null,null,null,null,null,null,null,null,null,null,null,null,null,null,null,null,null,null,null,null,null,null,null,null,null,null,null,null,null,null,null,null,null,null,null,null,null,null,null,null,null,null,null,null,null,null,null,null,null,null,null,null,null,null,null,null,null,null,null,null,null,null,null,null,null,null,null,null,null,null,null,null,null,null,null,null,null,null,null,null,null,null,null,null,null,null,null,null,null,null,null,null,null,null,null,null,null,null,null,null,null,null,null,null,null,null,null,null,null,null,null,null,null,null,null,null,null,null,null,null,null,null,null,null,null,null,null,null,null,null,null,null,null,null,null,null,null,null,null,null,null,null,null,null,null,null,null,null,null,null,null,null,null,null,null,null,null,null,null,null,null,null,null,null,null,null,null,null,null,null,null,null,null,null,null,null,null,null,null,null,null,null,null,null,null,null,null,null,null,null,null,null,null,null,null,null,null,null,null,null,null,null,null,null,null,null,null,null,null,null,null,null,null,null,null,null,null,null,null,null,null,null,null,null,null,null,null,null,null,null,null,null,null,null,null,null,null,null,null,null,null,null,null,null,null,null,null,null,null,null,null,null,null,null,null,null,null,null,null,null,null,null,null,null,null,null,null,null,null,null,null,null,null,null,null,null,null,null,null,null,null,null,null,null,null,null,null,null,null,null,null,null,null,null,null,null,null,null,null,null,null,null,null,null,null,null,null,null,null,null,null,null,null,null,null,null,null,null,null,null,null,null,null,null,null,null,null,null,null,null,null,null,null,null,null,null,null,null,null,null,null,null,null,null,null,null,null,null,null,null,null,null,null,null,null,null,null,null,null,null,null,null,null,null,null,null,null,null,null,null,null,null,null,null,null,null,null,null,null,null,null,null,null,null,null,null,null,null,null,null,null,null,null,null,null,null,null,null,null,null,null,null,null,null,null,null,null,null,null,null,null,null,null,null,null,null,null,null,null,null,null,null,null,null,null,null,null,null,null,null,null,null,null,null,null,null,null,null,null,null,null,null,null,null,null,null,null,null,null,null,null,null,null,null,null,null,null,null,null,null,null,null,null,null,null,null,null,null,null,null,null,null,null,null,null,null,null,null,null,null,null,null,null,null,null,null,null,null,null,null,null,null,null,null,null,null,null,null,null,null,null,null,null,null,null,null,null,null,null,null,null,null,null,null,null,null,null,null,null,null,null,null,null,null,null,null,null,null,null,null,null,null,null,null,null,null,null,null,null,null,null,null,null,null,null,null,null,null,null,null,null,null,null,null,null,null,null,null,null,null,null,null,null,null,null,null,null,null,null,null,null,null,null,null,null,null,null,null,null,null,null,null,null,null,null,null,null,null,null,null,null,null,null,null,null,null,null,null,null,null,null,null,null,null,null,null,null,null,null,null,null,null,null,null,null,null,null,null,null,null,null,null,null,null,null,null,null,null,null,null,null,null,null,null,null,null,null,null,null,null,null,null,null,null,null,null,null,null,null,null,null,null,null,null,null,null,null,null,null,null,null,null,null,null,null,null,null,null,null,null,null,null,null,null,null,null,null,null,null,null,null,null,null,null,null,null,null,null,null,null,null,null,null,null,null,null,null,null,null,null,null,null,null,null,null,null,null,null,null,null,null,null,null,null,null,null,null,null,null,null,null,null,null,null,null,null,null,null,null,null,null,null,null,null,null,null,null,null,null,null,null,null,null,null,null,null,null,null,null,null,null,null,null,null,null,null,null,null,null,null,null,null,null,null,null,null,null,null,null,null,null,null,null,null,null,null,null,null,null,null,null,null,null,null,null,null,null,null,null,null,null,null,null,null,null,null,null,null,null,null,null,null,null,null,null,null,null,null,null,null,null,null,null,null,null,null,null,null,null,null,null,null,null,null,null,null,null,null,null,null,null,null,null,null,null,null,null,null,null,null,null,null,null,null,null,null,null,null,null,null,null,null,null,null,null,null,null,null,null,null,null,null,null,null,null,null,null,null,null,null,null,null,null,null,null,null,null,null,null,null,null,null,null,null,null,null,null,null,null,null,null,null,null,null,null,null,null,null,null,null,null,null,null,null,null,null,null,null,null,null,null,null,null,null,null,null,null,null,null,null,null,null,null,null,null,null,null,null,null,null,null,null,null,null,null,null,null,null,null,null,null,null,null,null,null,null,null,null,null,null,null,null,null,null,null,null,null,null,null,null,null,null,null,null,null,null,null,null,null,null,null,null,null,null,null,null,null,null,null,null,null,null,null,null,null,null,null,null,null,null,null,null,null,null,null,null,null,null,null,null,null,null,null,null,null,null,null,null,null,null,null,null,null,null,null,null,null,null,null,null,null,null,null,null,null,null,null,null,null,null,null,null,null,null,null,null,null,null,null,null,null,null,null,null,null,null,null,null,null,null,null,null,null,null,null,null,null,null,null,null,null,null,null,null,null,null,null,null,null,null,null,null,null,null,null,null,null,null,null,null,null,null,null,null,null,null,null,null,null,null,null,null,null,null,null,null,null,null,null,null,null,null,null,null,null,null,null,null,null,null,null,null,null,null,null,null,null,null,null,null,null,null,null,null,null,null,null,null,null,null,null,null,null,null,null,null,null,null,null,null,null,null,null,null,null,null,null,null,null,null,null,null,null,null,null,null,null,null,null,null,null,null,null,null,null,null,null,null,null,null,null,null,null,null,null,null,null,null,null,null,null,null,null,null,null,null,null,null,null,null,null,null,null,null,null,null,null,null,null,null,null,null,null,null,null,null,null,null,null,null,null,null,null,null,null,null,null,null,null,null,null,null,null,null,null,null,null,null,null,null,null,null,null,null,null,null,null,null,null,null,null,null,null,null,null,null,null,null,null,null,null,null,null,null,null,null,null,null,null,null,null,null,null,null,null,null,null,null,null,null,null,null,null,null,null,null,null,null,null,null,null,null,null,null,null,null,null,null,null,null,null,null,null,null,null,null,null,null,null,null,null,null,null,null,null,null,null,null,null,null,null,null,null,null,null,null,null,null,null,null,null,null,null,null,null,null,null,null,null,null,null,null,null,null,null,null,null,null,null,null,null,null,null,null,null,null,null,null,null,null,null,null,null,null,null,null,null,null,null,null,null,null,null,null,null,null,null,null,null,null,null,null,null,null,null,null,null,null,null,null,null,null,null,null,null,null,null,null,null,null,null,null,null,null,null,null,null,null,null,null,null,null,null,null,null,null,null,null,null,null,null,null,null,null,null,null,null,null,null,null,null,null,null,null,null,null,null,null,null,null,null,null,null,null,null,null,null,null,null,null,null,null,null,null,null,null,null,null,null,null,null,null,null,null,null,null,null,null,null,null,null,null,null,null,null,null,null,null,null,null,null,null,null,null,null,null,null,null,null,null,null,null,null,null,null,null,null,null,null,null,null,null,null,null,null,null,null,null,null,null,null,null,null,null,null,null,null,null,null,null,null,null,null,null,null,null,null,null,null,null,null,null,null,null,null,null,null,null,null,null,null,null,null,null,null,null,null,null,null,null,null,null,null,null,null,null,null,null,null,null,null,null,null,null,null,null,null,null,null,null,null,null,null,null,null,null,null,null,null,null,null,null,null,null,null,null,null,null,null,null,null,null,null,null,null,null,null,null,null,null,null,null,null,null,null,null,null,null,null,null,null,null,null,null,null,null,null,null,null,null,null,null,null,null,null,null,null,null,null,null,null,null,null,null,null,null,null,null,null,null,null,null,null,null,null,null,null,null,null,null,null,null,null,null,null,null,null,null,null,null,null,null,null,null,null,null,null,null,null,null,null,null,null,null,null,null,null,null,null,null,null,null,null,null,null,null,null,null,null,null,null,null,null,null,null,null,null,null,null,null,null,null,null,null,null,null,null,null,null,null,null,null,null,null,null,null,null,null,null,null,null,null,null,null,null,null,null,null,null,null,null,null,null,null,null,null,null,null,null,null,null,null,null,null,null,null,null,null,null,null,null,null,null,null,null,null,null,null,null,null,null,null,null,null,null,null,null,null,null,null,null,null,null,null,null,null,null,null,null,null,null,null,null,null,null,null,null,null,null,null,null,null,null,null,null,null,null,null,null,null,null,null,null,null,null,null,null,null,null,null,null,null,null,null,null,null,null,null,null,null,null,null,null,null,null,null,null,null,null,null,null,null,null,null,null,null,null,null,null,null,null,null,null,null,null,null,null,null,null,null,null,null,null,null,null,null,null,null,null,null,null,null,null,null,null,null,null,null,null,null,null,null,null,null,null,null,null,null,null,null,null,null,null,null,null,null,null,null,null,null,null,null,null,null,null,null,null,null,null,null,null,null,null,null,null,null,null,null,null,null,null,null,null,null,null,null,null,null,null,null,null,null,null,null,null,null,null,null,null,null,null,null,null,null,null,null,null,null,null,null,null,null,null,null,null,null,null,null,null,null,null,null,null,null,null,null,null,null,null,null,null,null,null,null,null,null,null,null,null,null,null,null,null,null,null,null,null,null,null,null,null,null,null,null,null,null,null,null,null,null,null,null,null,null,null,null,null,null,null,null,null,null,null,null,null,null,null,null,null,null,null,null,null,null,null,null,null,null,null,null,null,null,null,null,null,null,null,null,null,null,null,null,null,null,null,null,null,null,null,null,null,null,null,null,null,null,null,null,null,null,null,null,null,null,null,null,null,null,null,null,null,null,null,null,null,null,null,null,null,null,null,null,null,null,null,null,null,null,null,null,null,null,null,null,null,null,null,null,null,null,null,null,null,null,null,null,null,null,null,null,null,null,null,null,null,null,null,null,null,null,null,null,null,null,null,null,null,null,null,null,null,null,null,null,null,null,null,null,null,null,null,null,null,null,null,null,null,null,null,null,null,null,null,null,null,null,null,null,null,null,null,null,null,null,null,null,null,null,null,null,null,null,null,null,null,null,null,null,null,null,null,null,null,null,null,null,null,null,null,null,null,null,null,null,null,null,null,null,null,null,null,null,null,null,null,null,null,null,null,null,null,null,null,null,null,null,null,null,null,null,null,null,null,null,null,null,null,null,null,null,null,null,null,null,null,null,null,null,null,null,null,null,null,null,null,null,null,null,null,null,null,null,null,null,null,null,null,null,null,null,null,null,null,null,null,null,null,null,null,null,null,null,null,null,null,null,null,null,null,null,null,null,null,null,null,null,null,null,null,null,null,null,null,null,null,null,null,null,null,null,null,null,null,null,null,null,null,null,null,null,null,null,null,null,null,null,null,null,null,null,null,null,null,null,null,null,null,null,null,null,null,null,null,null,null,null,null,null,null,null,null,null,null,null,null,null,null,null,null,null,null,null,null,null,null,null,null,null,null,null,null,null,null,null,null,null,null,null,null,null,null,null,null,null,null,null,null,null,null,null,null,null,null,null,null,null,null,null,null,null,null,null,null,null,null,null,null,null,null,null,null,null,null,null,null,null,null,null,null,null,null,null,null,null,null,null,null,null,null,null,null,null,null,null,null,null,null,null,null,null,null,null,null,null,null,null,null,null,null,null,null,null,null,null,null,null,null,null,null,null,null,null,null,null,null,null,null,null,null,null,null,null,null,null,null,null,null,null,null,null,null,null,null,null,null,null,null,null,null,null,null,null,null,null,null,null,null,null,null,null,null,null,null,null,null,null,null,null,null,null,null,null,null,null,null,null,null,null,null,null,null,null,null,null,null,null,null,null,null,null,null,null,null,null,null,null,null,null,null,null,null,null,null,null,null,null,null,null,null,null,null,null,null,null,null,null,null,null,null,null,null,null,null,null,null,null,null,null,null,null,null,null,null,null,null,null,null,null,null,null,null,null,null,null,null,null,null,null,null,null,null,null,null,null,null,null,null,null,null,null,null,null,null,null,null,null,null,null,null,null,null,null,null,null,null,null,null,null,null,null,null,null,null,null,null,null,null,null,null,null,null,null,null,null,null,null,null,null,null,null,null,null,null,null,null,null,null,null,null,null,null,null,null,null,null,null,null,null,null,null,null,null,null,null,null,null,null,null,null,null,null,null,null,null,null,null,null,null,null,null,null,null,null,null,null,null,null,null,null,null,null,null,null,null,null,null,null,null,null,null,null,null,null,null,null,null,null,null,null,null,null,null,null,null,null,null,null,null,null,null,null,null,null,null,null,null,null,null,null,null,null,null,null,null,null,null,null,null,null,null,null,null,null,null,null,null,null,null,null,null,null,null,null,null,null,null,null,null,null,null,null,null,null,null,null,null,null,null,null,null,null,null,null,null,null,null,null,null,null,null,null,null,null,null,null,null,null,null,null,null,null,null,null,null,null,null,null,null,null,null,null,null,null,null,null,null,null,null,null,null,null,null,null,null,null,null,null,null,null,null,null,null,null,null,null,null,null,null,null,null,null,null,null,null,null,null,null,null,null,null,null,null,null,null,null,null,null,null,null,null,null,null,null,null,null,null,null,null,null,null,null,null,null,null,null,null,null,null,null,null,null,null,null,null,null,null,null,null,null,null,null,null,null,null,null,null,null,null,null,null,null,null,null,null,null,null,null,null,null,null,null,null,null,null,null,null,null,null,null,null,null,null,null,null,null,null,null,null,null,null,null,null,null,null,null,null,null,null,null,null,null,null,null,null,null,null,null,null,null,null,null,null,null,null,null,null,null,null,null,null,null,null,null,null,null,null,null,null,null,null,null,null,null,null,null,null,null,null,null,null,null,null,null,null,null,null,null,null,null,null,null,null,null,null,null,null,null,null,null,null,null,null,null,null,null,null,null,null,null,null,null,null,null,null,null,null,null,null,null,null,null,null,null,null,null,null,null,null,null,null,null,null,null,null,null,null,null,null,null,null,null,null,null,null,null,null,null,null,null,null,null,null,null,null,null,null,null,null,null,null,null,null,null,null,null,null,null,null,null,null,null,null,null,null,null,null,null,null,null,null,null,null,null,null,null,null,null,null,null,null,null,null,null,null,null,null,null,null,null,null,null,null,null,null,null,null,null,null,null,null,null,null,null,null,null,null,null,null,null,null,null,null,null,null,null,null,null,null,null,null,null,null,null,null,null,null,null,null,null,null,null,null,null,null,null,null,null,null,null,null,null,null,null,null,null,null,null,null,null,null,null,null,null,null,null,null,null,null,null,null,null,null,null,null,null,null,null,null,null,null,null,null,null,null,null,null,null,null,null,null,null,null,null,null,null,null,null,null,null,null,null,null,null,null,null,null,null,null,null,null,null,null,null,null,null,null,null,null,null,null,null,null,null,null,null,null,null,null,null,null,null,null,null,null,null,null,null,null,null,null,null,null,null,null,null,null,null,null,null,null,null,null,null,null,null,null,null,null,null,null,null,null,null,null,null,null,null,null,null,null,null,null,null,null,null,null,null,null,null,null,null,null,null,null,null,null,null,null,null,null,null,null,null,null,null,null,null,null,null,null,null,null,null,null,null,null,null,null,null,null,null,null,null,null,null,null,null,null,null,null,null,null,null,null,null,null,null,null,null,null,null,null,null,null,null,null,null,null,null,null,null,null,null,null,null,null,null,null,null,null,null,null,null,null,null,null,null,null,null,null,null,null,null,null,null,null,null,null,null,null,null,null,null,null,null,null,null,null,null,null,null,null,null,null,null,null,null,null,null,null,null,null,null,null,null,null,null,null,null,null,null,null,null,null,null,null,null,null,null,null,null,null,null,null,null,null,null,null,null,null,null,null,null,null,null,null,null,null,null,null,null,null,null,null,null,null,null,null,null,null,null,null,null,null,null,null,null,null,null,null,null,null,null,null,null,null,null,null,null,null,null,null,null,null,null,null,null,null,null,null,null,null,null,null,null,null,null,null,null,null,null,null,null,null,null,null,null,null,null,null,null,null,null,null,null,null,null,null,null,null,null,null,null,null,null,null,null,null,null,null,null,null,null,null,null,null,null,null,null,null,null,null,null,null,null,null,null,null,null,null,null,null,null,null,null,null,null,null,null,null,null,null,null,null,null,null,null,null,null,null,null,null,null,null,null,null,null,null,null,null,null,null,null,null,null,null,null,null,null,null,null,null,null,null,null,null,null,null,null,null,null,null,null,null,null,null,null,null,null,null,null,null,null,null,null,null,null,null,null,null,null,null,null,null,null,null,null,null,null,null,null,null,null,null,null,null,null,null,null,null,null,null,null,null,null,null,null,null,null,null,null,null,null,null,null,null,null,null,null,null,null,null,null,null,null,null,null,null,null,null,null,null,null,null,null,null,null,null,null,null,null,null,null,null,null,null,null,null,null,null,null,null,null,null,null,null,null,null,null,null,null,null,null,null,null,null,null,null,null,null,null,null,null,null,null,null,null,null,null,null,null,null,null,null,null,null,null,null,null,null,null,null,null,null,null,null,null,null,null,null,null,null,null,null,null,null,null,null,null,null,null,null,null,null,null,null,null,null,null,null,null,null,null,null,null,null,null,null,null,null,null,null,null,null,null,null,null,null,null,null,null,null,null,null,null,null,null,null,null,null,null,null,null,null,null,null,null,null,null,null,null,null,null,null,null,null,null,null,null,null,null,null,null,null,null,null,null,null,null,null,null,null,null,null,null,null,null,null,null,null,null,null,null,null,null,null,null,null,null,null,null,null,null,null,null,null,null,null,null,null,null,null,null,null,null,null,null,null,null,null,null,null,null,null,null,null,null,null,null,null,null,null,null,null,null,null,null,null,null,null,null,null,null,null,null,null,null,null,null,null,null,null,null,null,null,null,null,null,null,null,null,null,null,null,null,null,null,null,null,null,null,null,null,null,null,null,null,null,null,null,null,null,null,null,null,null,null,null,null,null,null,null,null,null,null,null,null,null,null,null,null,null,null,null,null,null,null,null,null,null,null,null,null,null,null,null,null,null,null,null,null,null,null,null,null,null,null,null,null,null,null,null,null,null,null,null,null,null,null,null,null,null,null,null,null,null,null,null,null,null,null,null,null,null,null,null,null,null,null,null,null,null,null,null,null,null,null,null,null,null,null,null,null,null,null,null,null,null,null,null,null,null,null,null,null,null,null,null,null,null,null,null,null,null,null,null,null,null,null,null,null,null,null,null,null,null,null,null,null,null,null,null,null,null,null,null,null,null,null,null,null,null,null,null,null,null,null,null,null,null,null,null,null,null,null,null,null,null,null,null,null,null,null,null,null,null,null,null,null,null,null,null,null,null,null,null,null,null,null,null,null,null,null,null,null,null,null,null,null,null,null,null,null,null,null,null,null,null,null,null,null,null,null,null,null,null,null,null,null,null,null,null,null,null,null,null,null,null,null,null,null,null,null,null,null,null,null,null,null,null,null,null,null,null,null,null,null,null,null,null,null,null,null,null,null,null,null,null,null,null,null,null,null,null,null,null,null,null,null,null,null,null,null,null,null,null,null,null,null,null,null,null,null,null,null,null,null,null,null,null,null,null,null,null,null,null,null,null,null,null,null,null,null,null,null,null,null,null,null,null,null,null,null,null,null,null,null,null,null,null,null,null,null,null,null,null,null,null,null,null,null,null,null,null,null,null,null,null,null,null,null,null,null,null,null,null,null,null,null,null,null,null,null,null,null,null,null,null,null,null,null,null,null,null,null,null,null,null,null,null,null,null,null,null,null,null,null,null,null,null,null,null,null,null,null,null,null,null,null,null,null,null,null,null,null,null,null,null,null,null,null,null,null,null,null,null,null,null,null,null,null,null,null,null,null,null,null,null,null,null,null,null,null,null,null,null,null,null,null,null,null,null,null,null,null,null,null,null,null,null,null,null,null,null,null,null,null,null,null,null,null,null,null,null,null,null,null,null,null,null,null,null,null,null,null,null,null,null,null,null,null,null,null,null,null,null,null,null,null,null,null,null,null,null,null,null,null,null,null,null,null,null,null,null,null,null,null,null,null,null,null,null,null,null,null,null,null,null,null,null,null,null,null,null,null,null,null,null,null,null,null,null,null,null,null,null,null,null,null,null,null,null,null,null,null,null,null,null,null,null,null,null,null,null,null,null,null,null,null,null,null,null,null,null,null,null,null,null,null,null,null,null,null,null,null,null,null,null,null,null,null,null,null,null,null,null,null,null,null,null,null,null,null,null,null,null,null,null,null,null,null,null,null,null,null,null,null,null,null,null,null,null,null,null,null,null,null,null,null,null,null,null,null,null,null,null,null,null,null,null,null,null,null,null,null,null,null,null,null,null,null,null,null,null,null,null,null,null,null,null,null,null,null,null,null,null,null,null,null,null,null,null,null,null,null,null,null,null,null,null,null,null,null,null,null,null,null,null,null,null,null,null,null,null,null,null,null,null,null,null,null,null,null,null,null,null,null,null,null,null,null,null,null,null,null,null,null,null,null,null,null,null,null,null,null,null,null,null,null,null,null,null,null,null,null,null,null,null,null,null,null,null,null,null,null,null,null,null,null,null,null,null,null,null,null,null,null,null,null,null,null,null,null,null,null,null,null,null,null,null,null,null,null,null,null,null,null,null,null,null,null,null,null,null,null,null,null,null,null,null,null,null,null,null,null,null,null,null,null,null,null,null,null,null,null,null,null,null,null,null,null,null,null,null,null,null,null,null,null,null,null,null,null,null,null,null,null,null,null,null,null,null,null,null,null,null,null,null,null,null,null,null,null,null,null,null,null,null,null,null,null,null,null,null,null,null,null,null,null,null,null,null,null,null,null,null,null,null,null,null,null,null,null,null,null,null,null,null,null,null,null,null,null,null,null,null,null,null,null,null,null,null,null,null,null,null,null,null,null,null,null,null,null,null,null,null,null,null,null,null,null,null,null,null,null,null,null,null,null,null,null,null,null,null,null,null,null,null,null,null,null,null,null,null,null,null,null,null,null,null,null,null,null,null,null,null,null,null,null,null,null,null,null,null,null,null,null,null,null,null,null,null,null,null,null,null,null,null,null,null,null,null,null,null,null,null,null,null,null,null,null,null,null,null,null,null,null,null,null,null,null,null,null,null,null,null,null,null,null,null,null,null,null,null,null,null,null,null,null,null,null,null,null,null,null,null,null,null,null,null,null,null,null,null,null,null,null,null,null,null,null,null,null,null,null,null,null,null,null,null,null,null,null,null,null,null,null,null,null,null,null,null,null,null,null,null,null,null,null,null,null,null,null,null,null,null,null,null,null,null,null,null,null,null,null,null,null,null,null,null,null,null,null,null,null,null,null,null,null,null,null,null,null,null,null,null,null,null,null,null,null,null,null,null,null,null,null,null,null,null,null,null,null,null,null,null,null,null,null,null,null,null,null,null,null,null,null,null,null,null,null,null,null,null,null,null,null,null,null,null,null,null,null,null,null,null,null,null,null,null,null,null,null,null,null,null,null,null,null,null,null,null,null,null,null,null,null,null,null,null,null,null,null,null,null,null,null,null,null,null,null,null,null,null,null,null,null,null,null,null,null,null,null,null,null,null,null,null,null,null,null,null,null,null,null,null,null,null,null,null,null,null,null,null,null,null,null,null,null,null,null,null,null,null,null,null,null,null,null,null,null,null,null,null,null,null,null,null,null,null,null,null,null,null,null,null,null,null,null,null,null,null,null,null,null,null,null,null,null,null,null,null,null,null,null,null,null,null,null,null,null,null,null,null,null,null,null,null,null,null,null,null,null,null,null,null,null,null,null,null,null,null,null,null,null,null,null,null,null,null,null,null,null,null,null,null,null,null,null,null,null,null,null,null,null,null,null,null,null,null,null,null,null,null,null,null,null,null,null,null,null,null,null,null,null,null,null,null,null,null,null,null,null,null,null,null,null,null,null,null,null,null,null,null,null,null,null,null,null,null,null,null,null,null,null,null,null,null,null,null,null,null,null,null,null,null,null,null,null,null,null,null,null,null,null,null,null,null,null,null,null,null,null,null,null,null,null,null,null,null,null,null,null,null,null,null,null,null,null,null,null,null,null,null,null,null,null,null,null,null,null,null,null,null,null,null,null,null,null,null,null,null,null,null,null,null,null,null,null,null,null,null,null,null,null,null,null,null,null,null,null,null,null,null,null,null,null,null,null,null,null,null,null,null,null,null,null,null,null,null,null,null,null,null,null,null,null,null,null,null,null,null,null,null,null,null,null,null,null,null,null,null,null,null,null,null,null,null,null,null,null,null,null,null,null,null,null,null,null,null,null,null,null,null,null,null,null,null,null,null,null,null,null,null,null,null,null,null,null,null,null,null,null,null,null,null,null,null,null,null,null,null,null,null,null,null,null,null,null,null,null,null,null,null,null,null,null,null,null,null,null,null,null,null,null,null,null,null,null,null,null,null,null,null,null,null,null,null,null,null,null,null,null,null,null,null,null,null,null,null,null,null,null,null,null,null,null,null,null,null,null,null,null,null,null,null,null,null,null,null,null,null,null,null,null,null,null,null,null,null,null,null,null,null,null,null,null,null,null,null,null,null,null,null,null,null,null,null,null,null,null,null,null,null,null,null,null,null,null,null,null,null,null,null,null,null,null,null,null,null,null,null,null,null,null,null,null,null,null,null,null,null,null,null,null,null,null,null,null,null,null,null,null,null,null,null,null,null,null,null,null,null,null,null,null,null,null,null,null,null,null,null,null,null,null,null,null,null,null,null,null,null,null,null,null,null,null,null,null,null,null,null,null,null,null,null,null,null,null,null,null,null,null,null,null,null,null,null,null,null,null,null,null,null,null,null,null,null,null,null,null,null,null,null,null,null,null,null,null,null,null,null,null,null,null,null,null,null,null,null,null,null,null,null,null,null,null,null,null,null,null,null,null,null,null,null,null,null,null,null,null,null,null,null,null,null,null,null,null,null,null,null,null,null,null,null,null,null,null,null,null,null,null,null,null,null,null,null,null,null,null,null,null,null,null,null,null,null,null,null,null,null,null,null,null,null,null,null,null,null,null,null,null,null,null,null,null,null,null,null,null,null,null,null,null,null,null,null,null,null,null,null,null,null,null,null,null,null,null,null,null,null,null,null,null,null,null,null,null,null,null,null,null,null,null,null,null,null,null,null,null,null,null,null,null,null,null,null,null,null,null,null,null,null,null,null,null,null,null,null,null,null,null,null,null,null,null,null,null,null,null,null,null,null,null,null,null,null,null,null,null,null,null,null,null,null,null,null,null,null,null,null,null,null,null,null,null,null,null,null,null,null,null,null,null,null,null,null,null,null,null,null,null,null,null,null,null,null,null,null,null,null,null,null,null,null,null,null,null,null,null,null,null,null,null,null,null,null,null,null,null,null,null,null,null,null,null,null,null,null,null,null,null,null,null,null,null,null,null,null,null,null,null,null,null,null,null,null,null,null,null,null,null,null,null,null,null,null,null,null,null,null,null,null,null,null,null,null,null,null,null,null,null,null,null,null,null,null,null,null,null,null,null,null,null,null,null,null,null,null,null,null,null,null,null,null,null,null,null,null,null,null,null,null,null,null,null,null,null,null,null,null,null,null,null,null,null,null,null,null,null,null,null,null,null,null,null,null,null,null,null,null,null,null,null,null,null,null,null,null,null,null,null,null,null,null,null,null,null,null,null,null,null,null,null,null,null,null,null,null,null,null,null,null,null,null,null,null,null,null,null,null,null,null,null,null,null,null,null,null,null,null,null,null,null,null,null,null,null,null,null,null,null,null,null,null,null,null,null,null,null,null,null,null,null,null,null,null,null,null,null,null,null,null,null,null,null,null,null,null,null,null,null,null,null,null,null,null,null,null,null,null,null,null,null,null,null,null,null,null,null,null,null,null,null,null,null,null,null,null,null,null,null,null,null,null,null,null,null,null,null,null,null,null,null,null,null,null,null,null,null,null,null,null,null,null,null,null,null,null,null,null,null,null,null,null,null,null,null,null,null,null,null,null,null,null,null,null,null,null,null,null,null,null,null,null,null,null,null,null,null,null,null,null,null,null,null,null,null,null,null,null,null,null,null,null,null,null,null,null,null,null,null,null,null,null,null,null,null,null,null,null,null,null,null,null,null,null,null,null,null,null,null,null,null,null,null,null,null,null,null,null,null,null,null,null,null,null,null,null,null,null,null,null,null,null,null,null,null,null,null,null,null,null,null,null,null,null,null,null,null,null,null,null,null,null,null,null,null,null,null,null,null,null,null,null,null,null,null,null,null,null,null,null,null,null,null,null,null,null,null,null,null,null,null,null,null,null,null,null,null,null,null,null,null,null,null,null,null,null,null,null,null,null,null,null,null,null,null,null,null,null,null,null,null,null,null,null,null,null,null,null,null,null,null,null,null,null,null,null,null,null,null,null,null,null,null,null,null,null,null,null,null,null,null,null,null,null,null,null,null,null,null,null,null,null,null,null,null,null,null,null,null,null,null,null,null,null,null,null,null,null,null,null,null,null,null,null,null,null,null,null,null,null,null,null,null,null,null,null,null,null,null,null,null,null,null,null,null,null,null,null,null,null,null,null,null,null,null,null,null,null,null,null,null,null,null,null,null,null,null,null,null,null,null,null,null,null,null,null,null,null,null,null,null,null,null,null,null,null,null,null,null,null,null,null,null,null,null,null,null,null,null,null,null,null,null,null,null,null,null,null,null,null,null,null,null,null,null,null,null,null,null,null,null,null,null,null,null,null,null,null,null,null,null,null,null,null,null,null,null,null,null,null,null,null,null,null,null,null,null,null,null,null,null,null,null,null,null,null,null,null,null,null,null,null,null,null,null,null,null,null,null,null,null,null,null,null,null,null,null,null,null,null,null,null,null,null,null,null,null,null,null,null,null,null,null,null,null,null,null,null,null,null,null,null,null,null,null,null,null,null,null,null,null,null,null,null,null,null,null,null,null,null,null,null,null,null,null,null,null,null,null,null,null,null,null,null,null,null,null,null,null,null,null,null,null,null,null,null,null,null,null,null,null,null,null,null,null,null,null,null,null,null,null,null,null,null,null,null,null,null,null,null,null,null,null,null,null,null,null,null,null,null,null,null,null,null,null,null,null,null,null,null,null,null,null,null,null,null,null,null,null,null,null,null,null,null,null,null,null,null,null,null,null,null,null,null,null,null,null,null,null,null,null,null,null,null,null,null,null,null,null,null,null,null,null,null,null,null,null,null,null,null,null,null,null,null,null,null,null,null,null,null,null,null,null,null,null,null,null,null,null,null,null,null,null,null,null,null,null,null,null,null,null,null,null,null,null,null,null,null,null,null,null,null,null,null,null,null,null,null,null,null,null,null,null,null,null,null,null,null,null,null,null,null,null,null,null,null,null,null,null,null,null,null,null,null,null,null,null,null,null,null,null,null,null,null,null,null,null,null,null,null,null,null,null,null,null,null,null,null,null,null,null,null,null,null,null,null,null,null,null,null,null,null,null,null,null,null,null,null,null,null,null,null,null,null,null,null,null,null,null,null,null,null,null,null,null,null,null,null,null,null,null,null,null,null,null,null,null,null,null,null,null,null,null,null,null,null,null,null,null,null,null,null,null,null,null,null,null,null,null,null,null,null,null,null,null,null,null,null,null,null,null,null,null,null,null,null,null,null,null,null,null,null,null,null,null,null,null,null,null,null,null,null,null,null,null,null,null,null,null,null,null,null,null,null,null,null,null,null,null,null,null,null,null,null,null,null,null,null,null,null,null,null,null,null,null,null,null,null,null,null,null,null,null,null,null,null,null,null,null,null,null,null,null,null,null,null,null,null,null,null,null,null,null,null,null,null,null,null,null,null,null,null,null,null,null,null,null,null,null,null,null,null,null,null,null,null,null,null,null,null,null,null,null,null,null,null,null,null,null,null,null,null,null,null,null,null,null,null,null,null,null,null,null,null,null,null,null,null,null,null,null,null,null,null,null,null,null,null,null,null,null,null,null,null,null,null,null,null,null,null,null,null,null,null,null,null,null,null,null,null,null,null,null,null,null,null,null,null,null,null,null,null,null,null,null,null,null,null,null,null,null,null,null,null,null,null,null,null,null,null,null,null,null,null,null,null,null,null,null,null,null,null,null,null,null,null,null,null,null,null,null,null,null,null,null,null,null,null,null,null,null,null,null,null,null,null,null,null,null,null,null,null,null,null,null,null,null,null,null,null,null,null,null,null,null,null,null,null,null,null,null,null,null,null,null,null,null,null,null,null,null,null,null,null,null,null,null,null,null,null,null,null,null,null,null,null,null,null,null,null,null,null,null,null,null,null,null,null,null,null,null,null,null,null,null,null,null,null,null,null,null,null,null,null,null,null,null,null,null,null,null,null,null,null,null,null,null,null,null,null,null,null,null,null,null,null,null,null,null,null,null,null,null,null,null,null,null,null,null,null,null,null,null,null,null,null,null,null,null,null,null,null,null,null,null,null,null,null,null,null,null,null,null,null,null,null,null,null,null,null,null,null,null,null,null,null,null,null,null,null,null,null,null,null,null,null,null,null,null,null,null,null,null,null,null,null,null,null,null,null,null,null,null,null,null,null,null,null,null,null,null,null,null,null,null,null,null,null,null,null,null,null,null,null,null,null,null,null,null,null,null,null,null,null,null,null,null,null,null,null,null,null,null,null,null,null,null,null,null,null,null,null,null,null,null,null,null,null,null,null,null,null,null,null,null,null,null,null,null,null,null,null,null,null,null,null,null,null,null,null,null,null,null,null,null,null,null,null,null,null,null,null,null,null,null,null,null,null,null,null,null,null,null,null,null,null,null,null,null,null,null,null,null,null,null,null,null,null,null,null,null,null,null,null,null,null,null,null,null,null,null,null,null,null,null,null,null,null,null,null,null,null,null,null,null,null,null,null,null,null,null,null,null,null,null,null,null,null,null,null,null,null,null,null,null,null,null,null,null,null,null,null,null,null,null,null,null,null,null,null,null,null,null,null,null,null,null,null,null,null,null,null,null,null,null,null,null,null,null,null,null,null,null,null,null,null,null,null,null,null,null,null,null,null,null,null,null,null,null,null,null,null,null,null,null,null,null,null,null,null,null,null,null,null,null,null,null,null,null,null,null,null,null,null,null,null,null,null,null,null,null,null,null,null,null,null,null,null,null,null,null,null,null,null,null,null,null,null,null,null,null,null,null,null,null,null,null,null,null,null,null,null,null,null,null,null,null,null,null,null,null,null,null,null,null,null,null,null,null,null,null,null,null,null,null,null,null,null,null,null,null,null,null,null,null,null,null,null,null,null,null,null,null,null,null,null,null,null,null,null,null,null,null,null,null,null,null,null,null,null,null,null,null,null,null,null,null,null,null,null,null,null,null,null,null,null,null,null,null,null,null,null,null,null,null,null,null,null,null,null,null,null,null,null,null,null,null,null,null,null,null,null,null,null,null,null,null,null,null,null,null,null,null,null,null,null,null,null,null,null,null,null,null,null,null,null,null,null,null,null,null,null,null,null,null,null,null,null,null,null,null,null,null,null,null,null,null,null,null,null,null,null,null,null,null,null,null,null,null,null,null,null,null,null,null,null,null,null,null,null,null,null,null,null,null,null,null,null,null,null,null,null,null,null,null,null,null,null,null,null,null,null,null,null,null,null,null,null,null,null,null,null,null,null,null,null,null,null,null,null,null,null,null,null,null,null,null,null,null,null,null,null,null,null,null,null,null,null,null,null,null,null,null,null,null,null,null,null,null,null,null,null,null,null,null,null,null,null,null,null,null,null,null,null,null,null,null,null,null,null,null,null,null,null,null,null,null,null,null,null,null,null,null,null,null,null,null,null,null,null,null,null,null,null,null,null,null,null,null,null,null,null,null,null,null,null,null,null,null,null,null,null,null,null,null,null,null,null,null,null,null,null,null,null,null,null,null,null,null,null,null,null,null,null,null,null,null,null,null,null,null,null,null,null,null,null,null,null,null,null,null,null,null,null,null,null,null,null,null,null,null,null,null,null,null,null,null,null,null,null,null,null,null,null,null,null,null,null,null,null,null,null,null,null,null,null,null,null,null,null,null,null,null,null,null,null,null,null,null,null,null,null,null,null,null,null,null,null,null,null,null,null,null,null,null,null,null,null,null,null,null,null,null,null,null,null,null,null,null,null,null,null,null,null,null,null,null,null,null,null,null,null,null,null,null,null,null,null,null,null,null,null,null,null,null,null,null,null,null,null,null,null,null,null,null,null,null,null,null,null,null,null,null,null,null,null,null,null,null,null,null,null,null,null,null,null,null,null,null,null,null,null,null,null,null,null,null,null,null,null,null,null,null,null,null,null,null,null,null,null,null,null,null,null,null,null,null,null,null,null,null,null,null,null,null,null,null,null,null,null,null,null,null,null,null,null,null,null,null,null,null,null,null,null,null,null,null,null,null,null,null,null,null,null,null,null,null,null,null,null,null,null,null,null,null,null,null,null,null,null,null,null,null,null,null,null,null,null,null,null,null,null,null,null,null,null,null,null,null,null,null,null,null,null,null,null,null,null,null,null,null,null,null,null,null,null,null,null,null,null,null,null,null,null,null,null,null,null,null,null,null,null,null,null,null,null,null,null,null,null,null,null,null,null,null,null,null,null,null,null,null,null,null,null,null,null,null,null,null,null,null,null,null,null,null,null,null,null,null,null,null,null,null,null,null,null,null,null,null,null,null,null,null,null,null,null,null,null,null,null,null,null,null,null,null,null,null,null,null,null,null,null,null,null,null,null,null,null,null,null,null,null,null,null,null,null,null,null,null,null,null,null,null,null,null,null,null,null,null,null,null,null,null,null,null,null,null,null,null,null,null,null,null,null,null,null,null,null,null,null,null,null,null,null,null,null,null,null,null,null,null,null,null,null,null,null,null,null,null,null,null,null,null,null,null,null,null,null,null,null,null,null,null,null,null,null,null,null,null,null,null,null,null,null,null,null,null,null,null,null,null,null,null,null,null,null,null,null,null,null,null,null,null,null,null,null,null,null,null,null,null,null,null,null,null,null,null,null,null,null,null,null,null,null,null,null,null,null,null,null,null,null,null,null,null,null,null,null,null,null,null,null,null,null,null,null,null,null,null,null,null,null,null,null,null,null,null,null,null,null,null,null,null,null,null,null,null,null,null,null,null,null,null,null,null,null,null,null,null,null,null,null,null,null,null,null,null,null,null,null,null,null,null,null,null,null,null,null,null,null,null,null,null,null,null,null,null,null,null,null,null,null,null,null,null,null,null,null,null,null,null,null,null,null,null,null,null,null,null,null,null,null,null,null,null,null,null,null,null,null,null,null,null,null,null,null,null,null,null,null,null,null,null,null,null,null,null,null,null,null,null,null,null,null,null,null,null,null,null,null,null,null,null,null,null,null,null,null,null,null,null,null,null,null,null,null,null,null,null,null,null,null,null,null,null,null,null,null,null,null,null,null,null,null,null,null,null,null,null,null,null,null,null,null,null,null,null,null,null,null,null,null,null,null,null,null,null,null,null,null,null,null,null,null,null,null,null,null,null,null,null,null,null,null,null,null,null,null,null,null,null,null,null,null,null,null,null,null,null,null,null,null,null,null,null,null,null,null,null,null,null,null,null,null,null,null,null,null,null,null,null,null,null,null,null,null,null,null,null,null,null,null,null,null,null,null,null,null,null,null,null,null,null,null,null,null,null,null,null,null,null,null,null,null,null,null,null,null,null,null,null,null,null,null,null,null,null,null,null,null,null,null,null,null,null,null,null,null,null,null,null,null,null,null,null,null,null,null,null,null,null,null,null,null,null,null,null,null,null,null,null,null,null,null,null,null,null,null,null,null,null,null,null,null,null,null,null,null,null,null,null,null,null,null,null,null,null,null,null,null,null,null,null,null,null,null,null,null,null,null,null,null,null,null,null,null,null,null,null,null,null,null,null,null,null,null,null,null,null,null,null,null,null,null,null,null,null,null,null,null,null,null,null,null,null,null,null,null,null,null,null,null,null,null,null,null,null,null,null,null,null,null,null,null,null,null,null,null,null,null,null,null,null,null,null,null,null,null,null,null,null,null,null,null,null,null,null,null,null,null,null,null,null,null,null,null,null,null,null,null,null,null,null,null,null,null,null,null,null,null,null,null,null,null,null,null,null,null,null,null,null,null,null,null,null,null,null,null,null,null,null,null,null,null,null,null,null,null,null,null,null,null,null,null,null,null,null,null,null,null,null,null,null,null,null,null,null,null,null,null,null,null,null,null,null,null,null,null,null,null,null,null,null,null,null,null,null,null,null,null,null,null,null,null,null,null,null,null,null,null,null,null,null,null,null,null,null,null,null,null,null,null,null,null,null,null,null,null,null,null,null,null,null,null,null,null,null,null,null,null,null,null,null,null,null,null,null,null,null,null,null,null,null,null,null,null,null,null,null,null,null,null,null,null,null,null,null,null,null,null,null,null,null,null,null,null,null,null,null,null,null,null,null,null,null,null,null,null,null,null,null,null,null,null,null,null,null,null,null,null,null,null,null,null,null,null,null,null,null,null,null,null,null,null,null,null,null,null,null,null,null,null,null,null,null,null,null,null,null,null,null,null,null,null,null,null,null,null,null,null,null,null,null,null,null,null,null,null,null,null,null,null,null,null,null,null,null,null,null,null,null,null,null,null,null,null,null,null,null,null,null,null,null,null,null,null,null,null,null,null,null,null,null,null,null,null,null,null,null,null,null,null,null,null,null,null,null,null,null,null,null,null,null,null,null,null,null,null,null,null,null,null,null,null,null,null,null,null,null,null,null,null,null,null,null,null,null,null,null,null,null,null,null,null,null,null,null,null,null,null,null,null,null,null,null,null,null,null,null,null,null,null,null,null,null,null,null,null,null,null,null,null,null,null,null,null,null,null,null,null,null,null,null,null,null,null,null,null,null,null,null,null,null,null,null,null,null,null,null,null,null,null,null,null,null,null,null,null,null,null,null,null,null,null,null,null,null,null,null,null,null,null,null,null,null,null,null,null,null,null,null,null,null,null,null,null,null,null,null,null,null,null,null,null,null,null,null,null,null,null,null,null,null,null,null,null,null,null,null,null,null,null,null,null,null,null,null,null,null,null,null,null,null,null,null,null,null,null,null,null,null,null,null,null,null,null,null,null,null,null,null,null,null,null,null,null,null,null,null,null,null,null,null,null,null,null,null,null,null,null,null,null,null,null,null,null,null,null,null,null,null,null,null,null,null,null,null,null,null,null,null,null,null,null,null,null,null,null,null,null,null,null,null,null,null,null,null,null,null,null,null,null,null,null,null,null,null,null,null,null,null,null,null,null,null,null,null,null,null,null,null,null,null,null,null,null,null,null,null,null,null,null,null,null,null,null,null,null,null,null,null,null,null,null,null,null,null,null,null,null,null,null,null,null,null,null,null,null,null,null,null,null,null,null,null,null,null,null,null,null,null,null,null,null,null,null,null,null,null,null,null,null,null,null,null,null,null,null,null,null,null,null,null,null,null,null,null,null,null,null,null,null,null,null,null,null,null,null,null,null,null,null,null,null,null,null,null,null,null,null,null,null,null,null,null,null,null,null,null,null,null,null,null,null,null,null,null,null,null,null,null,null,null,null,null,null,null,null,null,null,null,null,null,null,null,null,null,null,null,null,null,null,null,null,null,null,null,null,null,null,null,null,null,null,null,null,null,null,null,null,null,null,null,null,null,null,null,null,null,null,null,null,null,null,null,null,null,null,null,null,null,null,null,null,null,null,null,null,null,null,null,null,null,null,null,null,null,null,null,null,null,null,null,null,null,null,null,null,null,null,null,null,null,null,null,null,null,null,null,null,null,null,null,null,null,null,null,null,null,null,null,null,null,null,null,null,null,null,null,null,null,null,null,null,null,null,null,null,null,null,null,null,null,null,null,null,null,null,null,null,null,null,null,null,null,null,null,null,null,null,null,null,null,null,null,null,null,null,null,null,null,null,null,null,null,null,null,null,null,null,null,null,null,null,null,null,null,null,null,null,null,null,null,null,null,null,null,null,null,null,null,null,null,null,null,null,null,null,null,null,null,null,null,null,null,null,null,null,null,null,null,null,null,null,null,null,null,null,null,null,null,null,null,null,null,null,null,null,null,null,null,null,null,null,null,null,null,null,null,null,null,null,null,null,null,null,null,null,null,null,null,null,null,null,null,null,null,null,null,null,null,null,null,null,null,null,null,null,null,null,null,null,null,null,null,null,null,null,null,null,null,null,null,null,null,null,null,null,null,null,null,null,null,null,null,null,null,null,null,null,null,null,null,null,null,null,null,null,null,null,null,null,null,null,null,null,null,null,null,null,null,null,null,null,null,null,null,null,null,null,null,null,null,null,null,null,null,null,null,null,null,null,null,null,null,null,null,null,null,null,null,null,null,null,null,null,null,null,null,null,null,null,null,null,null,null,null,null,null,null,null,null,null,null,null,null,null,null,null,null,null,null,null,null,null,null,null,null,null,null,null,null,null,null,null,null,null,null,null,null,null,null,null,null,null,null,null,null,null,null,null,null,null,null,null,null,null,null,null,null,null,null,null,null,null,null,null,null,null,null,null,null,null,null,null,null,null,null,null,null,null,null,null,null,null,null,null,null,null,null,null,null,null,null,null,null,null,null,null,null,null,null,null,null,null,null,null,null,null,null,null,null,null,null,null,null,null,null,null,null,null,null,null,null,null,null,null,null,null,null,null,null,null,null,null,null,null,null,null,null,null,null,null,null,null,null,null,null,null,null,null,null,null,null,null,null,null,null,null,null,null,null,null,null,null,null,null,null,null,null,null,null,null,null,null,null,null,null,null,null,null,null,null,null,null,null,null,null,null,null,null,null,null,null,null,null,null,null,null,null,null,null,null,null,null,null,null,null,null,null,null,null,null,null,null,null,null,null,null,null,null,null,null,null,null,null,null,null,null,null,null,null,null,null,null,null,null,null,null,null,null,null,null,null,null,null,null,null,null,null,null,null,null,null,null,null,null,null,null,null,null,null,null,null,null,null,null,null,null,null,null,null,null,null,null,null,null,null,null,null,null,null,null,null,null,null,null,null,null,null,null,null,null,null,null,null,null,null,null,null,null,null,null,null,null,null,null,null,null,null,null,null,null,null,null,null,null,null,null,null,null,null,null,null,null,null,null,null,null,null,null,null,null,null,null,null,null,null,null,null,null,null,null,null,null,null,null,null,null,null,null,null,null,null,null,null,null,null,null,null,null,null,null,null,null,null,null,null,null,null,null,null,null,null,null,null,null,null,null,null,null,null,null,null,null,null,null,null,null,null,null,null,null,null,null,null,null,null,null,null,null,null,null,null,null,null,null,null,null,null,null,null,null,null,null,null,null,null,null,null,null,null,null,null,null,null,null,null,null,null,null,null,null,null,null,null,null,null,null,null,null,null,null,null,null,null,null,null,null,null,null,null,null,null,null,null,null,null,null,null,null,null,null,null,null,null,null,null,null,null,null,null,null,null,null,null,null,null,null,null,null,null,null,null,null,null,null,null,null,null,null,null,null,null,null,null,null,null,null,null,null,null,null,null,null,null,null,null,null,null,null,null,null,null,null,null,null,null,null,null,null,null,null,null,null,null,null,null,null,null,null,null,null,null,null,null,null,null,null,null,null,null,null,null,null,null,null,null,null,null,null,null,null,null,null,null,null,null,null,null,null,null,null,null,null,null,null,null,null,null,null,null,null,null,null,null,null,null,null,null,null,null,null,null,null,null,null,null,null,null,null,null,null,null,null,null,null,null,null,null,null,null,null,null,null,null,null,null,null,null,null,null,null,null,null,null,null,null,null,null,null,null,null,null,null,null,null,null,null,null,null,null,null,null,null,null,null,null,null,null,null,null,null,null,null,null,null,null,null,null,null,null,null,null,null,null,null,null,null,null,null,null,null,null,null,null,null,null,null,null,null,null,null,null,null,null,null,null,null,null,null,null,null,null,null,null,null,null,null,null,null,null,null,null,null,null,null,null,null,null,null,null,null,null,null,null,null,null,null,null,null,null,null,null,null,null,null,null,null,null,null,null,null,null,null,null,null,null,null,null,null,null,null,null,null,null,null,null,null,null,null,null,null,null,null,null,null,null,null,null,null,null,null,null,null,null,null,null,null,null,null,null,null,null,null,null,null,null,null,null,null,null,null,null,null,null,null,null,null,null,null,null,null,null,null,null,null,null,null,null,null,null,null,null,null,null,null,null,null,null,null,null,null,null,null,null,null,null,null,null,null,null,null,null,null,null,null,null,null,null,null,null,null,null,null,null,null,null,null,null,null,null,null,null,null,null,null,null,null,null,null,null,null,null,null,null,null,null,null,null,null,null,null,null,null,2]